Workbook

Sheet НАВИГАТОР
A1: НАВИГАТОР
A3: КОЛЛЕКЦИИ
A14: AERO | B14: ATLAS | C14: INTAKE | D14: LEVANTE | E14: COMDI | F14: PRACTIC | G14: MOTIVER | H14: INV | I14: INVIZIBLE 42 мм | J14: INVIZIBLE 59 мм | K14: SOLO
A25: INSIDE | B25: NESTOR | C25: BLEND | D25: GEMMA | E25: RIVA | F25: ATIKA | G25: SIENA | H25: LIBERTA | I25: LAURA | J25: ELEONORA | K25: ASTI
A36: PRACTIC | B36: LEVEL | C36: PRESTIGE | D36: NEON | E36: IMPULS | F36: WOODEN | G36: COMER | H36: NOWATOR | I36: QUANTUM | J36: ALLURE | K36: MIRO
A47: ART LINE | B47: MARION | C47: ANIMA | D47: ULTRA | E47: PRISMA | F47: DIAMETER | G47: ARIA
A48: ПРОЧЕЕ
A50: Системы | B50: Доп. Ассортимент | C50: Накладки | D50: ПВХ | E50: Фурнитура | F50: Врезка | G50: Погонаж | H50: Компланар РЕВЕРС | I50: Декор. Рейки | J50: Стеновые панели | K50: Фальш фрамуга
D52: Реверс ПВХ (42 мм 59 мм) | E52: Арки | F52: Скрытый плинтус | G52: Реклама

Sheet ПВХ
A3: Навигатор
A4: ПВХ
A6: Таблица актуальность ПВХ (доступные к заказу)
A8: ТИП 1 | D8: ТИП 2 | G8: ТИП 3 | J8: ТИП 4
A9: STRONG | B9: Стронг белая шагрень | D9: STRONG | E9: Стронг айс | G9: STRONG | H9: Стронг крем брюле | J9: ENAMEL | K9: Эмаль белая
B10: ПВХ Грунт | E10: Стронг белый | H10: Стронг ваниль | K10: Эмаль джелато
A11: LOFT | B11: Бетон известковый | E11: Стронг светло серый | H11: Стронг крем | K11: Эмаль грей
B12: Бетон антрацит | E12: Стронг туман | H12: Стронг кофе | K12: Эмаль графит
B13: Бетон карельский | E13: Стронг серый | H13: Стронг мокко (NEW) | K13: Эмаль сантьяго
B14: Бетон невский | E14: Стронг сантьяго | H14: Стронг красный | J14: SOFT | K14: Софт пепел
A15: WOOD TEXTUR | B15: Лиственница сибирская | E15: Стронг пич | H15: Стронг графит | K15: Софт атлантик
B16: Лиственница охотская | E16: Стронг черри | H16: Стронг олива | J16: WOOD TEXTUR | K16: Орех американский натуральный
B17: Лиственница амурская | E17: Стронг коралловый | H17: Стронг черный | K17: Орех американский натуральный диагональ
B18: Лиственница светло серая | E18: Строг лаванда | G18: SOFT | H18: Софт белоснежный | K18: Орех чикаго лайт
A19: PREMIUM | B19: Дуб Палмеро | E19: Стронг грей | H19: Софт белая матовая | K19: Орех чикаго натуральный
A20: CLASSIC | B20: Белое дерево | E20: Стронг моренго | H20: Cофт крем
B21: Белый сандал | E21: Стронг темно-синий | H21: Софт сантьяго
B22: Венге | E22: Стронг темно-бирюзовый | H22: Софт латте
E23: Стронг скай (NEW) | H23: Софт ликер
E24: Стронг киви (NEW) | H24: Софт дымчатый
D25: LOFT | E25: Ферум блэк | H25: Софт лаванда (NEW)
E26: Ферум грей | H26: Cофт грей
E27: Мрамор черный | H27: Перламутр шоколад
E28: Мрамор белый | G28: PREMIUM | H28: Шато серый
E29: Бетон лофт натуральный | H29: Шато белый
E30: Бетон лофт светлый | H30: Шато крем
E31: Лофт капучино | H31: Ясень белый
E32: Лофт белый | H32: Шпон радиальный светлый (NEW)
E33: Дюна Норд | H33: Шпон радиальный темный (NEW)
E34: Дюна Мистраль
E35: Твил флай (NEW)
E36: Твил беж (NEW)
E37: Твил Лен (NEW)
D38: WOOD TEXTUR | E38: Макадами
D39: PREMIUM | E39: Распил белый
E40: Распил графит
E41: Орех пекан шоколад
E42: Орех пекан медовый
E43: Орех пекан сливочный
E44: Орех сицилия мусс (NEW)
E45: Орех сицилия шоколад (NEW)
E46: Дуб элегант темный (NEW)
E47: Дуб элегант мокко (NEW)
E48: Дуб элегант сливки (NEW)
E49: Сканди Жасмин
E50: Сканди Мускат
E51: Платан белый
E52: Платан пшеничный (NEW)
E53: Платан кофейный (NEW)
E54: Дуб Мадейра кварц
E55: Дуб Мадейра янтарь
E56: Дуб Мавелла голд
E57: Кешью
E58: Фундук
E59: Пиния
E60: Орех вудстон
E61: Сахара
E62: Калахири
E63: Дуб кофейный

Sheet Н11121 (hidden)
A1: Навигатор
A2: Наценки
A4: Наценки в разделе
A5: Остекленные модели | K5: 0.339
A6: Опции | K6: 0.339
A8: Модели
A10: COSTA (Юркас - ASTI) | B10: 0.339 | D10: NOVA (Юркас - AERO) | E10: 0.339 | G10: ARCO (Юркас - ATLAS) | H10: 0.339 | J10: ARCHITECT (ЮРКАС - PRACTIC) | K10: 0.339
A12: RELIEF (Юркас - INTAKE) | B12: 0.339 | D12: Motion (ЮРКАС - LEVEL) | E12: 0.339 | G12: HOVER (Юркас -LEVANTE) | H12: 0.339 | J12: DELUNA (Юркас - COMDI) | K12: 0.339
A14: AESTHETICS (Юркас - PRACTIC) | B14: 0.339 | D14: RAIL (Юркас - MOTIVER) | E14: 0.339 | G14: INVIZIBLE (наличие) | H14: 0.339 | J14: INVIZIBLE (42 мм) | K14: 0.339
A16: INVIZIBLE (59 мм) | B16: 0.339 | D16: Alliance (ЮРКАС - PRESTIGE) | E16: 0.339 | G16: Z (Юркас - INSIDE) | H16: 0.339 | J16: COLISEUM (Юркас - NESTOR) | K16: 0.339
A18: ALPHA (Юркас - BLEND) | B18: 0.339 | D18: Q (Юркас - GEMMA) | E18: 0.339 | G18: WAVE (Юркас - RIVA) | H18: 0.339 | J18: MONZA (Юркас - ATIKA) | K18: 0.339
A20: CASCADE (Юркас - SIENA) | B20: 0.339 | D20: Unico (ЮРКАС - NEON) | E20: 0.339 | G20: BG (Юркас - LIBERTA) | H20: 0.339 | J20: LP (Юркас - LAURA) | K20: 0.339
A22: BARCELONA (Юркас - ELEONORA) | B22: 0.339 | D22: MINIMAL (ЮРКАС - IMPULS) | E22: 0.339 | G22: Band (ЮРКАС - WOODEN) | H22: 0.339 | J22: Simple (ЮРКАС - COMER) | K22: 0.339
A24: Neo (ЮРКАС - NOVATOR) | B24: 0.339 | D24: Gradient (ЮРКАС - QUANTUM) | E24: 0.339 | G24: MONE (ЮРКАС - ALLURE) | H24: 0.339 | J24: Veneer (ЮРКАС - MIRO) | K24: 0.339
A26: SLAB décor (ЮРКАС - ART LINE) | B26: 0.339 | D26: SOLANA (Юркас - SOLO) | E26: 0.339 | G26: Horizon (ЮРКАС - MARION) | H26: 0.339 | J26: Line (ЮРКАС - ANIMA) | K26: 0.339
A28: Freedom (ЮРКАС - ULTRA) | B28: 0.339 | D28: Magic (ЮРКАС - PRISMA) | E28: 0.339 | G28: Zero (ЮРКАС - DIAMETER) | H28: 0.339
A31: Прочее
A33: Погонаж | B33: 0.339 | D33: Погонаж SECRET | E33: 0.339 | G33: Патина | H33: 0.339 | J33: Стеновые панели | K33: 0.339
A35: Доборы | B35: 0.339 | D35: Доборы за кв.м2 | E35: 0.339 | G35: Декор. Рейки | H35: 0.339 | J35: Фальш фрамуга | K35: 0.339
A37: Системы | B37: 0.339 | D37: Накладки | E37: 0.339 | G37: Доп. Ассортимент | H37: 0.339 | J37: Реклама | K37: 0.339
A39: Скрытый плинтус | B39: 0.339 | D39: Врезка | E39: 0.339 | G39: Фурнитура | H39: 0.339 | J39: Арки | K39: 0.339
D41: Компалнар РЕВЕРС | E41: 0.339 | G41: Склад | H41: 0.339

Sheet Применимость петель
G1: Без ал.кромки | J1: в ал.кромке | R1: Высота до 2000
A2: Фурнитура | C2: Компланарная коробка 38 мм | D2: Компланарная коробка 42 мм | E2: Короб 38 мм (прямой/телескоп) | F2: Короб 42 мм (прямой/телескоп) | G2: Дверь ДГ 42 мм/59 мм | H2: Дверь ДО/ДГ | I2: Дверь ДО/ДО | J2: Дверь ДГ 42 мм/59 мм | K2: Дверь ДО/ДГ | L2: Дверь ДО/ДО | M2: Дверь ДГ/ДО | N2: Дверь REVERS ДГ 42 мм | O2: Дверь REVERS ДО/ДГ 42 мм | P2: Дверь REVERS ДГ/ДО 59 мм | Q2: Дверь REVERS ДО/ДО 59 мм | R2: Дверь ДГ 42мм | S2: Дверь ДО/ДГ | T2: Дверь ДО/ДО | U2: Скрытый короб SECRET STANDART 59 мм | V2: Скрытый короб SECRET LITE 59 мм | W2: Скрытый короб SECRET REVERS СLASSIC 42 мм с
A3: Наименование | B3: Ширина петли | U3: 42 мм / 59 мм | V3: 42 мм / 59 мм | W3: 42 мм
A4: Скрытые петли AGB 2.0 | B4: 30 мм | C4: - | D4: - | E4: + | F4: + | G4: + | H4: - | I4: - | J4: + | K4: - | L4: - | M4: - | N4: - | O4: - | P4: + | Q4: + | R4: + | S4: - | T4: - | U4: - | V4: + | W4: -
A5: Скрытые петли AGB 3.0 - не делаем где глубокая фрезеровка* | B5: 24 мм (врезка со смещением 4,5мм) | C5: - | D5: - | E5: + | F5: + | G5: + | H5: - | I5: - | J5: - | K5: - | L5: - | M5: - | N5: + | O5: + | P5: - | Q5: - | R5: + | S5: - | T5: - | U5: - | V5: - | W5: +
A6: Скрытые петли ARM2000 | B6: 30 мм | C6: - | D6: - | E6: + | F6: + | G6: + | H6: - | I6: - | J6: + | K6: - | L6: - | M6: - | N6: - | O6: - | P6: + | Q6: + | R6: + | S6: - | T6: - | U6: - | V6: + | W6: -
A7: Скрытые петли ARM3000 | B7: 24 мм (врезка со смещением 4,5мм) | C7: - | D7: - | E7: + | F7: + | G7: + | H7: - | I7: - | J7: - | K7: - | L7: - | M7: - | N7: + | O7: + | P7: - | Q7: - | R7: + | S7: - | T7: - | U7: - | V7: - | W7: +
A8: Скрытые петли KUBICA (KRONA KOBLENZ 2760) | B8: 27 мм (универсальная) | C8: - | D8: - | E8: + | F8: + | G8: + | H8: + | I8: + | J8: + | K8: + | L8: + | M8: + | N8: - | O8: - | P8: + | Q8: + | R8: + | S8: + | T8: + | U8: + | V8: + | W8: -
A9: Скрытые петли Morelli CH-01 | B9: 27 мм (универсальная) | C9: - | D9: - | E9: + | F9: + | G9: + | H9: + | I9: + | J9: + | K9: + | L9: + | M9: + | N9: - | O9: - | P9: + | Q9: + | R9: + | S9: + | T9: + | U9: + | V9: + | W9: -
A10: Реверсивная скрытая петля KUBICA (KRONA KOBLENZ 2460) | B10: 18 мм/ 16 мм | C10: - | D10: - | E10: - | F10: - | G10: - | H10: - | I10: - | J10: - | K10: - | L10: - | M10: - | N10: + | O10: + | P10: - | Q10: - | R10: - | S10: - | T10: - | U10: - | V10: - | W10: +
A11: Cкрытая петля KUBICA для компланарного погонажа (KRONA KOBLENZ 6360) | B11: 30 мм | C11: + | D11: + | E11: - | F11: - | G11: + | H11: - | I11: - | J11: + | K11: - | L11: - | M11: - | N11: - | O11: + | P11: - | Q11: - | R11: + | S11: - | T11: - | U11: - | V11: - | W11: -
A12: Cкрытая петля Armadillo U3D8000 | C12: + | D12: + | E12: - | F12: - | G12: + | H12: - | I12: - | J12: + | K12: - | L12: - | M12: - | N12: - | O12: - | P12: - | Q12: - | R12: + | S12: - | T12: - | U12: - | V12: - | W12: -
A14: Высота полотна | B14: ДО/ДО | C14: ДО/ДГ | D14: ДГ
A15: до 2200 мм. | B15: 3 петли | C15: 2 петли | D15: до 2290 мм. | E15: 2 петли
A16: 2210 - 2400 мм. | B16: 4 петли | C16: 3 петли | D16: 2300-2400 мм. | E16: 3 петли
A17: 2410 - 2850 мм. | B17: 5 петли | C17: 4 петли | D17: 2410 - 2850 мм. | E17: 4 петли
A20: * INTAKE, COMDI, PRESTIGE - не можем врезать AGB 3.0

Sheet Погонаж
A1: Навигатор
A2: Погонаж
A4: ВНИМАНИЕ! Погонажные изделия отпускаются все кратно - 1 штуки!
A6: Наличники
A8: Наименование | E8: Тип 1 | F8: Тип 2 | G8: Тип 3 | H8: Тип 4
A9: Наличник МДФ плоский 80*10 мм (2180 мм) | E9: 572.613462 | F9: 601.2441351 | G9: 629.8748082 | H9: 658.5054813
A10: Наличник МДФ плоский 80*10 мм (2440 мм) | E10: 636.23718 | F10: 668.049039 | G10: 699.860898 | H10: 731.672757
A11: Наличник МДФ телескоп 80*10 мм (2180 мм) | E11: 629.167878 | F11: 660.6262719 | G11: 692.0846658 | H11: 723.5430597
A12: Наличник МДФ телескоп 80*10 мм (2440 мм) | E12: 706.9302 | F12: 742.27671 | G12: 777.62322 | H12: 812.96973
A13: Наличник МДФ телескоп 80*10 мм (2800 мм) | E13: 862.454844 | F13: 905.5775862 | G13: 948.7003284 | H13: 991.8230706
A14: Наличник МДФ телескоп 80*10 мм (3000 мм) | E14: 1003.840884 | F14: 1054.032928 | G14: 1104.224972 | H14: 1154.417017
A15: Наличник МДФ телескоп 80*10 мм c удлиненным шипом 4,5 см (2180 мм) | E15: 827.108334 | F15: 868.4637507 | G15: 909.8191674 | H15: 951.1745841
A16: Наличник МДФ телескоп 80*10 мм c удлиненным шипом 4,5 см (2440 мм) | E16: 919.00926 | F16: 964.959723 | G16: 1010.910186 | H16: 1056.860649 | J16: NEW
A17: Наличник компланарный МДФ 80*10 мм (2180 мм) Устанавливаются только на скрытые петли k6360 или Armadillo U3D8000 | E17: 721.068804 | F17: 757.1222442 | G17: 793.1756844 | H17: 829.2291246
A18: Наличник компланарный МДФ 80*10 мм (2440 мм) Устанавливаются только на скрытые петли k6360 или Armadillo U3D8000 | E18: 798.831126 | F18: 838.7726823 | G18: 878.7142386 | H18: 918.6557949
A19: Наличник компланарный МДФ 80*10 мм (2800 мм) Устанавливаются только на скрытые петли k6360 или Armadillo U3D8000 | E19: 919.00926 | F19: 964.959723 | G19: 1010.910186 | H19: 1056.860649
A20: Наличник компланарный МДФ 80*10 мм (3000 мм) Устанавливаются только на скрытые петли k6360 или Armadillo U3D8000 | E20: 1053.325998 | F20: 1105.992298 | G20: 1158.658598 | H20: 1211.324898 | J20: Наличник Renissance
A21: Наличник МДФ телескоп 100*10 мм (2180 мм) | E21: 1003.840884 | F21: 1054.032928 | G21: 1104.224972 | H21: 1154.417017
A22: Наличник МДФ телескоп 100*10 мм (2440 мм) | E22: 1081.603206 | F22: 1135.683366 | G22: 1189.763527 | H22: 1243.843687
A23: Наличник МДФ телескоп 120*10 мм (2180 мм) | E23: 1074.533904 | F23: 1128.260599 | G23: 1181.987294 | H23: 1235.71399
A24: Наличник МДФ телескоп 120*10 мм (2440 мм) | E24: 1138.157622 | F24: 1195.065503 | G24: 1251.973384 | H24: 1308.881265
A25: Пилястра 3-x каннелюрная телескоп МДФ 80*10 мм (2180 мм) | E25: 904.870656 | F25: 950.1141888 | G25: 995.3577216 | H25: 1040.601254
A26: Пилястра 3-x каннелюрная телескоп МДФ 80*10 мм (2440 мм) | E26: 1003.840884 | F26: 1054.032928 | G26: 1104.224972 | H26: 1154.417017
A27: Пилястра 3-x каннелюрная телескоп МДФ 80*10 мм (2800 мм) | E27: 1201.78134 | F27: 1261.870407 | G27: 1321.959474 | H27: 1382.048541
A28: Фигурный наличник телескоп 99*30 мм (2180 мм) | E28: 1159.365528 | F28: 1217.333804 | G28: 1275.302081 | H28: 1333.270357
A29: Фигурный наличник телескоп 99*30 мм (2400 мм) | E29: 1286.612964 | F29: 1350.943612 | G29: 1415.27426 | H29: 1479.604909
A30: Фигурный наличник телескоп 99*30 мм (2800 мм) | E30: 1611.800856 | F30: 1692.390899 | G30: 1772.980942 | H30: 1853.570984 | J30: Наличник Neo
A31: Наличник Renissance телескоп 80*10 мм (2180 мм) | E31: 1350.236682 | F31: 1417.748516 | G31: 1485.26035 | H31: 1552.772184
A32: Наличник Renissance телескоп 80*10 мм (2400 мм) | E32: 1548.177138 | F32: 1625.585995 | G32: 1702.994852 | H32: 1780.403709
A33: Наличник Renissance телескоп 80*10 мм (2800 мм) | E33: 1880.434332 | F33: 1974.456049 | G33: 2068.477765 | H33: 2162.499482
A34: Наличник Neo телескоп 80*10 мм (2180 мм) | E34: 1350.236682 | F34: 1417.748516 | G34: 1485.26035 | H34: 1552.772184
A35: Наличник Neo телескоп 80*10 мм (2400 мм) | E35: 1548.177138 | F35: 1625.585995 | G35: 1702.994852 | H35: 1780.403709
A36: Наличник Neo телескоп 80*10 мм (2800 мм) | E36: 1866.295728 | F36: 1959.610514 | G36: 2052.925301 | H36: 2146.240087
A37: Ступенчатый наличник телескоп 100*14 мм (2180 мм) | E37: 1159.365528 | F37: 1217.333804 | G37: 1275.302081 | H37: 1333.270357
A38: Ступенчатый наличник телескоп 100*14 мм (2400 мм) | E38: 1286.612964 | F38: 1350.943612 | G38: 1415.27426 | H38: 1479.604909
A39: Ступенчатый наличник телескоп 100*14 мм (2800 мм) | E39: 1611.800856 | F39: 1692.390899 | G39: 1772.980942 | H39: 1853.570984
A40: Наличник телескоп с молдингом ХРОМ 80*10 (2180 мм) | E40: 1484.55342 | F40: 1558.781091 | G40: 1633.008762 | H40: 1707.236433
A41: Наличник телескоп с молдингом ЧЕРНЫЙ, ЗОЛОТО 80*10 (2100 мм) | E41: 1611.800856 | F41: 1692.390899 | G41: 1772.980942 | H41: 1853.570984
A42: Наличник телескоп с молдингом ХРОМ 80*10 (2400 мм) | E42: 1739.048292 | F42: 1826.000707 | G42: 1912.953121 | H42: 1999.905536
A43: Наличник телескоп с молдингом ЧЕРНЫЙ, ЗОЛОТО 80*10 (2440 мм) | E43: 1880.434332 | F43: 1974.456049 | G43: 2068.477765 | H43: 2162.499482
A44: Соединительная планка 2350*25 мм | E44: 58.649024 | F44: - | G44: - | H44: -
A46: Коробка
A48: Наименование | E48: Тип 1 | F48: Тип 2 | G48: Тип 3 | H48: Тип 4
A49: Коробка телескоп c фанерой (Под 38 мм полотно) 75*32 мм (2100 мм) | E49: 926.078562 | F49: 972.3824901 | G49: 1018.686418 | H49: 1064.990346
A50: Коробка телескоп с фанерой (Под 38 мм полотно) 75*32 мм (2440 мм) | E50: 1053.325998 | F50: 1105.992298 | G50: 1158.658598 | H50: 1211.324898
A51: Коробка телескоп с фанерой (Под 38 мм полотно) 75*32 мм (2800 мм) | E51: 1173.504132 | F51: 1232.179339 | G51: 1290.854545 | H51: 1349.529752
A52: Коробка телескоп с фанерой (Под 38 мм полотно) 75*32 мм (2950 мм) | E52: 1307.82087 | F52: 1373.211913 | G52: 1438.602957 | H52: 1503.994
A53: Коробка EVO телескоп из МДФ (Под 38 мм полотно) 75*32 мм (2100 мм) | E53: 1003.840884 | F53: 1054.032928 | G53: 1104.224972 | H53: 1154.417017
A54: Коробка EVO телескоп из МДФ (Под 38 мм полотно) 75*32 мм (2440 мм) | E54: 1131.08832 | F54: 1187.642736 | G54: 1244.197152 | H54: 1300.751568
A55: Коробка МДФ телескоп (Под 42 мм полотно) 75*32 мм (2100 мм) | E55: 1003.840884 | F55: 1054.032928 | G55: 1104.224972 | H55: 1154.417017
A56: Коробка МДФ телескоп (Под 42 мм полотно) 75*32 мм (2440 мм) | E56: 1138.157622 | F56: 1195.065503 | G56: 1251.973384 | H56: 1308.881265
A57: Коробка МДФ телескоп (Под 42 мм полотно) 75*32 мм (2800 мм) | E57: 1272.47436 | F57: 1336.098078 | G57: 1399.721796 | H57: 1463.345514
A58: Коробка МДФ телескоп (Под 42 мм полотно) 75*32 мм (2950 мм) | E58: 1399.721796 | F58: 1469.707886 | G58: 1539.693976 | H58: 1609.680065
A59: Коробка компланарная МДФ (Под 38 мм полотно) 75*32 мм (2100 мм) Устанавливаются только на скрытые петли k6360 или Armadillo U3D8000 | E59: 1010.910186 | F59: 1061.455695 | G59: 1112.001205 | H59: 1162.546714
A60: Коробка компланарная МДФ (Под 38 мм полотно) 75*32 мм (2440 мм) Устанавливаются только на скрытые петли k6360 или Armadillo U3D8000 | E60: 1124.019018 | F60: 1180.219969 | G60: 1236.42092 | H60: 1292.621871
A61: Коробка компланарная МДФ (Под 38 мм полотно) 75*32 мм (2800 мм) Устанавливаются только на скрытые петли k6360 или Armadillo U3D8000 | E61: 1286.612964 | F61: 1350.943612 | G61: 1415.27426 | H61: 1479.604909
A62: Коробка компланарная МДФ (Под 38 мм полотно) 75*32 мм (2950 мм) Устанавливаются только на скрытые петли k6360 или Armadillo U3D8000 | E62: 1413.8604 | F62: 1484.55342 | G62: 1555.24644 | H62: 1625.93946
A63: Коробка компланарная МДФ (Под 42 мм полотно) 75*32 мм (2100 мм) Устанавливаются только на скрытые петли k6360 или Armadillo U3D8000 | E63: 1095.74181 | F63: 1150.5289 | G63: 1205.315991 | H63: 1260.103081
A64: Коробка компланарная МДФ (Под 42 мм полотно) 75*32 мм (2440 мм) Устанавливаются только на скрытые петли k6360 или Armadillo U3D8000 | E64: 1215.919944 | F64: 1276.715941 | G64: 1337.511938 | H64: 1398.307936
A65: Коробка компланарная МДФ (Под 42 мм полотно) 75*32 мм (2950 мм) Устанавливаются только на скрытые петли k6360 или Armadillo U3D8000 | E65: 1512.830628 | F65: 1588.472159 | G65: 1664.113691 | H65: 1739.755222
A66: Короб двухцветный | E66: к стандартному коробу + 50%
A67: ЕВРОКОРОБ (упаковка) | E67: наценка +283 руб к комплекту короба с фурнитурой
J68: Калькулятор доборов
A69: Доборы
E70: 2.07 | F70: 2.44 | G70: 2.8 | H70: 3 | K70: Высота | L70: Ширина
A71: Наименование | E71: Тип 1 | F71: Тип 2 | G71: Тип 3 | H71: Тип 4 | K71: 2.07 | L71: 0.31
A72: Доборная доска МДФ 100*10 мм | E72: 674.463776 | F72: 708.1869648 | G72: 741.9101536 | H72: 775.6333424 | J72: Прямой добор
A73: Доборная доска МДФ 150*10 мм | E73: 835.748592 | F73: 877.5360216 | G73: 919.3234512 | H73: 961.1108808 | J73: Тип 1 | K73: Тип 2 | L73: Тип 3 | M73: Тип 4
A74: Доборная доска МДФ ( Ширина от 50 мм до 900 мм кратное 5 мм. ; Длина 2850 мм ) за 1 кв.м. | E74: 3137.722784 | F74: 3294.608923 | G74: 3451.495062 | H74: 3608.381202 | J74: =E74*K71*L71 -> 2013.47671 | K74: =F74*K71*L71 -> 2114.150546 | L74: =G74*K71*L71 -> 2214.824382 | M74: =H74*K71*L71 -> 2315.498217
A75: Доборная доска МДФ телескопический 90*10 мм (2070 мм) | E75: 711.119416 | F75: 746.6753868 | G75: 782.2313576 | H75: 817.7873284
A76: Доборная доска МДФ телескопический 130*10 мм (2070 мм) | E76: 872.404232 | F76: 916.0244436 | G76: 959.6446552 | H76: 1003.264867
A77: Доборная доска МДФ телескопический 170*10 мм (2070 мм) | E77: 1004.364536 | F77: 1054.582763 | G77: 1104.80099 | H77: 1155.019216
A78: Доборная доска МДФ телескопический 90*10 мм (2440 мм) | E78: 828.417464 | F78: 869.8383372 | G78: 911.2592104 | H78: 952.6800836 | J78: Правила пользования доборным калькулятором
A79: Доборная доска МДФ телескопический 130*10 мм (2440 мм) | E79: 1136.32484 | F79: 1193.141082 | G79: 1249.957324 | H79: 1306.773566 | J79: Калькулятор применяется только для доборов от 180 мм. На нестандартные доборы до 170 мм. Применяется наценка 30% к базовой цене.
A80: Доборная доска МДФ телескопический 170*10 мм (2440 мм) | E80: 1576.19252 | F80: 1655.002146 | G80: 1733.811772 | H80: 1812.621398
A81: Доборная доска МДФ телескопический 90*10 мм (2800 мм) | E81: 931.053256 | F81: 977.6059188 | G81: 1024.158582 | H81: 1070.711244
A82: Доборная доска МДФ телескопический 130*10 мм (2800 мм) | E82: 1334.265296 | F82: 1400.978561 | G82: 1467.691826 | H82: 1534.40509
A83: Доборная доска МДФ телескопический 170*10 мм (2800 мм) | E83: 1737.477336 | F83: 1824.351203 | G83: 1911.22507 | H83: 1998.098936
A84: Доборная доска МДФ телескопический 90*10 мм (3000 мм) | E84: 1019.026792 | F84: 1069.978132 | G84: 1120.929471 | H84: 1171.880811
A85: Доборная доска МДФ телескопический 130*10 мм (3000 мм) | E85: 1436.901088 | F85: 1508.746142 | G85: 1580.591197 | H85: 1652.436251 | J85: Добор телескоп
A86: Доборная доска МДФ телескопический 170*10 мм (3000 мм) | E86: 1869.43764 | F86: 1962.909522 | G86: 2056.381404 | H86: 2149.853286 | J86: Тип 1 | K86: Тип 2 | L86: Тип 3 | M86: Тип 4
A87: Доборная доска МДФ телескопический ( Ширина от 180 мм до 900 мм кратное 5 мм. ; Длина 2850 мм ) за 1 кв.м. | E87: 3804.855432 | F87: 3995.098204 | G87: 4185.340975 | H87: 4375.583747 | J87: =E87*K71*L71 -> 2441.575731 | K87: =F87*K71*L71 -> 2563.654517 | L87: =G87*K71*L71 -> 2685.733304 | M87: =H87*K71*L71 -> 2807.81209
A88: Доборная доска МДФ облицованный с 4-х сторон (кромка с 4-х сторон) | E88: 0.7
A89: Купейная планка 2070*130*10 (укутка со всех сторон) | E89: 1832.782 | F89: 1924.4211 | G89: 2016.0602 | H89: 2107.6993
A90: Высота нестандартных доборов фиксированная - 2070, 2440, 2800, 3000 | J90: Стоимость Доборов с наценкой за нестандарт по ширине
J91: Высота 2070
A92: Наценка h2070 | J92: Тип 1 | K92: Тип 2 | L92: Тип 3 | M92: Тип 4
A93: При заказе доборов телескопических по ширине от 50 мм до 85 мм применяется наценка к размеру 90 мм + 30% | J93: =E75*1.3 -> 924.4552408 | K93: =F75*1.3 -> 970.6780028 | L93: =G75*1.3 -> 1016.900765 | M93: =H75*1.3 -> 1063.123527
A94: При заказе доборов телескопических по ширине от 95 мм до 125 мм применяется наценка к размеру 130 мм + 30% | J94: 1134.125502 | K94: 1190.831777 | L94: 1247.538052 | M94: 1304.244327
A95: При заказе доборов телескопических по ширине от 135 мм до 165 мм применяется наценка к размеру 170 мм + 30% | J95: =E77*1.3 -> 1305.673897 | K95: =F77*1.3 -> 1370.957592 | L95: 1436.241286 | M95: 1501.524981
J97: Высота 2440
A98: Наценка h2440 | J98: Тип 1 | K98: Тип 2 | L98: Тип 3 | M98: Тип 4
A99: При заказе доборов телескопических по ширине от 50 мм до 85 мм применяется наценка к размеру 90 мм + 30% | J99: =E78*1.3 -> 1076.942703 | K99: =F78*1.3 -> 1130.789838 | L99: =G78*1.3 -> 1184.636974 | M99: 1238.484109
A100: При заказе доборов телескопических по ширине от 95 мм до 125 мм применяется наценка к размеру 130 мм + 30% | J100: 1477.222292 | K100: 1551.083407 | L100: 1624.944521 | M100: 1698.805636
A101: При заказе доборов телескопических по ширине от 135 мм до 165 мм применяется наценка к размеру 170 мм + 30% | J101: 2049.050276 | K101: 2151.50279 | L101: 2253.955304 | M101: 2356.407817
J102: Высота 2800
A103: Наценка h2800 | J103: Тип 1 | K103: Тип 2 | L103: Тип 3 | M103: Тип 4
A104: При заказе доборов телескопических по ширине от 50 мм до 85 мм применяется наценка к размеру 90 мм + 30% | J104: =E81*1.3 -> 1210.369233 | K104: =F81*1.3 -> 1270.887694 | L104: =G81*1.3 -> 1331.406156 | M104: 1391.924618
A105: При заказе доборов телескопических по ширине от 95 мм до 125 мм применяется наценка к размеру 130 мм + 30% | J105: =E82*1.3 -> 1734.544885 | K105: =F82*1.3 -> 1821.272129 | L105: =G82*1.3 -> 1907.999373 | M105: 1994.726618
A106: При заказе доборов телескопических по ширине от 135 мм до 165 мм применяется наценка к размеру 170 мм + 30% | J106: =E83*1.3 -> 2258.720537 | K106: =F83*1.3 -> 2371.656564 | L106: 2484.59259 | M106: =H83*1.3 -> 2597.528617
J108: Высота 3000
A109: Наценка h3000 | J109: Тип 1 | K109: Тип 2 | L109: Тип 3 | M109: Тип 4
A110: При заказе доборов телескопических по ширине от 50 мм до 85 мм применяется наценка к размеру 90 мм + 30% | J110: =E84*1.3 -> 1324.73483 | K110: =F84*1.3 -> 1390.971571 | L110: =G84*1.3 -> 1457.208313 | M110: 1523.445054
A111: При заказе доборов телескопических по ширине от 95 мм до 125 мм применяется наценка к размеру 130 мм + 30% | J111: =E85*1.3 -> 1867.971414 | K111: =F85*1.3 -> 1961.369985 | L111: 2054.768556 | M111: =H85*1.3 -> 2148.167127
A112: При заказе доборов телескопических по ширине от 135 мм до 165 мм применяется наценка к размеру 170 мм + 30% | J112: 2430.268932 | K112: =F86*1.3 -> 2551.782379 | L112: 2673.295825 | M112: 2794.809272
A115: Размеры коробок по высоте
A116: Короб 2100 мм | C116: Короб 2440 мм | E116: Короб 2800 мм | G116: Короб 2950 мм
A117: Дверь до 2050 | C117: От 2060 до 2390 | E117: от 2400 до 2750 | G117: от 2760 до 2850
A119: Размеры наличников по высоте
A120: Наличник 2150 мм | C120: Наличник 2440 мм | E120: Наличник 2800 мм | G120: Наличник 3000 мм
A121: Дверь до 2030 | C121: От 2040 до 2320 | E121: от 2330 до 2680 | G121: от 2690 до 2850
A123: Размеры доборов по высоте
A124: Добор 2070 мм | C124: Добор 2440 мм | E124: Добор 2800 мм | G124: Добор 3000 мм
A125: Дверь до 2020 | C125: От 2030 до 2390 | E125: от 2400 до 2750 | G125: от 2760 до 2800
A127: Полезные ссылки
A128: Навигатор | B128: Погонаж | C128: Накладки | D128: Доп. Ассортимент | E128: ПВХ | F128: Фурнитура | G128: Врезка | H128: Системы

Sheet Фурнитура
A3: Навигатор
A4: Фурнитура
A5: Ручки
A6: Наименование | B6: Наименование | C6: Наименование | D6: Наименование | E6: Наименование | F6: Склад | G6: Заказ
A7: Дверная ручка Morelli Luxury HORIZONT-SM NERO ХРОМ | F7: 6094.00015 | G7: 6825.280168
A8: Дверная ручка Morelli Luxury HORIZONT-SM NERO ЧЕРНЫЙ | F8: 2428.43615 | G8: 2719.848488
A9: Дверная ручка PUERTO ZERO (Аналог Morelli) ХРОМ ( Заявка принимается от 5 шт) | F9: 2618.26 | G9: 2932.4512
A10: Дверная ручка PUERTO ZERO (Аналог Morelli) ЧЕРНЫЙ ( Заявка принимается от 5 шт) | F10: 2166.61015 | G10: 2426.603368
A11: Петли
A12: Наименование | B12: Наименование | C12: Наименование | D12: Наименование | E12: Наименование | F12: Склад | G12: Заказ
A13: Скрытые петли AGB 3.0 ХРОМ | F13: 2074.97105 | G13: 2323.967576
A14: Скрытые петли AGB 3.0 ЧЕРНЫЙ | F14: 2264.7949 | G14: 2536.570288
A15: Скрытые петли AGB 2.0 ХРОМ | F15: 2513.5296 | G15: 2815.153152
A16: Скрытые петли AGB 2.0 ЧЕРНЫЙ | F16: 2768.80995 | G16: 3101.067144
A17: Скрытые петли KUBICA (KRONA KOBLENZ 2760) ХРОМ | F17: 3017.54465 | G17: 3379.650008
A18: Скрытые петли KUBICA (KRONA KOBLENZ 2760) ЧЕРНЫЙ | F18: 3141.912 | G18: 3518.94144
A19: Скрытые петли KUBICA (KRONA KOBLENZ 2760) МАТОВОЕ ЗОЛОТО | F19: 3770.2944 | G19: 4222.729728
A20: Скрытые петли Morelli CH-01 (ХРОМ) (Полный аналог КК2760) | F20: 1963.695 | G20: 2199.3384
A21: Скрытые петли Morelli CH-01 (ЧЕРНАЯ) (Полный аналог КК2760) | F21: 1963.695 | G21: 2199.3384
A22: Скрытые петли Morelli CH-01 (ЗОЛОТО) (Полный аналог КК2760) | F22: 2094.608 | G22: 2345.96096
A23: Скрытая петля Armadillo U3D2000 ХРОМ (Полный аналог AGB 2.0) | F23: 1047.304 | G23: 1172.98048
A24: Скрытая петля Armadillo U3D2000 ЧЕРНЫЙ (Полный аналог AGB 2.0) | F24: 1047.304 | G24: 1172.98048
A25: Скрытая петля Armadillo U3D2000 ЗОЛОТО (Полный аналог AGB 2.0) | F25: 1374.5865 | G25: 1539.53688
A26: Реверсивная скрытая петля Armadillo U3D3000 ХРОМ | F26: 1047.304 | G26: 1172.98048
A27: Реверсивная скрытая петля Armadillo U3D3000 ЧЕРНЫЙ | F27: 1047.304 | G27: 1172.98048
A28: Реверсивная скрытая петля Armadillo U3D3000 ЗОЛОТО | F28: 1374.5865 | G28: 1539.53688
A29: Реверсивная скрытая петля KUBICA (KRONA KOBLENZ 2460) ХРОМ | F29: 2264.7949 | G29: 2536.570288
A30: Реверсивная скрытая петля KUBICA (KRONA KOBLENZ 2460) ЧЕРНЫЙ | F30: 2264.7949 | G30: 2536.570288
A31: Реверсивная скрытая петля KUBICA (KRONA KOBLENZ 2460) МАТОВОЕ ЗОЛОТО | F31: 2264.7949 | G31: 2536.570288
A32: Cкрытая петля KUBICA для компланарного погонажа (KRONA KOBLENZ 6360) ХРОМ | F32: 3207.3685 | G32: 3592.25272
A33: Cкрытая петля KUBICA для компланарного погонажа (KRONA KOBLENZ 6360) ЧЕРНЫЙ | F33: 3397.19235 | G33: 3804.855432
A34: Cкрытая петля Armadillo U3D8000 ХРОМ для компланарного погонажа | F34: 3083.00115 | G34: 3452.961288
A35: Cкрытая петля Armadillo U3D8000 ЧЕРНЫЙ для компланарного погонажа | F35: 3207.3685 | G35: 3592.25272
A36: Cкрытая петля Armadillo U3D8000 ЗОЛОТО для компланарного погонажа | F36: 3456.1032 | G36: 3870.835584
A37: Замки
A38: Магнитный замок Vantage MC96 под фиксатор (ХРОМ) | F38: 458.1955 | G38: 513.17896
A39: Магнитный замок Vantage МC96 под фиксатор (ЧЕРНЫЙ) | F39: 458.1955 | G39: 513.17896
A40: Магнитный замок Vantage МC96 под фиксатор (ЗОЛОТО) | F40: 589.1085 | G40: 659.80152
A41: Автопорог
A42: Наименование | B42: Наименование | C42: Наименование | D42: Наименование | E42: Наименование | F42: Цена
A43: Автопорог Armadillo | F43: 2827.4427
A44: Стабилизатор
A45: Наименование | B45: Наименование | C45: Наименование | D45: Наименование | E45: Наименование | F45: Цена
A46: Cтабилизатор Morelli (2 шт) | F46: 3265.696318
A47: Вентеляционные решетки
A48: Наименование | B48: =A48 -> Наименование | C48: =A48 -> Наименование | D48: =A48 -> Наименование | E48: =A48 -> Наименование | F48: Цена
A49: ВЕНТИЛЯЦИОННАЯ РЕШЕТКА 480X80мм БЕЛАЯ (комплект 2 шт) | F49: 1682.328406
A50: ВЕНТИЛЯЦИОННАЯ РЕШЕТКА 480х60мм ЧЕРНАЯ (комплект 2 шт) | F50: 1809.563328
A51: ВЕНТИЛЯЦИОННАЯ РЕШЕТКА 480X80мм СВЕТЛЫЙ АНТРАЦИТ (комплект 2 шт) | F51: 1979.20989

Sheet Компланар REVERS PRO
A3: Навигатор
A4: Компланар REVERS PRO
A6: Комплектация:
A7: 1. Дверное полотно 42 мм с четвертью обратного открывания c алюминиевой кромкой с 4-х сторон
A8: 2. Коробка 42 мм компланарная РЕВЕРС PRO(комплект 3 шт)
A9: 3. Наличник компланар РЕВЕРС PRO с уплотнителем 10 мм (Без фальш фрамуги - комплект 3 шт ; с фальш фрамугой - 2 шт)
A10: 4. Фальш Фрамуга (по желанию)
A11: 5. Наличник телескоп (комплект 3 шт)
A12: 6. Скрытая петля KRONA KOBLENZ 2460 / Armadillo U3D3000
A13: 7. Замок врезной магнитный
A15: Полотно
A16: Наименование | D16: Наценка к базовой стоимости
A17: Дверное полотно 42 мм с четвертью обратного открывания с алюминиевой кромкой с 4-х сторон (Все модели, кроме коллекции ALLURE, ART LINE, IMPULS, LEVEL) (для моделей INTAKE, COMDI, MOTIVER, BLEND, RIVA, ASTI, Solo необходим эскиз для реверса (уменьшаем рисунок со всех сторон на 12мм) | D17: 4382.96724
A18: Важно! При заказе компланарных дверей с реверсивным открыванием учитывать, что общий размер (по высоте) с титульной стороны меньше на 10 мм из за конструктива притвора конструкции.
A20: Наценки к полотну
A21: Высота полотна 2100 мм-2350мм | D21: 0.2
A22: Высота полотна 2360 мм-2650мм | D22: 0.5
A23: Усиленное полотно | D23: 2120.7906
A24: Усиленная упаковка полотна | D24: 706.9302
A25: Максимальная высота полотна на реверс компланар PRO - 2650 мм.
A26: Погонаж
A27: Наименование | B27: Цена
B28: Тип 1 | C28: Тип 2 | D28: Тип 3 | E28: Тип 4
A29: Наличник компланар РЕВЕРС PRO 2180*80*10 (При алюмюминиевой кромке хром, черный и золотой) | B29: 1293.682266 | C29: 1358.366379 | D29: 1423.050493 | E29: 1487.734606
A30: Наличник компланар РЕВЕРС PRO 2440*80*10 (При алюмюминиевой кромке хром, черный и золотой) | B30: 1399.721796 | C30: 1469.707886 | D30: 1539.693976 | E30: 1609.680065
A31: Наличник компланар РЕВЕРС PRO 2800*80*10 (При алюмюминиевой кромке хром, черный и золотой) | B31: 1590.59295 | C31: 1670.122597 | D31: 1749.652245 | E31: 1829.181893
A32: Коробка 42 мм компланарная РЕВЕРС PRO (2100 мм) | B32: 1505.761326 | C32: 1581.049392 | D32: 1656.337459 | E32: 1731.625525
A33: Коробка 42 мм компланарная РЕВЕРС PRO (2440 мм) | B33: 1661.28597 | C33: 1744.350268 | D33: 1827.414567 | E33: 1910.478866
A34: Коробка 42 мм компланарная РЕВЕРС PRO (2800 мм) | B34: 1894.572936 | C34: 1989.301583 | D34: 2084.03023 | E34: 2178.758876
A36: Схема

Sheet РЕВЕРС ПВХ (42 мм 59 мм)
A3: Навигатор
A4: РЕВЕРС ПВХ 42 мм/59 мм
A5: РЕВЕРС ПВХ (42 мм)
A6: Комплектация:
A7: 1. Дверное полотно 42 мм с четвертью обратного открывания алюминиевой кромкой с 4-х сторон
A8: 2. Скрытый короб SECRET REVERS СLASSIC (комплект 2,5 шт)
A9: 6. Реверсивная скрытая петля Armadillo U3D3000
A10: 7. Замок врезной магнитный
A11: Полотно
A12: Наименование | D12: Наценка к базовой стоимости
A13: Дверное полотно 42 мм с четвертью обратного открывания с алюминиевой кромкой с 4-х сторон (Все модели, кроме коллекции ALLURE, ART LINE, IMPULS, LEVEL) ( для моделей INTAKE, COMDI, MOTIVER, BLEND, RIVA, ASTI, Solo необходим эскиз для реверса (уменьшаем рисунок со всех сторон на 12мм) | D13: 4382.96724
A14: Наценки к полотну
A15: Высота полотна 2100 мм-2350мм | D15: 0.2
A16: Высота полотна 2360 мм-2750мм | D16: 0.5
A17: Высота полотна 2760 мм-2850мм | D17: 0.8
A18: Ширина полотна 400-900 (шаг 10) | D18: 0
A19: Усиленное полотно | D19: 2120.7906
A20: Усиленная упаковка полотна | D20: 706.9302
A21: Скрытый короб SECRET
A22: SECRET REVERS СLASSIC 42 мм | B22: Цена (Компл. 2,5) | D22: Цена (Шт.)
A23: Скрытый короб SECRET REVERS СLASSIC 42 мм 2100 мм (Хром матовый) | B23: 6079.59972 | D23: 2431.839888
A24: Скрытый короб SECRET REVERS СLASSIC 42 мм 2450 мм (Хром матовый) | B24: 6659.282484 | D24: 2663.712994
A25: Скрытый короб SECRET REVERS СLASSIC 42 мм 2850 мм (Хром матовый) | B25: 8815.419594 | D25: 3526.167838
A26: Скрытый короб SECRET REVERS СLASSIC 42 мм 2950 мм (Хром матовый) | B26: 10335.31952 | D26: 4134.12781
A27: Опции и наценки
A28: Черный цвет (за 1 короб) | D28: 226.217664
A29: Черный цвет (за комплект 2,5 шт) | D29: 565.54416
A30: Золотой цвет (за 1 короб) | D30: 226.217664
A31: Золотой цвет (за комплект 2,5 шт) | D31: 565.54416
A32: Шампань цвет (за 1 короб) | D32: 353.4651
A33: Шампань цвет (за комплект 2,5 шт) | D33: 883.66275
A35: РЕВЕРС ПВХ (59 мм)
A36: Комплектация:
A37: 1. Дверное полотно 59 мм с четвертью обратного открывания с уплотнителем и алюминиевой кромкой с 3-х сторон
A38: 2. Скрытый короб SECRET LITE (59 мм)/ Скрытый короб SECRET STANDART 59 мм (комплект 2,5 шт)
A39: 6. Скрытые петли Armadillo U3D2000/Скрытые петли KRONA KOBLENZ 2760
A40: 7. Замок врезной магнитный
A41: Полотно
A42: Наименование | D42: Наценка к базовой стоимости
A43: Дверное полотно 59 мм с четвертью обратного открывания с алюминиевой кромкой с 3-х сторон (Все модели, кроме коллекции ALLURE, ART LINE, IMPULS, LEVEL) ( для моделей INTAKE, COMDI, MOTIVER, BLEND, RIVA, ASTI, Solo необходим эскиз для реверса (уменьшаем рисунок со всех сторон на 12мм) | D43: 5471.639748
A44: Наценки к полотну
A45: Дополнительная кромка снизу на дверь 59 мм. | D45: 1392
A46: Высота полотна 2100 мм-2350мм | D46: 0.2
A47: Высота полотна 2360 мм-2750мм | D47: 0.5
A48: Высота полотна 2760 мм-2850мм | D48: 0.8
A49: Усиленное полотно | D49: 2120.7906
A50: Усиленная упаковка полотна | D50: 706.9302
A51: Скрытый короб SECRET
B52: Цена (Компл. 2,5) | D52: Цена (Шт.)
A53: Скрытый короб SECRET STANDART 59 мм 2100 мм (Хром матовый) Только под петли KK2760 (Невозможно изготовить в цвете золото) | B53: 6079.59972 | D53: 2431.839888
A54: Скрытый короб SECRET STANDART 59 мм 2450 мм (Хром матовый) Только под петли KK2760 (Невозможно изготовить в цвете золото) | B54: 6659.282484 | D54: 2663.712994
A55: Скрытый короб SECRET STANDART 59 мм 2850 мм (Хром матовый) Только под петли KK2760 (Невозможно изготовить в цвете золото) | B55: 8815.419594 | D55: 3526.167838
A56: Скрытый короб SECRET STANDART 59 мм 2950 мм (Хром матовый) Только под петли KK2760 (Невозможно изготовить в цвете золото) | B56: 10335.31952 | D56: 4134.12781
A57: Скрытый короб SECRET LITE (59 мм) 2100 мм (Хром матовый) | B57: 6079.59972 | D57: 2431.839888
A58: Скрытый короб SECRET LITE (59 мм) 2450 мм (Хром матовый) | B58: 6659.282484 | D58: 2663.712994
A59: Скрытый короб SECRET LITE (59 мм) 2850 мм (Хром матовый) | B59: 8815.419594 | D59: 3526.167838
A60: Скрытый короб SECRET LITE 59 мм 2950 мм (Хром матовый) | B60: 10335.31952 | D60: 4134.12781
A61: Опции и наценки
A62: Черный цвет (за 1 короб) | D62: 226.217664
A63: Черный цвет (за комплект 2,5 шт) | D63: 565.54416
A64: Золотой цвет (за 1 короб) | D64: 226.217664
A65: Золотой цвет (за комплект 2,5 шт) | D65: 565.54416
A66: Шампань цвет (за 1 короб) | D66: 353.4651
A67: Шампань цвет (за комплект 2,5 шт) | D67: 883.66275

Sheet SOLO
A1: Навигатор
A2: Коллекция SOLO
A14: SOLO 1 | B14: SOLO 2 | C14: SOLO 3 | D14: SOLO 4 | E14: SOLO 5 | F14: SOLO 6 | G14: SOLO 7 | H14: SOLO 8
A26: SOLO 8M | B26: SOLO 9 | C26: SOLO 9M | D26: SOLO 10 | E26: SOLO 10M | F26: SOLO 11 | G26: SOLO 12
A27: Техническая информация (нажмите)
A29: Cтоимость
A30: Модель | E30: Тип 1 | F30: Тип 2 | G30: Тип 3 | H30: Тип 4
A31: Solo 1 - Solo 12 | E31: 14704.14816 | F31: 15340.38534 | G31: 15835.23648 | H31: 16400.78064
A32: Solo 8M, Solo 9M, Solo 10M | E32: 15764.54346 | F32: 16400.78064 | G32: 16895.63178 | H32: 17461.17594
A33: Опции и наценки
A34: Алюминиевая кромка с 2-х сторон | H34: 2120.7906
A35: Алюминиевая кромка по периметру | H35: 3463.95798
A36: Наценка на полотно толщиной 42 мм (без алюминиевой кромки) | H36: 1413.8604
A37: Наценка за черную и золотую алюминиевую кромку (Оттенок золотой кромки может отличаться от партии к партии) | H37: 565.54416
A38: Наценка за алюминиевую кромку шампань | H38: 848.31624
A39: Укутка вверх/низ | H39: 282.77208
A40: Усиленное полотно ( + 20 кг) | H40: 2120.7906
A41: Дополнительная упаковка для полотна | H41: 706.9302
A42: Шумоизоляция фибролитовой плитой | H42: 4241.5812
A43: Наполнение белтермо | H43: 4241.5812
A44: Cтабилизатор Morelli (Рекомендуем для полотен выше 2360 мм) Комплект 2 шт | H44: 3266.017524
A45: Молдинг | D45: Модель | G45: Наценка
A46: молдинг 10*2 ХРОМ | D46: Solo 8M, Solo 9M, Solo 10M | G46: 0 | H46: 0
A47: молдинг 10*2 ЧЕРНЫЙ | G47: 282.77208 | H47: 399.8002461
A48: молдинг 10*2 ЗОЛОТО | G48: 565.54416 | H48: 799.6004923
A49: Наценки за нестандартные размеры
A50: Ширина
A51: 400-950 (шаг 10 мм) | E51: Без наценки
A52: Высота
A53: 1800 - 2050 (шаг 10 мм) | E53: Без наценки
A54: до 1800 мм, свыше 2050 мм - 2350 мм | E54: 0.2
A55: свыше 2360 мм - 2750 мм | E55: 50% (к базовой цене)
A56: свыше 2760 мм - 2850 мм (Укутка вверх/низ - НЕДОСТУПНА) | E56: 80% (к базовой цене)
A57: При заказе дверей высотой выше 2360, необходимо обязательно заказывать стабилизатор + врезку cтабилизатора
A59: Важно!!! При заказе двери выше 2360 мм допуск по кривизне составляет 3 мм
A61: Погонажные изделия (Стандарт) | E61: Тип 1 | F61: Тип 2 | G61: Тип 3 | H61: Тип 4
A62: Наличник МДФ телескоп 80*10 мм | E62: 629.167878 | F62: 660.6262719 | G62: 692.0846658 | H62: 723.5430597
A63: Коробка МДФ телескоп (Под 38 мм полотно) 75*32 мм | E63: 926.078562 | F63: 972.3824901 | G63: 1018.686418 | H63: 1064.990346
A64: Доборная доска МДФ телескопический 90*10 мм | E64: 711.119416 | F64: 746.6753868 | G64: 782.2313576 | H64: 817.7873284
A65: Доборная доска МДФ телескопический 130*10 мм | E65: 872.404232 | F65: 916.0244436 | G65: 959.6446552 | H65: 1003.264867
A66: Доборная доска МДФ телескопический 170*10 мм | E66: 1004.364536 | F66: 1054.582763 | G66: 1104.80099 | H66: 1155.019216
A67: Плинтус, 80*16*2070 мм., шт. | E67: 872.404232 | F67: 916.0244436 | G67: 959.6446552 | H67: 1003.264867
A68: Комплект крепежей (1 плинтус - 1 комплект (5 шт.) | E68: 205.271584 | F68: - | G68: - | H68: -
A69: Технические особенности
A70: Толщина полотна - 38 мм / С алюминиевой кромкой - 42 мм
A71: Полезные ссылки
A72: Навигатор | B72: Погонаж | C72: Накладки | D72: Доп. Ассортимент | E72: ПВХ | F72: Фурнитура | G72: Врезка | H72: Системы
A75: Техническая информация
A76: Модель | C76: Применяемость в реверс компланар | E76: Обязательность сторонности открывания (без врезки) | G76: Применяемость стабилизатора
A77: Solo 1 - Solo 12 | C77: да, НО рисунок уменьшается со всех сторон на 12мм | E77: нет | G77: да

Sheet ASTI
A1: Навигатор
A2: Коллекция ASTI
A14: ASTI 1 | B14: ASTI 2 | C14: ASTI 3 | D14: ASTI 4 | E14: ASTI 5 | F14: ASTI 6 | G14: ASTI 7 | H14: ASTI 8
D25: ASTI 9 | E25: ASTI 10
A26: Техническая информация (нажмите)
A28: Cтоимость
A29: Модель | E29: Тип 1 | F29: Тип 2 | G29: Тип 3 | H29: Тип 4
A30: Asti 1 - Asti 10 (ДГ) | E30: 13360.98078 | F30: 13997.21796 | G30: 14492.0691 | H30: 15057.61326
A31: Укутка вверх/низ и алюминиевая кромка с 4-х сторон НЕДОСТУПНА на всех моделях
A34: При заказе компланарного погнажна на данную коллекцию, врезка возможно только под петли Armadillo U3D8000
A35: Опции и наценки
A36: Алюминиевая кромка с 2-х сторон | H36: 2120.7906
A37: Алюминиевая кромка по периметру - НЕДОСТУПНА | H37: 3463.95798
A38: Наценка на полотно толщиной 42 мм (без алюминиевой кромки) | H38: 1413.8604
A39: Наценка за черную и золотую алюминиевую кромку (Оттенок золотой кромки может отличаться от партии к партии) | H39: 565.54416
A40: Наценка за алюминиевую кромку шампань | H40: 848.31624
A41: Укутка вверх/низ - НЕДОСТУПНА | H41: 282.77208
A42: Усиленное полотно ( + 20 кг) | H42: 2120.7906
A43: Дополнительная упаковка для полотна | H43: 706.9302
A44: Шумоизоляция фибролитовой плитой | H44: 4241.5812
A45: Наполнение белтермо | H45: 4241.5812
A46: Cтабилизатор Morelli (Рекомендуем для полотен выше 2360 мм) Комплект 2 шт | H46: 3386.981136
A47: Наценки за нестандартные размеры
A48: Ширина
A49: 400-950 (шаг 10 мм) | E49: Без наценки
A50: Высота
A51: 1800 - 2050 (шаг 10 мм) | E51: Без наценки
A52: до 1800 мм, свыше 2050 мм - 2350 мм | E52: 0.2
A53: свыше 2360 мм - 2750 мм | E53: 50% (к базовой цене)
A54: свыше 2760 мм - 2850 мм (Укутка вверх/низ - НЕДОСТУПНА) | E54: 80% (к базовой цене)
A55: При заказе дверей высотой выше 2360, необходимо обязательно заказывать стабилизатор + врезку cтабилизатора
A57: Важно!!! При заказе двери выше 2360 мм допуск по кривизне составляет 3 мм
A59: Погонажные изделия (Стандарт) | E59: Тип 1 | F59: Тип 2 | G59: Тип 3 | H59: Тип 4
A60: Наличник МДФ телескоп 80*10 мм | E60: 629.167878 | F60: 660.6262719 | G60: 692.0846658 | H60: 723.5430597
A61: Коробка МДФ телескоп (Под 38 мм полотно) 75*32 мм | E61: 926.078562 | F61: 972.3824901 | G61: 1018.686418 | H61: 1064.990346
A62: Доборная доска МДФ телескопический 90*10 мм | E62: 711.119416 | F62: 746.6753868 | G62: 782.2313576 | H62: 817.7873284
A63: Доборная доска МДФ телескопический 130*10 мм | E63: 872.404232 | F63: 916.0244436 | G63: 959.6446552 | H63: 1003.264867
A64: Доборная доска МДФ телескопический 170*10 мм | E64: 1004.364536 | F64: 1054.582763 | G64: 1104.80099 | H64: 1155.019216
A65: Плинтус, 80*16*2070 мм., шт. | E65: 872.404232 | F65: 916.0244436 | G65: 959.6446552 | H65: 1003.264867
A66: Комплект крепежей (1 плинтус - 1 комплект (5 шт.) | E66: 205.271584 | F66: - | G66: - | H66: -
A67: Технические особенности
A68: Толщина полотна - 38 мм / С алюминиевой кромкой - 42 мм
A69: Полезные ссылки
A70: Навигатор | B70: Погонаж | C70: Накладки | D70: Доп. Ассортимент | E70: ПВХ | F70: Фурнитура | G70: Врезка | H70: Системы
A72: Техническая информация
A73: Модель | C73: Применяемость в реверс компланар | E73: Обязательность сторонности открывания (без врезки) | G73: Применяемость стабилизатора
A74: ASTI 1 - ASTI 10 | C74: да, НО рисунок уменьшается со всех сторон на 12мм | E74: нет | G74: да

Sheet AERO
A1: Навигатор
A2: Коллекция AERO
D13: AERO2 ДГ | E13: AERO 3 ДГ | F13: AERO 4 ДГ | G13: AERO 5 ДГ
D24: AERO 2 ДОВ | E24: AERO 3 ДОВ | F24: AERO 4 ДОВ | G24: AERO 5 ДОВ
D35: AERO 2 ДО | E35: AERO 3 ДО | F35: AERO 4 ДО | G35: AERO 5 ДО
A36: Техническая информация (нажмите)
A38: Cтоимость
A39: Модель | F39: Тип 1 | G39: Тип 2 | H39: Тип 3 | I39: Тип 4
A40: Aero 2, Aero 3, Aero 4, Aero 5 (ДГ) | F40: 12512.66454 | G40: 13148.90172 | H40: 13643.75286 | I40: 14209.29702
A41: ДОВ
A42: Aero 2, Aero 3, Aero 4, Aero 5 (ДОВ) | F42: 17107.71084 | G42: 17743.94802 | H42: 18238.79916 | I42: 18804.34332
A43: ДО
A44: Aero 2, Aero 3, Aero 4, Aero 5 (ДО) | F44: 15481.77138 | G44: 16118.00856 | H44: 16612.8597 | I44: 17178.40386
A46: ВНИМАНИЕ! ДОВ ( дверь открытая вставка) - возможно исполнить двухцветную дверь
A47: Если в варианте ДОВ присутствуют ПВХ с двух разных ТИПов, то стоимость считается по самой дорогой
A49: NOVA ДО и ДОВ - врезка стабилизатова невозможна.
B50: Если в варианте ДОВ присутствуют ПВХ с двух разных ТИПов, то стоимость считается по самой дорогой
A52: Стекло | E52: Модель | H52: Наценка
A53: Белое М1 (матирование с 1 стороны) | E53: Все модели | H53: 0
A54: Рефлекторное стекло | H54: 2120.7906
A55: Рифленное стекло ФЛУТС | H55: 3534.651
A56: Стекло Бронза, графит (Наценка к стеклу дополнительно) | H56: 1413.8604
A57: Рифленное Стекло ФЛУТС графит (Наценка к стеклу дополнительно) | H57: 1413.8604
A58: Рифленное Стекло ФЛУТС бронза (Наценка к стеклу дополнительно) | H58: 4241.5812
A59: Стекло кафедрал | H59: 7776.2322
A60: Опции и наценки
A61: Укутка вверх/низ | I61: 282.77208
A62: Усиленное полотно ( + 20 кг) | I62: 2120.7906
A63: Алюминиевая кромка с 2-х сторон | I63: 2120.7906
A64: Алюминиевая кромка по периметру | I64: 3463.95798
A65: Наценка за черную и золотую алюминиевую кромку (Оттенок золотой кромки может отличаться от партии к партии) | I65: 565.54416
A66: Наценка за алюминиевую кромку шампань | I66: 848.31624
A67: Наценка на полотно толщиной 42 мм (без алюминиевой кромки) | I67: 1413.8604
A68: Дополнительная упаковка для полотна | I68: 706.9302
A69: Шумоизоляция фибролитовой плитой | I69: 4241.5812
A70: Наполнение белтермо | I70: 4241.5812
A71: Cтабилизатор Morelli (Рекомендуем для полотен выше 2360 мм) Комплект 2 шт | I71: 3386.981136
A72: Наценки за нестандартные размеры
A73: Ширина
A74: 400-950 (шаг 10 мм) | F74: Без наценки
A75: Высота
A76: 1800 - 2050 (шаг 10 мм) | F76: Без наценки
A77: до 1800 мм, свыше 2050 мм - 2350 мм | F77: 0.2
A78: свыше 2360 мм - 2750 мм | F78: 50% (к базовой цене)
A79: свыше 2760 мм - 2850 мм (Укутка вверх/низ - НЕДОСТУПНА) | F79: 80% (к базовой цене)
A80: При заказе дверей высотой выше 2360, необходимо обязательно заказывать стабилизатор + врезку cтабилизатора
A82: Важно!!! При заказе двери выше 2360 мм допуск по кривизне составляет 3 мм
A84: Погонажные изделия (Стандарт) | F84: Тип 1 | G84: Тип 2 | H84: Тип 3 | I84: Тип 4
A85: Наличник МДФ телескоп 80*10 мм | F85: 629.167878 | G85: 660.6262719 | H85: 692.0846658 | I85: 723.5430597
A86: Коробка МДФ телескоп (Под 38 мм полотно) 75*32 мм | F86: 926.078562 | G86: 972.3824901 | H86: 1018.686418 | I86: 1064.990346
A87: Доборная доска МДФ телескопический 90*10 мм | F87: 711.119416 | G87: 746.6753868 | H87: 782.2313576 | I87: 817.7873284
A88: Доборная доска МДФ телескопический 130*10 мм | F88: 872.404232 | G88: 916.0244436 | H88: 959.6446552 | I88: 1003.264867
A89: Доборная доска МДФ телескопический 170*10 мм | F89: 1004.364536 | G89: 1054.582763 | H89: 1104.80099 | I89: 1155.019216
A90: Плинтус, 80*16*2070 мм., шт. | F90: 872.404232 | G90: 916.0244436 | H90: 959.6446552 | I90: 1003.264867
A91: Комплект крепежей (1 плинтус - 1 комплект(5 шт.) | F91: 205.271584 | G91: - | H91: - | I91: -
A92: Полезные ссылки
A93: Навигатор | C93: Погонаж | D93: Накладки | E93: Доп. Ассортимент | F93: ПВХ | G93: Фурнитура | H93: Врезка | I93: Системы
A95: Техническая информация
A96: Модель | C96: Применяемость в реверс компланар | E96: Обязательность сторонности открывания (без врезки) | G96: Применяемость стабилизатора
A97: Aero 2,3,4,5 (ДГ) | C97: да | E97: нет | G97: да
A98: Aero 2,3,4,5 (ДОВ) | C98: да | E98: нет | G98: нет
A99: Aero 2,3,4,5 (ДО) | C99: да | E99: нет | G99: нет

Sheet ATLAS
A1: Навигатор
A2: Коллекция ATLAS
B14: ATLAS 1 | C14: ATLAS 1.1 | D14: ATLAS 2 | E14: ATLAS 2.1 | F14: ATLAS 3 | G14: ATLAS 3.1
B26: ATLAS Lite 1 | C26: ATLAS Lite 1.1 | D26: ATLAS Lite 2 | E26: ATLAS Lite 2.1 | F26: ATLAS Lite 3 | G26: ATLAS Lite 3.1
A28: Техническая информация (нажмите)
A30: Cтоимость
A31: Модель | E31: Тип 1 | F31: Тип 2 | G31: Тип 3 | H31: Тип 4
A32: Все модели | E32: 13148.90172 | F32: 13785.1389 | G32: 14279.99004 | H32: 14845.5342
A33: Укутка вверх/низ и алюминиевая кромка НЕДОСТУПНА на моделях Atlas 1, Atlas 1.1, Atlas 3, Atlas 3.1, Atlas Lite 1, Atlas Lite 1.1, Atlas Lite 3, Atlas Lite 3.1
A36: Опции и наценки
A37: Алюминиевая кромка с 2-х сторон | H37: 2120.7906
A38: Алюминиевая кромка по периметру | H38: 3463.95798
A39: Наценка на полотно толщиной 42 мм (без алюминиевой кромки) | H39: 1413.8604
A40: Наценка за черную и золотую алюминиевую кромку (Оттенок золотой кромки может отличаться от партии к партии) | H40: 565.54416
A41: Наценка за алюминиевую кромку шампань | H41: 848.31624
A42: Укутка вверх/низ | H42: 282.77208
A43: Усиленное полотно ( + 20 кг) | H43: 2120.7906
A44: Дополнительная упаковка для полотна | H44: 706.9302
A45: Шумоизоляция фибролитовой плитой | H45: 4241.5812
A46: Наполнение белтермо | H46: 4241.5812
A47: Cтабилизатор Morelli (Рекомендуем для полотен выше 2360 мм) Комплект 2 шт | H47: 3386.981136
A48: Наценки за нестандартные размеры
A49: Ширина
A50: 400-950 (шаг 10 мм) | E50: Без наценки
A51: Высота
A52: 1800 - 2050 (шаг 10 мм) | E52: Без наценки
A53: до 1800 мм, свыше 2050 мм - 2350 мм | E53: 0.2
A54: свыше 2360 мм - 2750 мм | E54: 50% (к базовой цене)
A55: свыше 2760 мм - 2850 мм (Укутка вверх/низ - НЕДОСТУПНА) | E55: 80% (к базовой цене)
A56: При заказе дверей высотой выше 2360, необходимо обязательно заказывать стабилизатор + врезку cтабилизатора
A58: Важно!!! При заказе двери выше 2360 мм допуск по кривизне составляет 3 мм
A60: Погонажные изделия (Стандарт) | E60: Тип 1 | F60: Тип 2 | G60: Тип 3 | H60: Тип 4
A61: Наличник МДФ телескоп 80*10 мм | E61: 629.167878 | F61: 660.6262719 | G61: 692.0846658 | H61: 723.5430597
A62: Коробка МДФ телескоп (Под 38 мм полотно) 75*32 мм | E62: 926.078562 | F62: 972.3824901 | G62: 1018.686418 | H62: 1064.990346
A63: Доборная доска МДФ телескопический 90*10 мм | E63: 711.119416 | F63: 746.6753868 | G63: 782.2313576 | H63: 817.7873284
A64: Доборная доска МДФ телескопический 130*10 мм | E64: 872.404232 | F64: 916.0244436 | G64: 959.6446552 | H64: 1003.264867
A65: Доборная доска МДФ телескопический 170*10 мм | E65: 1004.364536 | F65: 1054.582763 | G65: 1104.80099 | H65: 1155.019216
A66: Плинтус, 80*16*2070 мм., шт. | E66: 872.404232 | F66: 916.0244436 | G66: 959.6446552 | H66: 1003.264867
A67: Комплект крепежей (1 плинтус - 1 комплект(5 шт.) | E67: 205.271584 | F67: - | G67: - | H67: -
A68: Технические особенности
A69: Толщина полотна - 38 мм / С алюминиевой кромкой - 42 мм
A70: Полезные ссылки
A71: Навигатор | B71: Погонаж | C71: Накладки | D71: Доп. Ассортимент | E71: ПВХ | F71: Фурнитура | G71: Врезка | H71: Системы
A73: Техническая информация
A74: Модель | C74: Применяемость в реверс компланар | E74: Обязательность сторонности открывания (без врезки) | G74: Применяемость стабилизатора
A75: Все модели | C75: да | E75: нет | G75: да

Sheet INTAKE
A1: Навигатор
A2: Коллекция INTAKE
A14: INTAKE 1 | B14: INTAKE 2 | C14: INTAKE 3 | D14: INTAKE 4 | E14: INTAKE 5 | F14: INTAKE 6 | G14: INTAKE 7
A15: Техническая информация (нажмите)
A17: Cтоимость
A18: Модель | E18: Тип 1 | F18: Тип 2 | G18: Тип 3 | H18: Тип 4
A19: INTAKE 1, INTAKE 3 | E19: 15269.69232 | F19: 15905.9295 | G19: 16400.78064 | H19: 16966.3248
A20: INTAKE 4, INTAKE 5, INTAKE 6, INTAKE 7 | E20: 18097.41312 | F20: 18733.6503 | G20: 19228.50144 | H20: 19794.0456
A21: INTAKE 2 | E21: 14562.76212 | F21: 15198.9993 | G21: 15693.85044 | H21: 16259.3946
A22: Укутка вверх/низ и алюминиевая кромка с 4-х сторон НЕДОСТУПНА на всех моделях
A25: Заводская врезка на данной коллекции осуществляется только в комбинации с петлями К2760 или CH-01. Если реверс - только петли K2460
A27: Опции и наценки
A28: Алюминиевая кромка с 2-х сторон !!!( В названии модели добавлятся приставка /S) | H28: 2120.7906
A29: Алюминиевая кромка с 4-х сторон - НЕДОСТУПНА | H29: 3463.95798
A30: Наценка на полотно толщиной 42 мм (без алюминиевой кромки) | H30: 1413.8604
A31: Наценка за черную и золотую алюминиевую кромку (Оттенок золотой кромки может отличаться от партии к партии) | H31: 565.54416
A32: Наценка за алюминиевую кромку шампань | H32: 848.31624
A33: Укутка вверх/низ - НЕДОСТУПНА | H33: -
A34: Усиленное полотно ( + 20 кг) | H34: 2120.7906
A35: Дополнительная упаковка для полотна | H35: 706.9302
A36: Шумоизоляция фибролитовой плитой | H36: 4241.5812
A37: Наполнение белтермо | H37: 4241.5812
A38: Cтабилизатор Morelli (Рекомендуем для полотен выше 2360 мм) Комплект 2 шт | H38: 3386.981136
A39: Наценки за нестандартные размеры
A40: Ширина
A41: 400-950 (шаг 10 мм) | E41: Без наценки
A42: Высота
A43: 1800 - 2050 (шаг 10 мм) | E43: Без наценки
A44: до 1800 мм, свыше 2050 мм - 2350 мм | E44: 0.2
A45: свыше 2360 мм - 2750 мм | E45: 50% (к базовой цене)
A46: свыше 2760 мм - 2850 мм (Укутка вверх/низ - НЕДОСТУПНА) | E46: 80% (к базовой цене)
A47: При заказе дверей высотой выше 2360, необходимо обязательно заказывать стабилизатор + врезку cтабилизатора
A49: Важно!!! При заказе двери выше 2360 мм допуск по кривизне составляет 3 мм
A51: Погонажные изделия (Стандарт) | E51: Тип 1 | F51: Тип 2 | G51: Тип 3 | H51: Тип 4
A52: Наличник МДФ телескоп 80*10 мм | E52: 629.167878 | F52: 660.6262719 | G52: 692.0846658 | H52: 723.5430597
A53: Коробка МДФ телескоп (Под 38 мм полотно) 75*32 мм | E53: 926.078562 | F53: 972.3824901 | G53: 1018.686418 | H53: 1064.990346
A54: Доборная доска МДФ телескопический 90*10 мм | E54: 711.119416 | F54: 746.6753868 | G54: 782.2313576 | H54: 817.7873284
A55: Доборная доска МДФ телескопический 130*10 мм | E55: 872.404232 | F55: 916.0244436 | G55: 959.6446552 | H55: 1003.264867
A56: Доборная доска МДФ телескопический 170*10 мм | E56: 1004.364536 | F56: 1054.582763 | G56: 1104.80099 | H56: 1155.019216
A57: Плинтус, 80*16*2070 мм., шт. | E57: 872.404232 | F57: 916.0244436 | G57: 959.6446552 | H57: 1003.264867
A58: Комплект крепежей (1 плинтус - 1 комплект(5 шт.) | E58: 205.271584 | F58: - | G58: - | H58: -
A59: Технические особенности
A60: Толщина полотна - 38 мм / С алюминиевой кромкой - 42 мм
A61: ВНИМАНИЕ! Данная коллекция не изготавливается в следующих декорах: эмаль, софт
A62: Навигатор | B62: Погонаж | C62: Накладки | D62: Доп. Ассортимент | E62: ПВХ | F62: Фурнитура | G62: Врезка | H62: Системы
A64: Техническая информация
A65: Модель | C65: Применяемость в реверс компланар | E65: Обязательность сторонности открывания (без врезки) | G65: Применяемость стабилизатора
A66: INTAKE 1 - INTAKE 7 (ДГ) | C66: да | E66: нет | G66: да

Sheet INSIDE
A1: Навигатор
A2: Коллекция INSIDE
A14: INSIDE 1 ДГ | B14: INSIDE 1М | C14: INSIDE 1 ДО | D14: INSIDE 1/D | E14: INSIDE 2 ДГ | F14: INSIDE 2М | G14: INSIDE 2 ДО | H14: INSIDE 2/D
A25: INSIDE 3 ДГ | B25: INSIDE 3М | C25: INSIDE 3 ДО | D25: INSIDE 3/D | E25: INSIDE 4 ДГ | F25: INSIDE 4М | G25: INSIDE 4 ДО | H25: INSIDE 4/D
A36: INSIDE 5 ДГ | B36: INSIDE 5М | C36: INSIDE 5 ДО | D36: INSIDE 5/D | E36: INSIDE 6 ДГ | F36: INSIDE 6М | G36: INSIDE 6 ДО | H36: INSIDE 6/D
A47: INSIDE 7 ДГ | B47: INSIDE 7М | C47: INSIDE 7 ДО | D47: INSIDE 7/D | E47: INSIDE 8 ДГ | F47: INSIDE 8М | G47: INSIDE 8 ДО | H47: INSIDE 8/D
A48: Техническая информация (нажмите)
A50: Cтоимость
A51: Модель | E51: Тип 1 | F51: Тип 2 | G51: Тип 3 | H51: Тип 4
A52: INSIDE 1, INSIDE 2, INSIDE 3, INSIDE 4, INSIDE 5, INSIDE 6, INSIDE 7, INSIDE 8 (ДГ) | E52: 12654.05058 | F52: 13290.28776 | G52: 13785.1389 | H52: 14350.68306
A53: INSIDE 1, INSIDE 3, INSIDE 5, INSIDE 6, INSIDE 7, INSIDE 8 (ДО) | E53: 13502.36682 | F53: 14138.604 | G53: 14633.45514 | H53: 15198.9993
A54: INSIDE 2, INSIDE 4 (ДО) | E54: 13714.44588 | F54: 14350.68306 | G54: 14845.5342 | H54: 15411.07836
A55: INSIDE 1/D, INSIDE 3/D, INSIDE 5/D, INSIDE 6/D, INSIDE 7/D, INSIDE 8/D | E55: 16895.63178 | F55: 17531.86896 | G55: 18026.7201 | H55: 18592.26426
A56: INSIDE 2/D, INSIDE 4/D | E56: 20076.81768 | F56: 20713.05486 | G56: 21207.906 | H56: 21773.45016
A57: INSIDE 1М, INSIDE 3M, INSIDE 5M, INSIDE 6M, INSIDE 7M, INSIDE 8M | E57: 12866.12964 | F57: 13502.36682 | G57: 13997.21796 | H57: 14562.76212
A58: INSIDE 2M, INSIDE 4M | E58: 16188.70158 | F58: 16824.93876 | G58: 17319.7899 | H58: 17885.33406
A59: ВНИМАНИЕ! Модели INSIDE 2M, INSIDE 2/D, INSIDE 4M, INSIDE 4/D изготавливются только в алюминиевой кромке с 4-х сторон
A61: Если в моделях с приставками /D присутствуют ПВХ с двух разных ТИПов, то стоимость считается по самой дорогой
A63: При заказе компланарного погнажна на данную коллекцию, врезка возможно только под петли Armadillo U3D8000
A65: Стекло | D65: Модель | G65: Наценка
A66: Зеркало | D66: INSIDE 1, INSIDE 2, INSIDE 3, INSIDE 4, INSIDE 5, INSIDE 6, INSIDE 7, INSIDE 8 | G66: 0
A67: Черный лакобель / Белый лакобель | G67: 0
A68: Зеркало графит / Коричневый лакобель / Зеркало бронза | G68: 424.15812
A69: Супер белый лакобель | G69: 848.31624
A70: Молдинг | D70: Модель | G70: Наценка
A71: молдинг 10*2 ХРОМ | D71: INSIDE 1М, INSIDE 2M, INSIDE 3M, INSIDE 4M, INSIDE 5M, INSIDE 6M, INSIDE 7M, INSIDE 8M | G71: 0
A72: молдинг 10*2 ЧЕРНЫЙ | G72: 282.77208
A73: молдинг 10*2 ЗОЛОТО | G73: 565.54416
A74: Опции и наценки
A75: Алюминиевая кромка с 2-х сторон !!!( В названии модели добавлятся приставка /S) | H75: 2120.7906
A76: Алюминиевая кромка по периметру !!!( В названии модели добавлятся приставка /S) | H76: 3463.95798
A77: Наценка на полотно толщиной 42 мм (без алюминиевой кромки) | H77: 1413.8604
A78: Наценка за черную и золотую алюминиевую кромку (Оттенок золотой кромки может отличаться от партии к партии) | H78: 565.54416
A79: Наценка за алюминиевую кромку шампань | H79: 848.31624
A80: Укутка вверх/низ | H80: 282.77208
A81: Усиленное полотно ( + 20 кг) | H81: 2120.7906
A82: Дополнительная упаковка для полотна | H82: 706.9302
A83: Шумоизоляция фибролитовой плитой | H83: 4241.5812
A84: Наполнение белтермо | H84: 4241.5812
A85: Cтабилизатор Morelli (Рекомендуем для полотен выше 2360 мм) Комплект 2 шт | H85: 3386.981136
A86: Наценки за нестандартные размеры
A87: Ширина
A88: 400-950 (шаг 10 мм) | E88: Без наценки
A89: Высота
A90: 1800 - 2050 (шаг 10 мм) | E90: Без наценки
A91: до 1800 мм, свыше 2050 мм - 2350 мм | E91: 0.2
A92: до 1800 мм, свыше 2050 мм - 2350 мм | E92: 0.2
A93: свыше 2360 мм - 2750 мм | E93: 50% (к базовой цене)
A94: свыше 2760 мм - 2850 мм (Укутка вверх/низ - НЕДОСТУПНА) | E94: 80% (к базовой цене)
A95: При заказе дверей высотой выше 2360, необходимо обязательно заказывать стабилизатор + врезку cтабилизатора
A97: Важно!!! При заказе двери выше 2360 мм допуск по кривизне составляет 3 мм
A99: Погонажные изделия (Стандарт) | E99: Тип 1 | F99: Тип 2 | G99: Тип 3 | H99: Тип 4
A100: Наличник МДФ телескоп 80*10 мм | E100: 629.167878 | F100: 660.6262719 | G100: 692.0846658 | H100: 723.5430597
A101: Коробка МДФ телескоп (Под 38 мм полотно) 75*32 мм | E101: 926.078562 | F101: 972.3824901 | G101: 1018.686418 | H101: 1064.990346
A102: Доборная доска МДФ телескопический 90*10 мм | E102: 711.119416 | F102: 746.6753868 | G102: 782.2313576 | H102: 817.7873284
A103: Доборная доска МДФ телескопический 130*10 мм | E103: 872.404232 | F103: 916.0244436 | G103: 959.6446552 | H103: 1003.264867
A104: Доборная доска МДФ телескопический 170*10 мм | E104: 1004.364536 | F104: 1054.582763 | G104: 1104.80099 | H104: 1155.019216
A105: Плинтус, 80*16*2070 мм., шт. | E105: 872.404232 | F105: 916.0244436 | G105: 959.6446552 | H105: 1003.264867
A106: Комплект крепежей (1 плинтус - 1 комплект(5 шт.) | E106: 205.271584 | F106: - | G106: - | H106: -
A107: Технические особенности
A108: Толщина полотна - 38 мм / С алюминиевой кромкой - 42 мм
A109: Полезные ссылки
A110: Навигатор | B110: Погонаж | C110: Накладки | D110: Доп. Ассортимент | E110: ПВХ | F110: Фурнитура | G110: Врезка | H110: Системы
A112: Техническая информация
A113: Модель | C113: Применяемость в реверс компланар | E113: Обязательность сторонности открывания (без врезки) | G113: Применяемость стабилизатора
A114: Все модели | C114: да | E114: нет | G114: да

Sheet COMDI
A1: Навигатор
A2: Коллекция COMDI
B13: COMDI 1 | C13: COMDI 2 | D13: COMDI 2/D | E13: COMDI 3 | F13: COMDI 4 | G13: COMDI 5
A14: Техническая информация (нажмите)
A16: Cтоимость
A17: Модель | E17: Тип 1 | F17: Тип 2 | G17: Тип 3 | H17: Тип 4
A18: Comdi 1 | E18: 19440.5805 | F18: 20076.81768 | G18: 20571.66882 | H18: 21137.21298
A19: Comdi 2 | E19: 20854.4409 | F19: 21490.67808 | G19: 21985.52922 | H19: 22551.07338
A20: Comdi 2/D | E20: 24318.39888 | F20: 24954.63606 | G20: 25449.4872 | H20: 26015.03136
A21: Comdi 3 | E21: 17956.02708 | F21: 18592.26426 | G21: 19087.1154 | H21: 19652.65956
A22: Comdi 4 | E22: 17814.64104 | F22: 18450.87822 | G22: 18945.72936 | H22: 19511.27352
A23: Comdi 5 | E23: 19581.96654 | F23: 20218.20372 | G23: 20713.05486 | H23: 21278.59902
A24: Если в модели Comdi 2D присутствуют ПВХ с двух разных ТИПов, то стоимость считается по самой дорогой
A26: При заказе компланарного погнажна на данную коллекцию, врезка возможно только под петли Armadillo U3D8000
A28: Стекло | D28: Модель | G28: Наценка
A29: Зеркало | D29: Все модели | G29: 0
A30: Черный лакобель / Белый лакобель | D30: Все модели | G30: 0
A31: Зеркало графит / Зеркало бронза | D31: Comdi 1, Comdi 2, Comdi 2D | G31: 282.77208
D32: Comdi 3, Comdi 4, Comdi 5 | G32: 565.54416
A33: Супер белый лакобель | D33: Comdi 1, Comdi 2, Comdi 2D | G33: 424.15812
D34: Comdi 3, Comdi 4, Comdi 5 | G34: 848.31624
A35: Опции и наценки
A36: Алюминиевая кромка с 2-х сторон | H36: 2120.7906
A37: Алюминиевая кромка по периметру | H37: 3463.95798
A38: Наценка на полотно толщиной 42 мм (без алюминиевой кромки) | H38: 1413.8604
A39: Наценка за черную и золотую алюминиевую кромку (Оттенок золотой кромки может отличаться от партии к партии) | H39: 565.54416
A40: Наценка за алюминиевую кромку шампань | H40: 848.31624
A41: Укутка вверх/низ (На моделях Comdi 2 - Comdi 5 данная опция НЕДОСТУПНА) | H41: 282.77208
A42: Усиленное полотно ( + 20 кг) | H42: 2120.7906
A43: Дополнительная упаковка для полотна | H43: 706.9302
A44: Шумоизоляция фибролитовой плитой | H44: 4241.5812
A45: Наполнение белтермо | H45: 4241.5812
A46: Cтабилизатор Morelli (Рекомендуем для полотен выше 2360 мм) Комплект 2 шт | H46: 3386.981136
A47: Наценки за нестандартные размеры
A48: Ширина
A49: 400-950 (шаг 10 мм) | E49: Без наценки
A50: Высота
A51: 1800 - 2050 (шаг 10 мм) | E51: Без наценки
A52: до 1800 мм, свыше 2050 мм - 2350 мм | E52: 0.2
A53: свыше 2360 мм - 2750 мм | E53: 50% (к базовой цене)
A54: свыше 2760 мм - 2850 мм (Укутка вверх/низ - НЕДОСТУПНА) | E54: 80% (к базовой цене)
A55: При заказе дверей высотой выше 2360, необходимо обязательно заказывать стабилизатор + врезку cтабилизатора
A57: Важно!!! При заказе двери выше 2360 мм допуск по кривизне составляет 3 мм
A59: Погонажные изделия (Стандарт) | E59: Тип 1 | F59: Тип 2 | G59: Тип 3 | H59: Тип 4
A60: Наличник МДФ телескоп 80*10 мм | E60: 629.167878 | F60: 660.6262719 | G60: 692.0846658 | H60: 723.5430597
A61: Коробка МДФ телескоп (Под 38 мм полотно) 75*32 мм | E61: 926.078562 | F61: 972.3824901 | G61: 1018.686418 | H61: 1064.990346
A62: Доборная доска МДФ телескопический 90*10 мм | E62: 711.119416 | F62: 746.6753868 | G62: 782.2313576 | H62: 817.7873284
A63: Доборная доска МДФ телескопический 130*10 мм | E63: 872.404232 | F63: 916.0244436 | G63: 959.6446552 | H63: 1003.264867
A64: Доборная доска МДФ телескопический 170*10 мм | E64: 1004.364536 | F64: 1054.582763 | G64: 1104.80099 | H64: 1155.019216
A65: Плинтус, 80*16*2070 мм., шт. | E65: 872.404232 | F65: 916.0244436 | G65: 959.6446552 | H65: 1003.264867
A66: Комплект крепежей (1 плинтус - 1 комплект(5 шт.) | E66: 205.271584 | F66: - | G66: - | H66: -
A67: Технические особенности
A68: Толщина полотна - 38 мм / С алюминиевой кромкой - 42 мм
A69: Полезные ссылки
A70: Навигатор | B70: Погонаж | C70: Накладки | D70: Доп. Ассортимент | E70: ПВХ | F70: Фурнитура | G70: Врезка | H70: Системы
A72: Техническая информация
A73: Модель | C73: Применяемость в реверс компланар | E73: Обязательность сторонности открывания (без врезки) | G73: Применяемость стабилизатора
A74: Все модели | C74: да, НО рисунок уменьшается со всех сторон на 12мм | E74: нет | G74: да

Sheet LEVANTE
A1: Навигатор
A2: Коллекция LEVANTE
B14: LEVANTE 1 (ДГ) | C14: LEVANTE 2 (ДГ) | D14: LEVANTE 3 (ДГ) | E14: LEVANTE 5 (ДГ) | F14: LEVANTE 6 (ДГ)
B25: LEVANTE 1 (ДО) | C25: LEVANTE 2 (ДО) | D25: LEVANTE 3 (ДО) | E25: LEVANTE 4 (ДО) | F25: LEVANTE 5 (ДО) | G25: LEVANTE 6 (ДО)
A26: Техническая информация (нажмите)
A28: Cтоимость
A29: Модель | E29: Тип 1 | F29: Тип 2 | G29: Тип 3 | H29: Тип 4
A30: Levante 1, Levante 2, Levante 3, Levante 5, Levante 6 (ДГ) | E30: 11876.42736 | F30: 12512.66454 | G30: 13007.51568 | H30: 13573.05984
A31: Levante 1, Levante 2 | E31: 17673.255 | F31: 18309.49218 | G31: 18804.34332 | H31: 19369.88748
A32: Levante 3, Levante 5, Levante 6 | E32: 18380.1852 | F32: 19016.42238 | G32: 19511.27352 | H32: 20076.81768
A33: Levante 4 | E33: 16330.08762 | F33: 16966.3248 | G33: 17461.17594 | H33: 18026.7201
A34: Стекло | D34: Модель | G34: Наценка
A35: Белое М1 (матирование с 1 стороны) | D35: Все модели | G35: 0
A36: Бронза М1, Графит М1 (матирование с 1 стороны) | G36: 1413.8604
A37: Рефлекторное стекло | G37: 1413.8604
A38: Опции и наценки
A39: Укутка вверх/низ | H39: 282.77208
A40: Усиленное полотно ( + 20 кг) | H40: 2120.7906
A41: Алюминиевая кромка с 2-х сторон | H41: 2120.7906
A42: Алюминиевая кромка по периметру | H42: 3463.95798
A43: Наценка за черную и золотую алюминиевую кромку (Оттенок может отличаться от партии к партии) | H43: 565.54416
A44: Наценка за алюминиевую кромку шампань | H44: 848.31624
A45: Наценка на полотно толщиной 42 мм (без алюминиевой кромки) | H45: 1413.8604
A46: Дополнительная упаковка для полотна | H46: 706.9302
A47: Шумоизоляция фибролитовой плитой | H47: 4241.5812
A48: Наполнение белтермо | H48: 4241.5812
A49: Cтабилизатор Morelli (Рекомендуем для полотен выше 2360 мм) Комплект 2 шт | H49: 3386.981136
A50: Наценки за нестандартные размеры
A51: Ширина
A52: 400-950 (шаг 10 мм) | E52: Без наценки
A53: Высота
A54: 1800 - 2050 (шаг 10 мм) | E54: Без наценки
A55: до 1800 мм, свыше 2050 мм - 2350 мм | E55: 0.2
A56: свыше 2360 мм - 2750 мм | E56: 50% (к базовой цене)
A57: свыше 2760 мм - 2850 мм (Укутка вверх/низ - НЕДОСТУПНА) | E57: 80% (к базовой цене)
A58: Врезка стабилизатора для моделей ДО невозможна. Максимальная высота (ДО) 2400 мм.
A60: Погонажные изделия (Стандарт) | E60: Тип 1 | F60: Тип 2 | G60: Тип 3 | H60: Тип 4
A61: Наличник МДФ телескоп 80*10 мм | E61: 629.167878 | F61: 660.6262719 | G61: 692.0846658 | H61: 723.5430597
A62: Коробка МДФ телескоп (Под 38 мм полотно) 75*32 мм | E62: 926.078562 | F62: 972.3824901 | G62: 1018.686418 | H62: 1064.990346
A63: Доборная доска МДФ телескопический 90*10 мм | E63: 711.119416 | F63: 746.6753868 | G63: 782.2313576 | H63: 817.7873284
A64: Доборная доска МДФ телескопический 130*10 мм | E64: 872.404232 | F64: 916.0244436 | G64: 959.6446552 | H64: 1003.264867
A65: Доборная доска МДФ телескопический 170*10 мм | E65: 1004.364536 | F65: 1054.582763 | G65: 1104.80099 | H65: 1155.019216
A66: Плинтус, 80*16*2070 мм., шт. | E66: 872.404232 | F66: 916.0244436 | G66: 959.6446552 | H66: 1003.264867
A67: Комплект крепежей (1 плинтус - 1 комплект(5 шт.) | E67: 205.271584 | F67: - | G67: - | H67: -
A68: Полезные ссылки
A69: Навигатор | B69: Погонаж | C69: Накладки | D69: Доп. Ассортимент | E69: ПВХ | F69: Фурнитура | G69: Врезка | H69: Системы
A71: Техническая информация
A72: Модель | C72: Применяемость в реверс компланар | E72: Обязательность сторонности открывания (без врезки) | G72: Применяемость стабилизатора
A73: LEVANTE 1 - LEVANTE 6 (ДО) | C73: да | E73: нет | G73: нет
A74: LEVANTE 1 - LEVANTE 6 (ДГ) | C74: да | E74: нет | G74: да

Sheet PRACTIC
A1: Навигатор
A2: Коллекция PRACTIC
A13: PRACTIC 1 ДГ | B13: PRACTIC 2 ДГ | C13: PRACTIC 3 ДГ | D13: PRACTIC 4 ДГ | E13: PRACTIC 5 ДГ | F13: PRACTIC 6 ДГ | G13: PRACTIC 7 ДГ | H13: PRACTIC 8 ДГ
A25: PRACTIC 1 ДО | B25: PRACTIC 2 ДО | C25: PRACTIC 3 ДО | D25: PRACTIC 4 ДО | E25: PRACTIC 5 ДО | F25: PRACTIC 6 ДО | G25: PRACTIC 7 ДО | H25: PRACTIC 8 ДО
D36: PRACTIC 9 ДГ | E36: PRACTIC 9 ДГ
A37: Техническая информация (нажмите)
A39: Cтоимость
A40: Модель | E40: Тип 1 | F40: Тип 2 | G40: Тип 3 | H40: Тип 4
A41: Practic 1, Practic 3, Practic 5, Practic 7, Practic 9 (ДГ) | E41: 12159.19944 | F41: 12795.43662 | G41: 13290.28776 | H41: 13855.83192
A42: Practic 2 ( ДГ с молдингом) | E42: 13573.05984 | F42: 14209.29702 | G42: 14704.14816 | H42: 15269.69232
A43: Practic 4, Practic 6, Practic 8 ( ДГ с молдингом) | E43: 14279.99004 | F43: 14916.22722 | G43: 15411.07836 | H43: 15976.62252
A44: ДО
A45: Practic 1, Practic 5, Practic 9 (ДО) | E45: 14704.14816 | F45: 15340.38534 | G45: 15835.23648 | H45: 16400.78064
A46: Practic 3, Practic 7 (ДО) | E46: 14067.91098 | F46: 14704.14816 | G46: 15198.9993 | H46: 15764.54346
A47: Practic 2 (ДО с молдингом) | E47: 15905.9295 | F47: 16542.16668 | G47: 17037.01782 | H47: 17602.56198
A48: Practic 4, Practic 6, Practic 8 (ДО с молдингом) | E48: 16612.8597 | F48: 17249.09688 | G48: 17743.94802 | H48: 18309.49218
A49: Стекло | D49: Модель | G49: Наценка
A50: Белое М1 (матирование с 1 стороны) | D50: Все модели | G50: 0
A51: Белое М1Г1 ( матирование с 1 стороны + гравировка) | G51: 1838.01852
A52: Рефлекторное стекло | G52: 2120.7906
A53: Рифленное стекло ФЛУТС | G53: 3534.651
A54: Стекло Бронза, графит (Наценка к стеклу дополнительно) | G54: 1413.8604
A55: Рифленное Стекло ФЛУТС графит (Наценка к стеклу дополнительно) | G55: 1413.8604
A56: Рифленное Стекло ФЛУТС бронза (Наценка к стеклу дополнительно) | G56: 4241.5812
A57: Стекло кафедрал | G57: 7776.2322
A58: Молдинг | D58: Модель | G58: Наценка
A59: молдинг 10*2 ХРОМ | D59: Все модели | G59: 0
A60: молдинг 10*2 ЧЕРНЫЙ | G60: 424.15812
A61: молдинг 10*2 ЗОЛОТО | G61: 706.9302
A62: Опции и наценки
A63: Укутка вверх/низ | H63: 282.77208
A64: Усиленное полотно ( + 20 кг) | H64: 2120.7906
A65: Алюминиевая кромка с 2-х сторон | H65: 2120.7906
A66: Алюминиевая кромка по периметру | H66: 3463.95798
A67: Наценка за черную и золотую алюминиевую кромку (Оттенок может отличаться от партии к партии) | H67: 565.54416
A68: Наценка за алюминиевую кромку шампань | H68: 848.31624
A69: Наценка на полотно толщиной 42 мм (без алюминиевой кромки) | H69: 1413.8604
A70: Дополнительная упаковка для полотна | H70: 706.9302
A71: Шумоизоляция фибролитовой плитой | H71: 4241.5812
A72: Наполнение белтермо | H72: 4241.5812
A73: Cтабилизатор Morelli (Рекомендуем для полотен выше 2360 мм) Комплект 2 шт | H73: 3386.981136
A74: Наценки за нестандартные размеры
A75: Ширина
A76: 400-950 (шаг 10 мм) | E76: Без наценки
A77: Высота
A78: 1800 - 2050 (шаг 10 мм) | E78: Без наценки
A79: до 1800 мм, свыше 2050 мм - 2350 мм | E79: 0.2
A80: свыше 2360 мм - 2750 мм | E80: 50% (к базовой цене)
A81: свыше 2760 мм - 2850 мм (Укутка вверх/низ - НЕДОСТУПНА) | E81: 80% (к базовой цене)
A82: При заказе дверей высотой выше 2360, необходимо объязательно заказывать стабилизатор + врезку cтабилизатора
A84: PRACTIC ДО - Врезка стабилизатора невозможна. Максимальная высота без стабилизатора 2400 мм.
A85: Важно!!! При заказе двери выше 2360 мм допуск по кривизне составляет 3 мм
A87: Погонажные изделия (Стандарт) | E87: Тип 1 | F87: Тип 2 | G87: Тип 3 | H87: Тип 4
A88: Наличник МДФ телескоп 80*10 мм | E88: 629.167878 | F88: 660.6262719 | G88: 692.0846658 | H88: 723.5430597
A89: Коробка МДФ телескоп (Под 38 мм полотно) 75*32 мм | E89: 926.078562 | F89: 972.3824901 | G89: 1018.686418 | H89: 1064.990346
A90: Доборная доска МДФ телескопический 90*10 мм | E90: 711.119416 | F90: 746.6753868 | G90: 782.2313576 | H90: 817.7873284
A91: Доборная доска МДФ телескопический 130*10 мм | E91: 872.404232 | F91: 916.0244436 | G91: 959.6446552 | H91: 1003.264867
A92: Доборная доска МДФ телескопический 170*10 мм | E92: 1004.364536 | F92: 1054.582763 | G92: 1104.80099 | H92: 1155.019216
A93: Плинтус, 80*16*2070 мм., шт. | E93: 872.404232 | F93: 916.0244436 | G93: 959.6446552 | H93: 1003.264867
A94: Комплект крепежей (1 плинтус - 1 комплект(5 шт.) | E94: 205.271584 | F94: - | G94: - | H94: -
A95: Полезные ссылки
A96: Навигатор | B96: Погонаж | C96: Накладки | D96: Доп. Ассортимент | E96: ПВХ | F96: Фурнитура | G96: Врезка | H96: Системы
A98: Техническая информация
A99: Модель | C99: Применяемость в реверс компланар | E99: Обязательность сторонности открывания (без врезки) | G99: Применяемость стабилизатора
A100: PRACTIC 1 - PRACTIC 9 (ДГ) | C100: да, НО рисунок уменьшается со всех сторон на 12мм | E100: нет | G100: да
A101: PRACTIC 1 - PRACTIC 9 (ДО) | C101: да, НО рисунок уменьшается со всех сторон на 12мм | E101: нет | G101: нет

Sheet MOTIVER
A1: Навигатор
A2: Коллекция MOTIVER
A14: MOTIVER 1 | B14: MOTIVER 2 | C14: MOTIVER 3 | D14: MOTIVER 4 | E14: MOTIVER 5 | F14: MOTIVER 6 | G14: MOTIVER 7 | H14: MOTIVER 8
B25: MOTIVER 9 | C25: MOTIVER 10 | D25: MOTIVER 11 | E25: MOTIVER 12 | F25: MOTIVER 13
A36: MOTIVER 1.1 | B36: MOTIVER 2.1 | C36: MOTIVER 3.1 | D36: MOTIVER 4.1 | E36: MOTIVER 5.1 | F36: MOTIVER 6.1 | G36: MOTIVER 7.1 | H36: MOTIVER 8.1
B47: MOTIVER 9.1 | C47: MOTIVER 10.1 | D47: MOTIVER 11.1 | E47: MOTIVER 12.1 | F47: MOTIVER 13.1
A48: Техническая информация (нажмите)
A50: Cтоимость
A51: Модель | E51: Тип 1 | F51: Тип 2 | G51: Тип 3 | H51: Тип 4
A52: MOTIWER 1, MOTIWER 1.1, MOTIWER 2, MOTIWER 2.1 | E52: 13290.28776 | F52: 13926.52494 | G52: 14421.37608 | H52: 14986.92024
A53: MOTIWER 3, MOTIWER 3.1 | E53: 13997.21796 | F53: 14633.45514 | G53: 15128.30628 | H53: 15693.85044
A54: MOTIWER 4, MOTIWER 10 | E54: 11735.04132 | F54: 12371.2785 | G54: 12866.12964 | H54: 13431.6738
A55: MOTIWER 5, MOTIWER 5.1, MOTIWER 6, MOTIWER 6.1, MOTIWER 7, MOTIWER 7.1, MOTIWER 8, MOTIWER 8.1, MOTIWER 9, MOTIWER 9.1, MOTIWER 13, MOTIWER 13.1 | E55: 13148.90172 | F55: 13785.1389 | G55: 14279.99004 | H55: 14845.5342
A56: MOTIWER 11, MOTIWER 11.1, MOTIWER 12, MOTIWER 12.1 | E56: 14138.604 | F56: 14774.84118 | G56: 15269.69232 | H56: 15835.23648
A57: Если в моделях MOTIWER 1, MOTIWER 1.1, MOTIWER 2, MOTIWER 2.2, MOTIWER 3, MOTIWER 3.1, MOTIWER 11, MOTIWER 11.1 MOTIWER 12, MOTIWER 12.1 присутствуют ПВХ с двух разных ТИПов, то стоимость считается по самой дорогой
A59: Опции и наценки
A60: Алюминиевая кромка с 2-х сторон | H60: 2120.7906
A61: Алюминиевая кромка по периметру | H61: 3463.95798
A62: Наценка на полотно толщиной 42 мм (без алюминиевой кромки) | H62: 1413.8604
A63: Наценка за черную и золотую алюминиевую кромку (Оттенок золотой кромки может отличаться от партии к партии) | H63: 565.54416
A64: Наценка за алюминиевую кромку шампань | H64: 848.31624
A65: Укутка вверх/низ - НЕДОСТУПНА | H65: -
A66: Усиленное полотно ( + 20 кг) | H66: 2120.7906
A67: Дополнительная упаковка для полотна | H67: 424.15812
A68: Шумоизоляция фибролитовой плитой | H68: 4241.5812
A69: Наполнение белтермо | H69: 4241.5812
A70: Cтабилизатор Morelli (Рекомендуем для полотен выше 2360 мм) Комплект 2 шт | H70: 3386.981136
A71: Виды фрезировок
A72: Виды фрезировок
B73: Фреза 1 Фреза .1
A74: Наценки за нестандартные размеры
A75: Ширина
A76: 400-950 (шаг 10 мм) | E76: Без наценки
A77: Высота
A78: 1800 - 2050 (шаг 10 мм) | E78: Без наценки
A79: до 1800 мм, свыше 2050 мм - 2350 мм | E79: 0.2
A80: свыше 2360 мм - 2750 мм | E80: 50% (к базовой цене)
A81: свыше 2760 мм - 2850 мм (Укутка вверх/низ - НЕДОСТУПНА) | E81: 80% (к базовой цене)
A82: При заказе дверей высотой выше 2360, необходимо обязательно заказывать стабилизатор + врезку cтабилизатора
A84: Важно!!! При заказе двери выше 2360 мм допуск по кривизне составляет 3 мм
A86: Погонажные изделия (Стандарт) | E86: Тип 1 | F86: Тип 2 | G86: Тип 3 | H86: Тип 4
A87: Наличник МДФ телескоп 80*10 мм | E87: 629.167878 | F87: 660.6262719 | G87: 692.0846658 | H87: 723.5430597
A88: Коробка МДФ телескоп (Под 38 мм полотно) 75*32 мм | E88: 926.078562 | F88: 972.3824901 | G88: 1018.686418 | H88: 1064.990346
A89: Доборная доска МДФ телескопический 90*10 мм | E89: 711.119416 | F89: 746.6753868 | G89: 782.2313576 | H89: 817.7873284
A90: Доборная доска МДФ телескопический 130*10 мм | E90: 872.404232 | F90: 916.0244436 | G90: 959.6446552 | H90: 1003.264867
A91: Доборная доска МДФ телескопический 170*10 мм | E91: 1004.364536 | F91: 1054.582763 | G91: 1104.80099 | H91: 1155.019216
A92: Плинтус, 80*16*2070 мм., шт. | E92: 872.404232 | F92: 916.0244436 | G92: 959.6446552 | H92: 1003.264867
A93: Комплект крепежей (1 плинтус - 1 комплект(5 шт.) | E93: 205.271584 | F93: - | G93: - | H93: -
A94: Технические особенности
A95: Толщина полотна - 38 мм / С алюминиевой кромкой - 42 мм
A96: Полезные ссылки
A97: Навигатор | B97: Погонаж | C97: Накладки | D97: Доп. Ассортимент | E97: ПВХ | F97: Фурнитура | G97: Врезка | H97: Системы
A99: Техническая информация
A100: Модель | C100: Применяемость в реверс компланар | E100: Обязательность сторонности открывания (без врезки) | G100: Применяемость стабилизатора
A101: MOTIVER 1 - MOTIVER 13 (ДГ) | C101: да, НО рисунок уменьшается со всех сторон на 12мм | E101: нет | G101: да
A102: MOTIVER 1.1 - MOTIVER 13.1 (ДГ) | C102: да, НО рисунок уменьшается со всех сторон на 12мм | E102: нет | G102: да

Sheet NESTOR
A1: Навигатор
A2: Коллекция NESTOR
B13: NESTOR 1 ДГ | C13: NESTOR 2 ДГ | D13: NESTOR 3 ДГ | E13: NESTOR 4 ДГ | F13: NESTOR 5 ДГ | G13: NESTOR 6 ДГ
B24: NESTOR 1 ДО | C24: NESTOR 2 ДО | D24: NESTOR 3 ДО | E24: NESTOR 4 ДО | F24: NESTOR 5 ДО | G24: NESTOR 6 ДО
A26: Техническая информация (нажмите)
A28: Cтоимость
A29: Модель | E29: Тип 1 | F29: Тип 2 | G29: Тип 3 | H29: Тип 4
A30: Nestor ДГ (Все модели) | E30: 11028.11112 | F30: 11664.3483 | G30: 12159.19944 | H30: 12724.7436
A31: ДО
A32: Nestor 1, Nestor 2, Nestor 5, Nestor 6 (ДО) | E32: 13007.51568 | F32: 13643.75286 | G32: 14138.604 | H32: 14704.14816
A33: Nestor 3, Nestor 4 (ДО) | E33: 13290.28776 | F33: 13926.52494 | G33: 14421.37608 | H33: 14986.92024
A34: Стекло | D34: Модель | G34: Наценка
A35: Белое М1 (матирование с 1 стороны) | D35: Все модели | G35: 0
A36: Белое М1Р1 ( матирование с 1 стороны + рисунок) | G36: 353.4651
A37: Белое М1Г1 ( матирование с 1 стороны + гравировка) | G37: 1767.3255
A38: Стекло Бронза, графит (Наценка к стеклу дополнительно) | G38: 1413.8604
A39: Стекло кафедрал | G39: 7776.2322
A40: Доступные рисунки для данной коллекции
A41: Рисунки
B42: Дамаск | C42: Решетка | D42: Ромбы | E42: Калисто | F42: Пандора | G42: Фламенко | H42: Имитация фацета
A43: М1Р1 | B43: + | C43: + | D43: + | E43: + | F43: + | G43: + | H43: +
A44: М1Г1 | B44: - | C44: + | D44: + | E44: - | F44: - | G44: (Только прямые линии) | H44: -
A45: Опции и наценки
A46: Укутка вверх/низ | H46: 282.77208
A47: Усиленное полотно ( + 20 кг) | H47: 2120.7906
A48: Алюминиевая кромка с 2-х сторон | H48: 2120.7906
A49: Алюминиевая кромка по периметру | H49: 3463.95798
A50: Наценка за черную и золотую алюминиевую кромку (Оттенок может отличаться от партии к партии) | H50: 565.54416
A51: Наценка за алюминиевую кромку шампань | H51: 848.31624
A52: Наценка на полотно толщиной 42 мм (без алюминиевой кромки) | H52: 1413.8604
A53: Дополнительная упаковка для полотна | H53: 424.15812
A54: Шумоизоляция фибролитовой плитой | H54: 4241.5812
A55: Наполнение белтермо | H55: 4241.5812
A56: Cтабилизатор Morelli (Рекомендуем для полотен выше 2360 мм) Комплект 2 шт | H56: 3386.981136
A57: Наценки за нестандартные размеры
A58: Ширина
A59: 400-950 (шаг 10 мм) | E59: Без наценки
A60: Высота
A61: 1800 - 2050 (шаг 10 мм) | E61: Без наценки
A62: до 1800 мм, свыше 2050 мм - 2350 мм | E62: 0.2
A63: свыше 2360 мм - 2750 мм | E63: 50% (к базовой цене)
A64: свыше 2760 мм - 2850 мм (Укутка вверх/низ - НЕДОСТУПНА) | E64: 80% (к базовой цене)
A65: При заказе дверей высотой выше 2360, необходимо объязательно заказывать стабилизатор + врезку cтабилизатора
A67: NESTOR ДО - Врезка стабилизатора невозможна. Максимальная высота без стабилизатора 2400 мм.
A68: Важно!!! При заказе двери выше 2360 мм допуск по кривизне составляет 3 мм
A70: Погонажные изделия (Стандарт) | E70: Тип 1 | F70: Тип 2 | G70: Тип 3 | H70: Тип 4
A71: Наличник МДФ телескоп 80*10 мм | E71: 629.167878 | F71: 660.6262719 | G71: 692.0846658 | H71: 723.5430597
A72: Коробка МДФ телескоп (Под 38 мм полотно) 75*32 мм | E72: 926.078562 | F72: 972.3824901 | G72: 1018.686418 | H72: 1064.990346
A73: Доборная доска МДФ телескопический 90*10 мм | E73: 711.119416 | F73: 746.6753868 | G73: 782.2313576 | H73: 817.7873284
A74: Доборная доска МДФ телескопический 130*10 мм | E74: 872.404232 | F74: 916.0244436 | G74: 959.6446552 | H74: 1003.264867
A75: Доборная доска МДФ телескопический 170*10 мм | E75: 1004.364536 | F75: 1054.582763 | G75: 1104.80099 | H75: 1155.019216
A76: Плинтус, 80*16*2070 мм., шт. | E76: 872.404232 | F76: 916.0244436 | G76: 959.6446552 | H76: 1003.264867
A77: Комплект крепежей (1 плинтус - 1 комплект(5 шт.) | E77: 205.271584 | F77: - | G77: - | H77: -
A78: Полезные ссылки
A79: Навигатор | B79: Погонаж | C79: Накладки | D79: Доп. Ассортимент | E79: ПВХ | F79: Фурнитура | G79: Врезка | H79: Системы
A81: Техническая информация
A82: Модель | C82: Применяемость в реверс компланар | E82: Обязательность сторонности открывания (без врезки) | G82: Применяемость стабилизатора
A83: NESTOR 1 - NESTOR 6 (ДГ) | C83: да | E83: нет | G83: да
A84: NESTOR 1 - NESTOR 6 (ДО) | C84: да | E84: нет | G84: нет

Sheet RIVA
A1: Навигатор
A2: Коллекция RIVA
A13: RIVA 1 | B13: RIVA 2 | C13: RIVA 3 | D13: RIVA 4 | E13: RIVA 5 | F13: RIVA 6 | G13: RIVA 7 | H13: RIVA 8
D24: RIVA 9 | E24: RIVA 10
A26: Техническая информация (нажмите)
A28: Cтоимость
A29: Модель | E29: Тип 1 | F29: Тип 2 | G29: Тип 3 | H29: Тип 4
A30: Riva 1 | E30: 16259.3946 | F30: 16895.63178 | G30: 17390.48292 | H30: 17956.02708
A31: Riva 2 | E31: 14350.68306 | F31: 14986.92024 | G31: 15481.77138 | H31: 16047.31554
A32: Riva 3 | E32: 14421.37608 | F32: 15057.61326 | G32: 15552.4644 | H32: 16118.00856
A33: Riva 4 | E33: 13643.75286 | F33: 14279.99004 | G33: 14774.84118 | H33: 15340.38534
A34: Riva 5 | E34: 15057.61326 | F34: 15693.85044 | G34: 16188.70158 | H34: 16754.24574
A35: Riva 6 | E35: 15269.69232 | F35: 15905.9295 | G35: 16400.78064 | H35: 16966.3248
A36: Riva 7 | E36: 14209.29702 | F36: 14845.5342 | G36: 15340.38534 | H36: 15905.9295
A37: Riva 8 | E37: 15835.23648 | F37: 16471.47366 | G37: 16966.3248 | H37: 17531.86896
A38: Riva 9 | E38: 15835.23648 | F38: 16471.47366 | G38: 16966.3248 | H38: 17531.86896
A39: Riva 10 | E39: 14350.68306 | F39: 14986.92024 | G39: 15481.77138 | H39: 16047.31554
A40: При заказе компланарного погнажна на данную коллекцию, врезка возможно только под петли Armadillo U3D8000
A43: Стекло | D43: Модель | G43: Наценка
A44: Зеркало | D44: Все модели | G44: 0
A45: Черный лакобель / Белый лакобель | G45: 0
A46: Зеркало графит / Коричневый лакобель / Зеркало бронза | D46: Riva 5, Riva 8, Riva 9, Riva 10 | G46: 424.15812
D47: Riva 1, Riva 2, Riva 3, Riva 4 | G47: 636.23718
A48: Супер белый лакобель | D48: Riva 5, Riva 8, Riva 9, Riva 10 | G48: 848.31624
D49: Riva 1, Riva 2, Riva 3, Riva 4 | G49: 1272.47436
A50: Зеркало с рисунком | D50: Riva 8, Riva 9 | G50: 565.54416
A51: Опции и наценки
A52: Алюминиевая кромка с 2-х сторон | H52: 2120.7906
A53: Алюминиевая кромка по периметру - НЕДОСТУПНА | H53: -
A54: Наценка на полотно толщиной 42 мм (без алюминиевой кромки) | H54: 1413.8604
A55: Наценка за черную и золотую алюминиевую кромку (Оттенок золотой кромки может отличаться от партии к партии) | H55: 565.54416
A56: Наценка за алюминиевую кромку шампань | H56: 848.31624
A57: Укутка вверх/низ - НЕДОСТУПНА | H57: -
A58: Усиленное полотно ( + 20 кг) | H58: 2120.7906
A59: Дополнительная упаковка для полотна | H59: 424.15812
A60: Шумоизоляция фибролитовой плитой | H60: 4241.5812
A61: Наполнение белтермо | H61: 4241.5812
A62: Cтабилизатор Morelli (Рекомендуем для полотен выше 2360 мм) Комплект 2 шт | H62: 3266.017524
A63: Наценки за нестандартные размеры
A64: Ширина
A65: 400-950 (шаг 10 мм) | E65: Без наценки
A66: Высота
A67: 1800 - 2050 (шаг 10 мм) | E67: Без наценки
A68: до 1800 мм, свыше 2050 мм - 2350 мм | E68: 0.2
A69: свыше 2360 мм - 2750 мм | E69: 50% (к базовой цене)
A70: свыше 2760 мм - 2850 мм (Укутка вверх/низ - НЕДОСТУПНА) | E70: 80% (к базовой цене)
A71: При заказе дверей высотой выше 2360, необходимо обязательно заказывать стабилизатор + врезку cтабилизатора
A73: Важно!!! При заказе двери выше 2360 мм допуск по кривизне составляет 3 мм
A75: Погонажные изделия (Стандарт) | E75: Тип 1 | F75: Тип 2 | G75: Тип 3 | H75: Тип 4
A76: Наличник МДФ телескоп 80*10 мм | E76: 629.167878 | F76: 660.6262719 | G76: 692.0846658 | H76: 723.5430597
A77: Коробка МДФ телескоп (Под 38 мм полотно) 75*32 мм | E77: 926.078562 | F77: 972.3824901 | G77: 1018.686418 | H77: 1064.990346
A78: Доборная доска МДФ телескопический 90*10 мм | E78: 711.119416 | F78: 746.6753868 | G78: 782.2313576 | H78: 817.7873284
A79: Доборная доска МДФ телескопический 130*10 мм | E79: 872.404232 | F79: 916.0244436 | G79: 959.6446552 | H79: 1003.264867
A80: Доборная доска МДФ телескопический 170*10 мм | E80: 1004.364536 | F80: 1054.582763 | G80: 1104.80099 | H80: 1155.019216
A81: Плинтус, 80*16*2070 мм., шт. | E81: 872.404232 | F81: 916.0244436 | G81: 959.6446552 | H81: 1003.264867
A82: Комплект крепежей (1 плинтус - 1 комплект(5 шт.) | E82: 205.271584 | F82: - | G82: - | H82: -
A83: Технические особенности
A84: Толщина полотна - 38 мм / С алюминиевой кромкой - 42 мм
A85: Полезные ссылки
A86: Навигатор | B86: Погонаж | C86: Накладки | D86: Доп. Ассортимент | E86: ПВХ | F86: Фурнитура | G86: Врезка | H86: Системы
A88: Техническая информация
A89: Модель | C89: Применяемость в реверс компланар | E89: Обязательность сторонности открывания (без врезки) | G89: Применяемость стабилизатора
A90: RIVA 1 - RIVA 10 (ДГ) | C90: да, НО рисунок уменьшается со всех сторон на 12мм | E90: нет | G90: да
A91: RIVA 1 - RIVA 10 (ДО) | C91: да, НО рисунок уменьшается со всех сторон на 12мм | E91: нет | G91: да

Sheet BLEND
A1: Навигатор
A2: Коллекция BLEND
A13: BLEND 1 | B13: BLEND 2 | C13: BLEND 3 | D13: BLEND 4 | E13: BLEND 5 | F13: BLEND 6 | G13: BLEND 7 | H13: BLEND 8
A24: BLEND 9 | B24: BLEND 10 | C24: BLEND 11 | D24: BLEND 12 | E24: BLEND 13 | F24: BLEND 14 | G24: BLEND 15 | H24: BLEND 16
D35: BLEND 17
A36: Техническая информация (нажмите)
A38: Cтоимость
A39: Модель | E39: Тип 1 | F39: Тип 2 | G39: Тип 3 | H39: Тип 4
A40: BLEND 1, BLEND 4 | E40: 13573.05984 | F40: 14209.29702 | G40: 14704.14816 | H40: 15269.69232
A41: BLEND 2, BLEND 5 | E41: 14350.68306 | F41: 14986.92024 | G41: 15481.77138 | H41: 16047.31554
A42: BLEND 3, BLEND6 | E42: 15128.30628 | F42: 15764.54346 | G42: 16259.3946 | H42: 16824.93876
A43: BLEND 7, BLEND 10 | E43: 13785.1389 | F43: 14421.37608 | G43: 14916.22722 | H43: 15481.77138
A44: BLEND 8, BLEND 11 | E44: 14633.45514 | F44: 15269.69232 | G44: 15764.54346 | H44: 16330.08762
A45: BLEND 9, BLEND 12 | E45: 15552.4644 | F45: 16188.70158 | G45: 16683.55272 | H45: 17249.09688
A46: BLEND 13 | E46: 13360.98078 | F46: 13997.21796 | G46: 14492.0691 | H46: 15057.61326
A47: BLEND14 | E47: 15481.77138 | F47: 16118.00856 | G47: 16612.8597 | H47: 17178.40386
A48: BLEND 15 | E48: 15764.54346 | F48: 16400.78064 | G48: 16895.63178 | H48: 17461.17594
A49: BLEND 16, BLEND 17 | E49: 14633.45514 | F49: 15269.69232 | G49: 15764.54346 | H49: 16330.08762
A50: Модели BLEND 13, BLEND 16, BLEND 17 изготавливаются со стеклом без гравировки
A52: Остальные модели возможно так же изготовить без гравировки на стекле. Необходимо указывать в примечание при оформлении заказа
A54: При заказе компланарного погнажна на данную коллекцию, врезка возможно только под петли Armadillo U3D8000
A56: Стекло | D56: Модель | G56: Наценка
A57: Зеркало | D57: Все модели | G57: 0
A58: Черный лакобель / Белый лакобель
A59: Зеркало графит / Коричневый лакобель / Зеркало бронза | D59: BLEND 1, BLEND 2, BLEND 4, BLEND 5, BLEND 7, BLEND 8, BLEND 10, BLEND 11, BLEND 13, BLEND 16, BLEND 17 | G59: 424.15812
D60: BLEND 3, BLEND 6, BLEND 9, BLEND 12, BLEND 14, BLEND 15 | G60: 565.54416
A61: Супер белый лакобель | D61: BLEND 1, BLEND 2, BLEND 4, BLEND 5, BLEND 7, BLEND 8, BLEND 10, BLEND 11, BLEND 13, BLEND 16, BLEND 17 | G61: 848.31624
D62: BLEND 3, BLEND 6, BLEND 9, BLEND 12, BLEND 14, BLEND 15 | G62: 1131.08832
A63: Опции и наценки
A64: Алюминиевая кромка с 2-х сторон !!!( В названии модели добавлятся приставка /S) | H64: 2120.7906
A65: Алюминиевая кромка по периметру !!!( В названии модели добавлятся приставка /S) | H65: 3463.95798
A66: Наценка на полотно толщиной 42 мм (без алюминиевой кромки) | H66: 1413.8604
A67: Наценка за черную и золотую алюминиевую кромку (Оттенок золотой кромки может отличаться от партии к партии) | H67: 565.54416
A68: Наценка за алюминиевую кромку шампань | H68: 848.31624
A69: Укутка вверх/низ | H69: 282.77208
A70: Усиленное полотно ( + 20 кг) | H70: 2120.7906
A71: Дополнительная упаковка для полотна | H71: 424.15812
A72: Шумоизоляция фибролитовой плитой | H72: 4241.5812
A73: Наполнение белтермо | H73: 4241.5812
A74: Cтабилизатор Morelli (Рекомендуем для полотен выше 2360 мм) Комплект 2 шт | H74: 3386.981136
A75: Наценки за нестандартные размеры
A76: Ширина
A77: 400-950 (шаг 10 мм) | E77: Без наценки
A78: Высота
A79: 1800 - 2050 (шаг 10 мм) | E79: Без наценки
A80: до 1800 мм, свыше 2050 мм - 2350 мм | E80: 0.2
A81: свыше 2360 мм - 2750 мм | E81: 50% (к базовой цене)
A82: свыше 2760 мм - 2850 мм (Укутка вверх/низ - НЕДОСТУПНА) | E82: 80% (к базовой цене)
A83: При заказе дверей высотой выше 2360, необходимо обязательно заказывать стабилизатор + врезку cтабилизатора
A85: Важно!!! При заказе двери выше 2360 мм допуск по кривизне составляет 3 мм
A87: Погонажные изделия (Стандарт) | E87: Тип 1 | F87: Тип 2 | G87: Тип 3 | H87: Тип 4
A88: Наличник МДФ телескоп 80*10 мм | E88: 629.167878 | F88: 660.6262719 | G88: 692.0846658 | H88: 723.5430597
A89: Коробка МДФ телескоп (Под 38 мм полотно) 75*32 мм | E89: 926.078562 | F89: 972.3824901 | G89: 1018.686418 | H89: 1064.990346
A90: Доборная доска МДФ телескопический 90*10 мм | E90: 711.119416 | F90: 746.6753868 | G90: 782.2313576 | H90: 817.7873284
A91: Доборная доска МДФ телескопический 130*10 мм | E91: 872.404232 | F91: 916.0244436 | G91: 959.6446552 | H91: 1003.264867
A92: Доборная доска МДФ телескопический 170*10 мм | E92: 1004.364536 | F92: 1054.582763 | G92: 1104.80099 | H92: 1155.019216
A93: Плинтус, 80*16*2070 мм., шт. | E93: 872.404232 | F93: 916.0244436 | G93: 959.6446552 | H93: 1003.264867
A94: Комплект крепежей (1 плинтус - 1 комплект(5 шт.) | E94: 205.271584 | F94: - | G94: - | H94: -
A95: Технические особенности
A96: Толщина полотна - 38 мм / С алюминиевой кромкой - 42 мм
A97: Полезные ссылки
A98: Навигатор | B98: Погонаж | C98: Накладки | D98: Доп. Ассортимент | E98: ПВХ | F98: Фурнитура | G98: Врезка | H98: Системы
A100: Техническая информация
A101: Модель | C101: Применяемость в реверс компланар | E101: Обязательность сторонности открывания (без врезки) | G101: Применяемость стабилизатора
A102: BLEND 1 - BLEND 17 (ДО) | C102: да, НО рисунок уменьшается со всех сторон на 12мм | E102: нет | G102: да

Sheet GEMMA
A1: Навигатор
A2: Коллекция GEMMA
A13: GEMMA 1 ДГ | B13: GEMMA 2 ДГ | C13: GEMMA 3 ДГ | D13: GEMMA 4 ДГ | E13: GEMMA 5 ДГ | F13: GEMMA 6 ДГ | G13: GEMMA 7 ДГ | H13: GEMMA 8 ДГ
A24: GEMMA 1 ДО | B24: GEMMA 2 ДО | C24: GEMMA 3 ДО | D24: GEMMA 4 ДО | E24: GEMMA 5 ДО | F24: GEMMA 6 ДО | G24: GEMMA 7 ДО | H24: GEMMA 8 ДО
A35: GEMMA 9 ДО
A37: Техническая информация (нажмите)
A39: Cтоимость
A41: Модель | E41: Тип 1 | F41: Тип 2 | G41: Тип 3 | H41: Тип 4
A42: GEMMA ДГ (Все модели) | E42: 11452.26924 | F42: 12088.50642 | G42: 12583.35756 | H42: 13148.90172
A43: ДО
A44: GEMMA 1, GEMMA 5, GEMMA 7, GEMMA 8 (ДО) | E44: 13997.21796 | F44: 14633.45514 | G44: 15128.30628 | H44: 15693.85044
A45: GEMMA 2, GEMMA 3, GEMMA 6, GEMMA 9 (ДО) | E45: 13502.36682 | F45: 14138.604 | G45: 14633.45514 | H45: 15198.9993
A46: Стекло | D46: Модель | G46: Наценка
A47: Прозрачное (Видны внутренности МДФ) | D47: Все модели | G47: 0
A48: Белое М1 (матирование с 1 стороны) | G48: 0
A49: Белое М1Р1 ( матирование с 1 стороны + рисунок) | G49: 494.85114
A50: Белое М1Г1 ( матирование с 1 стороны + гравировка) | G50: 1413.8604
A51: Стекло Бронза, графит (Наценка к стеклу дополнительно) | G51: 1413.8604
A52: Триплекс 2+2 черный/белый | G52: 2120.7906
A53: Доступные рисунки для данной коллекции
A54: Рисунки
B55: Имитация фацета | E55: Гравировка
A56: М1Р1 | B56: + | E56: -
A57: М1Г1 | B57: - | E57: +
A58: Опции и наценки
A59: Укутка вверх/низ | H59: 282.77208
A60: Усиленное полотно ( + 20 кг) | H60: 2120.7906
A61: Алюминиевая кромка с 2-х сторон | H61: 2120.7906
A62: Алюминиевая кромка по периметру | H62: 3463.95798
A63: Наценка за черную и золотую алюминиевую кромку (Оттенок может отличаться от партии к партии) | H63: 565.54416
A64: Наценка за алюминиевую кромку шампань | H64: 848.31624
A65: Наценка на полотно толщиной 42 мм (без алюминиевой кромки) | H65: 1413.8604
A66: Дополнительная упаковка для полотна | H66: 424.15812
A67: Шумоизоляция фибролитовой плитой | H67: 4241.5812
A68: Наполнение белтермо | H68: 4241.5812
A69: Cтабилизатор Morelli (Рекомендуем для полотен выше 2360 мм) Комплект 2 шт | H69: 3386.981136
A71: Наценки за нестандартные размеры
A72: Ширина
A73: 400-950 (шаг 10 мм) | E73: Без наценки
A74: Высота
A75: 1800 - 2050 (шаг 10 мм) | E75: Без наценки
A76: до 1800 мм, свыше 2050 мм - 2350 мм | E76: 0.2
A77: свыше 2360 мм - 2750 мм | E77: 50% (к базовой цене)
A78: свыше 2760 мм - 2850 мм (Укутка вверх/низ - НЕДОСТУПНА) | E78: 80% (к базовой цене)
A79: При заказе дверей высотой выше 2360, необходимо объязательно заказывать стабилизатор + врезку cтабилизатора
A81: GEMMA ДО - Врезка стабилизатора невозможна. Максимальная высота без стабилизатора 2400 мм.
A82: Важно!!! При заказе двери выше 2360 мм допуск по кривизне составляет 3 мм
A84: Погонажные изделия (Стандарт) | E84: Тип 1 | F84: Тип 2 | G84: Тип 3 | H84: Тип 4
A85: Наличник МДФ телескоп 80*10 мм | E85: 629.167878 | F85: 660.6262719 | G85: 692.0846658 | H85: 723.5430597
A86: Коробка МДФ телескоп (Под 38 мм полотно) 75*32 мм | E86: 926.078562 | F86: 972.3824901 | G86: 1018.686418 | H86: 1064.990346
A87: Доборная доска МДФ телескопический 90*10 мм | E87: 711.119416 | F87: 746.6753868 | G87: 782.2313576 | H87: 817.7873284
A88: Доборная доска МДФ телескопический 130*10 мм | E88: 872.404232 | F88: 916.0244436 | G88: 959.6446552 | H88: 1003.264867
A89: Доборная доска МДФ телескопический 170*10 мм | E89: 1004.364536 | F89: 1054.582763 | G89: 1104.80099 | H89: 1155.019216
A90: Плинтус, 80*16*2070 мм., шт. | E90: 872.404232 | F90: 916.0244436 | G90: 959.6446552 | H90: 1003.264867
A91: Комплект крепежей (1 плинтус - 1 комплект(5 шт.) | E91: 205.271584 | F91: - | G91: - | H91: -
A92: Полезные ссылки
A93: Навигатор | B93: Погонаж | C93: Накладки | D93: Доп. Ассортимент | E93: ПВХ | F93: Фурнитура | G93: Врезка | H93: Системы
A95: Техническая информация
A96: Модель | C96: Применяемость в реверс компланар | E96: Обязательность сторонности открывания (без врезки) | G96: Применяемость стабилизатора
A97: GEMMA 1 - GEMMA 8 (ДГ) | C97: да, НО рисунок уменьшается со всех сторон на 12мм | E97: нет | G97: да
A98: GEMMA 1 - GEMMA 9 (ДО) | C98: да, НО рисунок уменьшается со всех сторон на 12мм | E98: нет | G98: нет

Sheet ATIKA
A1: Навигатор
A2: Коллекция ATIKA
A13: ATIKA 1 ДГ | B13: ATIKA 1.1 ДГ | C13: ATIKA 1.2 ДГ | D13: ATIKA 1 ДО | E13: ATIKA 1.1 ДО | F13: ATIKA 1.2 ДО | G13: ATIKA 2 ДГ | H13: ATIKA 2.1 ДГ
A23: ATIKA 2.2 ДГ | B23: ATIKA 2 ДО | C23: ATIKA 2.1 ДО | D23: ATIKA 2.2 ДО | E23: ATIKA 3 ДГ | F23: ATIKA 3.1 ДГ | G23: ATIKA 3.2 ДГ | H23: ATIKA 3 ДО
A34: ATIKA 3.1 ДО | B34: ATIKA 3.2 ДО | C34: ATIKA 4 ДГ | D34: ATIKA 4.1 ДГ | E34: ATIKA 4.2 ДГ | F34: ATIKA 4 ДО | G34: ATIKA 4.1 ДО | H34: ATIKA 4.2 ДО
A45: ATIKA 5 ДГ | B45: ATIKA 5.1 ДГ | C45: ATIKA 5.2 ДГ | D45: ATIKA 5 ДО | E45: ATIKA 5.1 ДО | F45: ATIKA 5.2 ДО | G45: ATIKA 6 ДГ | H45: ATIKA 6.1 ДГ
A56: ATIKA 6.2 ДГ | B56: ATIKA 6 ДО | C56: ATIKA 6.1 ДО | D56: ATIKA 6.2 ДО | E56: ATIKA 7 ДГ | F56: ATIKA 7.1 ДГ | G56: ATIKA 7.2 ДГ | H56: ATIKA 8 ДГ
A67: ATIKA 8.1 ДГ | B67: ATIKA 8.2 ДГ | C67: ATIKA 9 ДГ | D67: ATIKA 9.1 ДГ | E67: ATIKA 9.2 ДГ | F67: ATIKA 9 ДО | G67: ATIKA 9.1 ДО | H67: ATIKA 9.2 ДО
A69: Техническая информация (нажмите)
A71: Cтоимость
A73: Модель | E73: Тип 1 | F73: Тип 2 | G73: Тип 3 | H73: Тип 4
A74: Atika ДГ (Все модели) | E74: 10462.56696 | F74: 11098.80414 | G74: 11593.65528 | H74: 12159.19944
A75: ДО
A76: Atika 1, Atika 1.1, Atika 1.2, Atika 3, Atika 3.1, Atika 3.2, Atika 4, Atika 4.1, Atika 4.2, Atika 6, Atika 6.1, Atika 6.2, Atika 9, Atika 9.1, Atika 9,2 | E76: 13431.6738 | F76: 14067.91098 | G76: 14562.76212 | H76: 15128.30628
A77: Atika 2, Atika 2.1, Atika 2.2, Atika 5, Atika 5.1, Atika 5.2 | E77: 12583.35756 | F77: 13219.59474 | G77: 13714.44588 | H77: 14279.99004
A78: Стекло | C78: Модель | G78: Наценка
A79: Белое М1 (матирование с 1 стороны) | C79: Все модели | G79: 0
A80: Белое М2 (матирование с 2-ух сторон) | G80: 424.15812
A81: Белое М1Р1 ( матирование с 1 стороны + рисунок) | G81: 848.31624
A82: Белое М1Г1 ( матирование с 1 стороны + гравировка) | G82: 1767.3255
A83: Стекло Бронза, графит (Наценка к стеклу дополнительно) | G83: 1413.8604
A84: Рифленное стекло ФЛУТС | G84: 3534.651
A85: Рифленное Стекло ФЛУТС графит (Наценка к стеклу дополнительно) | G85: 1413.8604
A86: Рифленное Стекло ФЛУТС бронза (Наценка к стеклу дополнительно) | G86: 4241.5812
A87: Стекло кафедрал | G87: 7776.2322
A88: Виды фрезировок
B90: Фреза 1 Фреза 1.1 Фреза 1.2
A91: Доступные рисунки для данной коллекции
A92: Рисунки
B93: Дамаск | C93: Решетка | D93: Ромбы | E93: Калисто | F93: Пандора | G93: Фламенко | H93: Имитация фацета
A94: М1Р1 | B94: + | C94: + | D94: + | E94: + | F94: + | G94: + | H94: +
A95: М1Г1 | B95: - | C95: + | D95: + | E95: - | F95: - | G95: (Только прямые линии) | H95: -
A96: Опции и наценки
A97: Укутка вверх/низ (На моделях M 7, M 7.1, M 7.2 НЕДОСТУПНА) | H97: 282.77208
A98: Усиленное полотно ( + 20 кг) | H98: 2120.7906
A99: Алюминиевая кромка с 2-х сторон | H99: 2120.7906
A100: Алюминиевая кромка по периметру | H100: 3463.95798
A101: Наценка за черную и золотую алюминиевую кромку (Оттенок может отличаться от партии к партии) | H101: 565.54416
A102: Наценка за алюминиевую кромку шампань | H102: 848.31624
A103: Наценка на полотно толщиной 42 мм (без алюминиевой кромки) | H103: 1413.8604
A104: Дополнительная упаковка для полотна | H104: 424.15812
A105: Шумоизоляция фибролитовой плитой | H105: 4241.5812
A106: Наполнение белтермо | H106: 4241.5812
A107: Cтабилизатор Morelli (Рекомендуем для полотен выше 2360 мм) Комплект 2 шт | H107: 3386.981136
A108: Наценки за нестандартные размеры
A109: Ширина
A110: 400-950 (шаг 10 мм) | E110: Без наценки
A111: Высота
A112: 1800 - 2050 (шаг 10 мм) | E112: Без наценки
A113: до 1800 мм, свыше 2050 мм - 2350 мм | E113: 0.2
A114: свыше 2360 мм - 2750 мм | E114: 50% (к базовой цене)
A115: свыше 2760 мм - 2850 мм (Укутка вверх/низ - НЕДОСТУПНА) | E115: 80% (к базовой цене)
A116: При заказе дверей высотой выше 2360, необходимо объязательно заказывать стабилизатор + врезку cтабилизатора
A118: ATIKA ДО - Врезка стабилизатора невозможна. Максимальная высота без стабилизатора 2400 мм.
A119: Важно!!! При заказе двери выше 2360 мм допуск по кривизне составляет 3 мм
A121: Погонажные изделия (Стандарт) | E121: Тип 1 | F121: Тип 2 | G121: Тип 3 | H121: Тип 4
A122: Наличник МДФ телескоп 80*10 мм | E122: 629.167878 | F122: 660.6262719 | G122: 692.0846658 | H122: 723.5430597
A123: Коробка МДФ телескоп (Под 38 мм полотно) 75*32 мм | E123: 926.078562 | F123: 972.3824901 | G123: 1018.686418 | H123: 1064.990346
A124: Доборная доска МДФ телескопический 90*10 мм | E124: 711.119416 | F124: 746.6753868 | G124: 782.2313576 | H124: 817.7873284
A125: Доборная доска МДФ телескопический 130*10 мм | E125: 872.404232 | F125: 916.0244436 | G125: 959.6446552 | H125: 1003.264867
A126: Доборная доска МДФ телескопический 170*10 мм | E126: 1004.364536 | F126: 1054.582763 | G126: 1104.80099 | H126: 1155.019216
A127: Плинтус, 80*16*2070 мм., шт. | E127: 872.404232 | F127: 916.0244436 | G127: 959.6446552 | H127: 1003.264867
A128: Комплект крепежей (1 плинтус - 1 комплект(5 шт.) | E128: 205.271584 | F128: - | G128: - | H128: -
A129: Полезные ссылки
A130: Навигатор | B130: Погонаж | C130: Накладки | D130: Доп. Ассортимент | E130: ПВХ | F130: Фурнитура | G130: Врезка | H130: Системы
A132: Техническая информация
A133: Модель | C133: Применяемость в реверс компланар | E133: Обязательность сторонности открывания (без врезки) | G133: Применяемость стабилизатора
A134: Все модели ДГ | C134: да | E134: нет | G134: да
A135: Все модели ДО | C135: да | E135: нет | G135: нет

Sheet SIENA
A1: Навигатор
A2: Коллекция SIENA
A13: SIENA 1 ДГ | B13: SIENA 1 ДО | C13: SIENA 2 ДГ | D13: SIENA 2 ДО | E13: SIENA 3 ДГ | F13: SIENA 3 ДО | G13: SIENA 4 ДГ | H13: SIENA 4 ДО
D24: SIENA 5 ДГ | E24: SIENA5 ДО
A25: Техническая информация (нажмите)
A27: Cтоимость
A28: Модель | E28: Тип 1 | F28: Тип 2 | G28: Тип 3 | H28: Тип 4
A29: Siena ДГ (Все модели) | E29: 11664.3483 | F29: 12300.58548 | G29: 12795.43662 | H29: 13360.98078
A30: ДО
A31: Siena 1, Siena 2, Siena 5 (ДО) | E31: 13926.52494 | F31: 14562.76212 | G31: 15057.61326 | H31: 15623.15742
A32: Siena 3, Siena 4 (ДО) | E32: 14067.91098 | F32: 14704.14816 | G32: 15198.9993 | H32: 15764.54346
A33: Стекло | D33: Модель | G33: Наценка
A34: Белое М1 (матирование с 1 стороны) | D34: Все модели | G34: 0
A35: Белое М1Р1 ( матирование с 1 стороны + рисунок) | G35: 353.4651
A36: Белое М1Г1 ( матирование с 1 стороны + гравировка) | G36: 1767.3255
A37: Стекло кафедрал | G37: 7846.92522
A38: Стекло Бронза, графит (Наценка к стеклу дополнительно) | G38: 1413.8604
A39: Зеркало | G39: 1696.63248
A40: Черный лакобель / Белый лакобель | G40: 1696.63248
A41: Зеркало графит | G41: 2120.7906
A42: Супер белый лакобель | G42: 2827.7208
A43: Доступные рисунки для данной коллекции
A44: Рисунки
B45: Дамаск | C45: Решетка | D45: Ромбы | E45: Калисто | F45: Пандора | G45: Фламенко | H45: Имитация фацета
A46: М1Р1 | B46: + | C46: + | D46: + | E46: + | F46: + | G46: + | H46: +
A47: М1Г1 | B47: - | C47: + | D47: + | E47: - | F47: - | G47: (Только прямые линии) | H47: -
A48: Опции и наценки
A49: Укутка вверх/низ | H49: 282.77208
A50: Усиленное полотно ( + 20 кг) | H50: 2120.7906
A51: Алюминиевая кромка с 2-х сторон | H51: 2120.7906
A52: Алюминиевая кромка по периметру | H52: 3463.95798
A53: Наценка за черную и золотую алюминиевую кромку (Оттенок может отличаться от партии к партии) | H53: 565.54416
A54: Наценка за алюминиевую кромку шампань | H54: 848.31624
A55: Наценка на полотно толщиной 42 мм (без алюминиевой кромки) | H55: 1413.8604
A56: Дополнительная упаковка для полотна | H56: 424.15812
A57: Шумоизоляция фибролитовой плитой | H57: 4241.5812
A58: Наполнение белтермо | H58: 4241.5812
A59: Cтабилизатор Morelli (Рекомендуем для полотен выше 2360 мм) Комплект 2 шт | H59: 3386.981136
A60: Наценки за нестандартные размеры
A61: Ширина
A62: 400-950 (шаг 10 мм) | E62: Без наценки
A63: Высота
A64: 1800 - 2050 (шаг 10 мм) | E64: Без наценки
A65: до 1800 мм, свыше 2050 мм - 2350 мм | E65: 0.2
A66: свыше 2360 мм - 2750 мм | E66: 50% (к базовой цене)
A67: свыше 2760 мм - 2850 мм (Укутка вверх/низ - НЕДОСТУПНА) | E67: 80% (к базовой цене)
A68: При заказе дверей высотой выше 2360, необходимо объязательно заказывать стабилизатор + врезку cтабилизатора
A70: SIENA(ДО) - Врезка стабилизатора невозможна. Максимальная высота без стабилизатора 2400 мм.
A71: Важно!!! При заказе двери выше 2360 мм допуск по кривизне составляет 3 мм
A73: Погонажные изделия (Стандарт) | E73: Тип 1 | F73: Тип 2 | G73: Тип 3 | H73: Тип 4
A74: Наличник МДФ телескоп 80*10 мм | E74: 629.167878 | F74: 660.6262719 | G74: 692.0846658 | H74: 723.5430597
A75: Коробка МДФ телескоп (Под 38 мм полотно) 75*32 мм | E75: 926.078562 | F75: 972.3824901 | G75: 1018.686418 | H75: 1064.990346
A76: Доборная доска МДФ телескопический 90*10 мм | E76: 711.119416 | F76: 746.6753868 | G76: 782.2313576 | H76: 817.7873284
A77: Доборная доска МДФ телескопический 130*10 мм | E77: 872.404232 | F77: 916.0244436 | G77: 959.6446552 | H77: 1003.264867
A78: Доборная доска МДФ телескопический 170*10 мм | E78: 1004.364536 | F78: 1054.582763 | G78: 1104.80099 | H78: 1155.019216
A79: Плинтус, 80*16*2070 мм., шт. | E79: 872.404232 | F79: 916.0244436 | G79: 959.6446552 | H79: 1003.264867
A80: Комплект крепежей (1 плинтус - 1 комплект(5 шт.) | E80: 205.271584 | F80: - | G80: - | H80: -
A81: Полезные ссылки
A82: Навигатор | B82: Погонаж | C82: Накладки | D82: Доп. Ассортимент | E82: ПВХ | F82: Фурнитура | G82: Врезка | H82: Системы
A84: Техническая информация
A85: Модель | C85: Применяемость в реверс компланар | E85: Обязательность сторонности открывания (без врезки) | G85: Применяемость стабилизатора
A86: Все модели ДГ | C86: да | E86: нет | G86: да
A87: Все модели ДО | C87: да | E87: нет | G87: нет

Sheet LIBERTA
A1: Навигатор
A2: Коллекция LIBERTA
A13: LIBERTA 1 ДГ | B13: LIBERTA 1 ДО | C13: LIBERTA 2 ДГ | D13: LIBERTA 2 ДО | E13: LIBERTA 3 ДГ | F13: LIBERTA 3 ДО | G13: LIBERTA 4 ДГ | H13: LIBERTA 4 ДО
D24: LIBERTA 5 ДО | E24: LIBERTA 6 ДО
A25: Техническая информация (нажмите)
A27: Модель | E27: Тип 1 | F27: Тип 2 | G27: Тип 3 | H27: Тип 4
A28: LIBERTA ДГ (Все модели) | E28: 13785.1389 | F28: 14421.37608 | G28: 14916.22722 | H28: 15481.77138
A29: ДО
A30: LIBERTA 1, LIBERTA 4 (ДО) | E30: 16047.31554 | F30: 16683.55272 | G30: 17178.40386 | H30: 17743.94802
A31: LIBERTA 2, LIBERTA 3, LIBERTA 5, LIBERTA 6 (ДО) | E31: 15623.15742 | F31: 16259.3946 | G31: 16754.24574 | H31: 17319.7899
A32: Стекло | D32: Модель | G32: Наценка
A33: Белое М1 (матирование с 1 стороны) | D33: Все модели | G33: 0
A34: Белое М1Р1 ( матирование с 1 стороны + рисунок) | G34: 353.4651
A35: Белое М1Г1 ( матирование с 1 стороны + гравировка) | G35: 1767.3255
A36: Стекло Бронза, графит (Наценка к стеклу дополнительно) | G36: 989.70228
A37: Стекло кафедрал | G37: 7776.2322
A38: Доступные рисунки для данной коллекции
A39: Рисунки
B40: Дамаск | C40: Решетка | D40: Ромбы | E40: Калисто | F40: Пандора | G40: Фламенко | H40: Имитация фацета
A41: М1Р1 | B41: + | C41: + | D41: + | E41: + | F41: + | G41: + | H41: +
A42: М1Г1 | B42: - | C42: + | D42: + | E42: - | F42: - | G42: (Только прямые линии) | H42: -
A43: Опции и наценки
A44: Укутка вверх/низ | H44: 282.77208
A45: Усиленное полотно ( + 20 кг) | H45: 2120.7906
A46: Алюминиевая кромка с 2-х сторон | H46: 2120.7906
A47: Алюминиевая кромка по периметру | H47: 3463.95798
A48: Наценка за черную и золотую алюминиевую кромку (Оттенок может отличаться от партии к партии) | H48: 565.54416
A49: Наценка за алюминиевую кромку шампань | H49: 848.31624
A50: Наценка на полотно толщиной 42 мм (без алюминиевой кромки) | H50: 1413.8604
A51: Дополнительная упаковка для полотна | H51: 424.15812
A52: Шумоизоляция фибролитовой плитой | H52: 4241.5812
A53: Наполнение белтермо | H53: 4241.5812
A54: Cтабилизатор Morelli (Рекомендуем для полотен выше 2360 мм) Комплект 2 шт | H54: 3386.981136
A55: Наценки за нестандартные размеры
A56: Ширина
A57: 400-950 (шаг 10 мм) | E57: Без наценки
A58: Высота
A59: 1800 - 2050 (шаг 10 мм) | E59: Без наценки
A60: до 1800 мм, свыше 2050 мм - 2350 мм | E60: 0.2
A61: свыше 2360 мм - 2750 мм | E61: 50% (к базовой цене)
A62: свыше 2760 мм - 2850 мм (Укутка вверх/низ - НЕДОСТУПНА) | E62: 80% (к базовой цене)
A63: При заказе дверей высотой выше 2360, необходимо объязательно заказывать стабилизатор + врезку cтабилизатора
A65: LIBERTA (ДО) - Врезка стабилизатора невозможна. Максимальная высота без стабилизатора 2400 мм.
A66: Важно!!! При заказе двери выше 2360 мм допуск по кривизне составляет 3 мм
A68: Погонажные изделия (Стандарт) | E68: Тип 1 | F68: Тип 2 | G68: Тип 3 | H68: Тип 4
A69: Наличник МДФ телескоп 80*10 мм | E69: 629.167878 | F69: 660.6262719 | G69: 692.0846658 | H69: 723.5430597
A70: Коробка МДФ телескоп (Под 38 мм полотно) 75*32 мм | E70: 926.078562 | F70: 972.3824901 | G70: 1018.686418 | H70: 1064.990346
A71: Доборная доска МДФ телескопический 90*10 мм | E71: 711.119416 | F71: 746.6753868 | G71: 782.2313576 | H71: 817.7873284
A72: Доборная доска МДФ телескопический 130*10 мм | E72: 872.404232 | F72: 916.0244436 | G72: 959.6446552 | H72: 1003.264867
A73: Доборная доска МДФ телескопический 170*10 мм | E73: 1004.364536 | F73: 1054.582763 | G73: 1104.80099 | H73: 1155.019216
A74: Плинтус, 80*16*2070 мм., шт. | E74: 872.404232 | F74: 916.0244436 | G74: 959.6446552 | H74: 1003.264867
A75: Комплект крепежей (1 плинтус - 1 комплект(5 шт.) | E75: 205.271584 | F75: - | G75: - | H75: -
A76: Полезные ссылки
A77: Навигатор | B77: Погонаж | C77: Накладки | D77: Доп. Ассортимент | E77: ПВХ | F77: Фурнитура | G77: Врезка | H77: Системы
A79: Техническая информация
A80: Модель | C80: Применяемость в реверс компланар | E80: Обязательность сторонности открывания (без врезки) | G80: Применяемость стабилизатора
A81: Все модели ДГ | C81: да | E81: нет | G81: да
A82: Все модели ДО | C82: да | E82: нет | G82: нет

Sheet LAURA
A1: Навигатор
A2: Коллекция LAURA
A13: LAURA 1.1 ДГ | B13: LAURA 1.2 ДГ | C13: LAURA 2.1 ДГ | D13: LAURA 2.2 ДГ | E13: LAURA 3.1 ДГ | F13: LAURA 3.2 ДГ | G13: LAURA 4.1 ДГ | H13: LAURA 4.2 ДГ
A25: LAURA 1.1 ДО | B25: LAURA 1.2 ДО | C25: LAURA 2.1 ДО | D25: LAURA 2.2 ДО | E25: LAURA 3.1 ДО | F25: LAURA 3.2 ДО | G25: LAURA 4.1 ДО | H25: LAURA 4.2 ДО
A27: Техническая информация (нажмите)
A29: Модель | E29: Тип 1 | F29: Тип 2 | G29: Тип 3 | H29: Тип 4
A30: LAURA ДГ (Все модели) | E30: 11735.04132 | F30: 12371.2785 | G30: 12866.12964 | H30: 13431.6738
A31: LAURA 1.1,LAURA 1.2,LAURA 2.1,LAURA 2.2,LAURA 3.1,LAURA 3.2(ДО) | E31: 13148.90172 | F31: 13785.1389 | G31: 14279.99004 | H31: 14845.5342
A32: LAURA 4.1, LAURA 4.2 (ДО) | E32: 13573.05984 | F32: 14209.29702 | G32: 14704.14816 | H32: 15269.69232
A34: Стекло | D34: Модель | G34: Наценка
A35: Белое М1 (матирование с 1 стороны) | D35: Все модели | G35: 0
A36: Белое М1Р1 ( матирование с 1 стороны + рисунок) | G36: 353.4651
A37: Белое М1Г1 ( матирование с 1 стороны + гравировка) | G37: 1767.3255
A38: Стекло Бронза, графит (Наценка к стеклу дополнительно) | G38: 1413.8604
A39: Стекло кафедрал | G39: 7776.2322
A40: Виды фрезировок
B42: Фреза 1.1 Фреза 1.2
A43: Доступные рисунки для данной коллекции
A44: Рисунки
B45: Дамаск | C45: Решетка | D45: Ромбы | E45: Калисто | F45: Пандора | G45: Фламенко | H45: Имитация фацета
A46: М1Р1 | B46: + | C46: + | D46: + | E46: + | F46: + | G46: + | H46: +
A47: М1Г1 | B47: - | C47: + | D47: + | E47: - | F47: - | G47: (Только прямые линии) | H47: -
A48: Опции и наценки
A49: Укутка вверх/низ | H49: 282.77208
A50: Усиленное полотно ( + 20 кг) | H50: 2120.7906
A51: Алюминиевая кромка с 2-х сторон | H51: 2120.7906
A52: Алюминиевая кромка по периметру | H52: 3463.95798
A53: Наценка за черную и золотую алюминиевую кромку (Оттенок может отличаться от партии к партии) | H53: 565.54416
A54: Наценка за алюминиевую кромку шампань | H54: 848.31624
A55: Наценка на полотно толщиной 42 мм (без алюминиевой кромки) | H55: 1413.8604
A56: Дополнительная упаковка для полотна | H56: 424.15812
A57: Шумоизоляция фибролитовой плитой | H57: 4241.5812
A58: Наполнение белтермо | H58: 4241.5812
A59: Cтабилизатор Morelli (Рекомендуем для полотен выше 2360 мм) Комплект 2 шт | H59: 3386.981136
A60: Наценки за нестандартные размеры
A61: Ширина
A62: 400-950 (шаг 10 мм) | E62: Без наценки
A63: Высота
A64: 1800 - 2050 (шаг 10 мм) | E64: Без наценки
A65: до 1800 мм, свыше 2050 мм - 2350 мм | E65: 0.2
A66: свыше 2360 мм - 2750 мм | E66: 50% (к базовой цене)
A67: свыше 2760 мм - 2850 мм (Укутка вверх/низ - НЕДОСТУПНА) | E67: 80% (к базовой цене)
A68: При заказе дверей высотой выше 2360, необходимо объязательно заказывать стабилизатор + врезку cтабилизатора
A70: LAURA (ДО) - Врезка стабилизатора невозможна. Максимальная высота без стабилизатора 2400 мм.
A71: Важно!!! При заказе двери выше 2360 мм допуск по кривизне составляет 3 мм
A73: Погонажные изделия (Стандарт) | E73: Тип 1 | F73: Тип 2 | G73: Тип 3 | H73: Тип 4
A74: Наличник МДФ телескоп 80*10 мм | E74: 629.167878 | F74: 660.6262719 | G74: 692.0846658 | H74: 723.5430597
A75: Коробка МДФ телескоп (Под 38 мм полотно) 75*32 мм | E75: 926.078562 | F75: 972.3824901 | G75: 1018.686418 | H75: 1064.990346
A76: Доборная доска МДФ телескопический 90*10 мм | E76: 711.119416 | F76: 746.6753868 | G76: 782.2313576 | H76: 817.7873284
A77: Доборная доска МДФ телескопический 130*10 мм | E77: 872.404232 | F77: 916.0244436 | G77: 959.6446552 | H77: 1003.264867
A78: Доборная доска МДФ телескопический 170*10 мм | E78: 1004.364536 | F78: 1054.582763 | G78: 1104.80099 | H78: 1155.019216
A79: Плинтус, 80*16*2070 мм., шт. | E79: 872.404232 | F79: 916.0244436 | G79: 959.6446552 | H79: 1003.264867
A80: Комплект крепежей (1 плинтус - 1 комплект (5 шт.) | E80: 205.271584 | F80: - | G80: - | H80: -
A81: Полезные ссылки
A82: Навигатор | B82: Погонаж | C82: Накладки | D82: Доп. Ассортимент | E82: ПВХ | F82: Фурнитура | G82: Врезка | H82: Системы
A84: Техническая информация
A85: Модель | C85: Применяемость в реверс компланар | E85: Обязательность сторонности открывания (без врезки) | G85: Применяемость стабилизатора
A86: Все модели ДГ | C86: да | E86: нет | G86: да
A87: Все модели ДО | C87: да | E87: нет | G87: нет

Sheet ELEONORA
A1: Навигатор
A2: Коллекция ELEONORA
A14: ELEONORA 1 ДГ | B14: ELEONORA 1 ДО | C14: ELEONORA 5 ДО | D14: ELEONORA 3 ДГ | E14: ELEONORA 3 ДО | F14: ELEONORA 4 ДГ | G14: ELEONORA 4 ДО
A15: Техническая информация (нажмите)
A17: Модель | E17: Тип 1 | F17: Тип 2 | G17: Тип 3 | H17: Тип 4
A18: Eleonora ДГ (Все модели) | E18: 11169.49716 | F18: 11805.73434 | G18: 12300.58548 | H18: 12866.12964
A19: ДО
A20: Eleonora 1, Eleonora 2, Eleonora 3, Eleonora 4 (ДО) | E20: 13714.44588 | F20: 14350.68306 | G20: 14845.5342 | H20: 15411.07836
A22: Стекло | D22: Модель | G22: Наценка
A23: Белое М1 (матирование с 1 стороны) | D23: Все модели | G23: 0
A24: Белое М1Р1 ( матирование с 1 стороны + рисунок) | G24: 353.4651
A25: Белое М1Г1 ( матирование с 1 стороны + гравировка) | G25: 1767.3255
A26: Стекло Бронза, графит (Наценка к стеклу дополнительно) | G26: 989.70228
A27: Стекло кафедрал | G27: 7776.2322
A28: Доступные рисунки для данной коллекции
A29: Рисунки
B30: Дамаск | C30: Решетка | D30: Ромбы | E30: Калисто | F30: Пандора | G30: Фламенко | H30: Имитация фацета
A31: М1Р1 | B31: + | C31: + | D31: + | E31: + | F31: + | G31: + | H31: +
A32: М1Г1 | B32: - | C32: + | D32: + | E32: - | F32: - | G32: (Только прямые линии) | H32: -
A33: Опции и наценки
A34: Укутка вверх/низ | H34: 282.77208
A35: Усиленное полотно ( + 20 кг) | H35: 2120.7906
A36: Алюминиевая кромка с 2-х сторон | H36: 2120.7906
A37: Алюминиевая кромка по периметру | H37: 3463.95798
A38: Наценка за черную и золотую алюминиевую кромку (Оттенок может отличаться от партии к партии) | H38: 1413.8604
A39: Наценка за алюминиевую кромку шампань | H39: 3463.95798
A40: Наценка на полотно толщиной 42 мм (без алюминиевой кромки) | H40: 1413.8604
A41: Дополнительная упаковка для полотна | H41: 424.15812
A42: Шумоизоляция фибролитовой плитой | H42: 4241.5812
A43: Наполнение белтермо | H43: 4241.5812
A44: Cтабилизатор Morelli (Рекомендуем для полотен выше 2360 мм) Комплект 2 шт | H44: 3386.981136
A45: Наценки за нестандартные размеры
A46: Ширина
A47: 400-950 (шаг 10 мм) | E47: Без наценки
A48: Высота
A49: 1800 - 2050 (шаг 10 мм) | E49: Без наценки
A50: до 1800 мм, свыше 2050 мм - 2350 мм | E50: 0.2
A51: свыше 2360 мм - 2750 мм | E51: 50% (к базовой цене)
A52: свыше 2760 мм - 2850 мм (Укутка вверх/низ - НЕДОСТУПНА) | E52: 80% (к базовой цене)
A53: При заказе дверей высотой выше 2360, необходимо объязательно заказывать стабилизатор + врезку cтабилизатора
A55: ELEONORA (ДО) - Врезка стабилизатора невозможна. Максимальная высота без стабилизатора 2400 мм.
A56: Важно!!! При заказе двери выше 2360 мм допуск по кривизне составляет 3 мм
A58: Погонажные изделия (Стандарт) | E58: Тип 1 | F58: Тип 2 | G58: Тип 3 | H58: Тип 4
A59: Наличник МДФ телескоп 80*10 мм | E59: 629.167878 | F59: 660.6262719 | G59: 692.0846658 | H59: 723.5430597
A60: Коробка МДФ телескоп (Под 38 мм полотно) 75*32 мм | E60: 926.078562 | F60: 972.3824901 | G60: 1018.686418 | H60: 1064.990346
A61: Доборная доска МДФ телескопический 90*10 мм | E61: 711.119416 | F61: 746.6753868 | G61: 782.2313576 | H61: 817.7873284
A62: Доборная доска МДФ телескопический 130*10 мм | E62: 872.404232 | F62: 916.0244436 | G62: 959.6446552 | H62: 1003.264867
A63: Доборная доска МДФ телескопический 170*10 мм | E63: 1004.364536 | F63: 1054.582763 | G63: 1104.80099 | H63: 1155.019216
A64: Плинтус, 80*16*2070 мм., шт. | E64: 872.404232 | F64: 916.0244436 | G64: 959.6446552 | H64: 1003.264867
A65: Комплект крепежей (1 плинтус - 1 комплект(5 шт.) | E65: 205.271584 | F65: - | G65: - | H65: -
A66: Полезные ссылки
A67: Навигатор | B67: Погонаж | C67: Накладки | D67: Доп. Ассортимент | E67: ПВХ | F67: Фурнитура | G67: Врезка | H67: Системы
A69: Техническая информация
A70: Модель | C70: Применяемость в реверс компланар | E70: Обязательность сторонности открывания (без врезки) | G70: Применяемость стабилизатора
A71: Все модели ДГ | C71: да | E71: нет | G71: да
A72: Все модели ДО | C72: да | E72: нет | G72: нет

Sheet ARIA
A1: Навигатор
A2: Коллекция ARIA
A14: ARIA 1 | B14: ARIA 2 | C14: ARIA 3 | D14: ARIA 4 | E14: ARIA 5 | F14: ARIA 6 | G14: ARIA 7 | H14: ARIA 8
D26: ARIA 9 | E26: ARIA 10 | F26: ARIA 11
A27: Техническая информация (нажмите)
A29: Cтоимость
A31: Модель | E31: Тип 1 | F31: Тип 2 | G31: Тип 3 | H31: Тип 4
A32: ARIA 1 - ARIA 11 (ДГ) | E32: 13785.1389 | F32: 14421.37608 | G32: 14916.22722 | H32: 15481.77138
A33: Опции и наценки
A34: Алюминиевая кромка с 2-х сторон | H34: 2120.7906
A35: Алюминиевая кромка по периметру | H35: 3463.95798
A36: Наценка на полотно толщиной 42 мм (без алюминиевой кромки) | H36: 1413.8604
A37: Наценка за черную и золотую алюминиевую кромку (Оттенок золотой кромки может отличаться от партии к партии) | H37: 565.54416
A38: Наценка за алюминиевую кромку шампань | H38: 848.31624
A39: Укутка вверх/низ | H39: 282.77208
A40: Усиленное полотно ( + 20 кг) | H40: 2120.7906
A41: Дополнительная упаковка для полотна | H41: 706.9302
A42: Шумоизоляция фибролитовой плитой | H42: 4241.5812
A43: Наполнение белтермо | H43: 4241.5812
A44: Cтабилизатор Morelli (Рекомендуем для полотен выше 2360 мм) Комплект 2 шт | H44: 3386.981136
A45: Наценки за нестандартные размеры
A46: Ширина
A47: 400-950 (шаг 10 мм) | E47: Без наценки
A48: Высота
A49: 1800 - 2050 (шаг 10 мм) | E49: Без наценки
A50: до 1800 мм, свыше 2050 мм - 2350 мм | E50: 0.2
A51: свыше 2360 мм - 2750 мм | E51: 50% (к базовой цене)
A52: свыше 2760 мм - 2850 мм (Укутка вверх/низ - НЕДОСТУПНА) | E52: 80% (к базовой цене)
A53: При заказе дверей высотой выше 2360, необходимо обязательно заказывать стабилизатор + врезку cтабилизатора
A55: Важно!!! При заказе двери выше 2360 мм допуск по кривизне составляет 3 мм
A57: Погонажные изделия (Стандарт) | E57: Тип 1 | F57: Тип 2 | G57: Тип 3 | H57: Тип 4
A58: Наличник МДФ телескоп 80*10 мм | E58: 629.167878 | F58: 660.6262719 | G58: 692.0846658 | H58: 723.5430597
A59: Коробка МДФ телескоп (Под 38 мм полотно) 75*32 мм | E59: 926.078562 | F59: 972.3824901 | G59: 1018.686418 | H59: 1064.990346
A60: Доборная доска МДФ телескопический 90*10 мм | E60: 711.119416 | F60: 746.6753868 | G60: 782.2313576 | H60: 817.7873284
A61: Доборная доска МДФ телескопический 130*10 мм | E61: 872.404232 | F61: 916.0244436 | G61: 959.6446552 | H61: 1003.264867
A62: Доборная доска МДФ телескопический 170*10 мм | E62: 1004.364536 | F62: 1054.582763 | G62: 1104.80099 | H62: 1155.019216
A63: Плинтус, 80*16*2070 мм., шт. | E63: 872.404232 | F63: 916.0244436 | G63: 959.6446552 | H63: 1003.264867
A64: Комплект крепежей (1 плинтус - 1 комплект (5 шт.) | E64: 205.271584 | F64: - | G64: - | H64: -
A65: Технические особенности
A66: Толщина полотна - 38 мм / С алюминиевой кромкой - 42 мм
A67: Полезные ссылки
A68: Навигатор | B68: Погонаж | C68: Накладки | D68: Доп. Ассортимент | E68: ПВХ | F68: Фурнитура | G68: Врезка | H68: Системы
A70: Техническая информация
A71: Модель | C71: Применяемость в реверс компланар | E71: Обязательность сторонности открывания (без врезки) | G71: Применяемость стабилизатора
A72: Все модели | C72: да | E72: нет | G72: да

Sheet ANIMA
A1: Навигатор
A2: Коллекция ANIMA
B13: ANIMA 1 | C13: ANIMA 2 | D13: ANIMA 3 | E13: ANIMA 4 | F13: ANIMA 5 | G13: ANIMA 6
B24: ANIMA 7 | C24: ANIMA 8 | D24: ANIMA 9 | E24: ANIMA 10 | F24: ANIMA 11 | G24: ANIMA 12
A25: Техническая информация (нажмите)
A27: Cтоимость
A28: Модель | E28: Тип 1 | F28: Тип 2 | G28: Тип 3 | H28: Тип 4
A29: ANIMA 1 | E29: 10674.64602 | F29: 11310.8832 | G29: 11805.73434 | H29: 12371.2785
A30: ANIMA 2, ANIMA 4, | E30: 10462.56696 | F30: 11098.80414 | G30: 11593.65528 | H30: 12159.19944
A31: ANIMA 3 | E31: 10816.03206 | F31: 11452.26924 | G31: 11947.12038 | H31: 12512.66454
A32: ANIMA 5 | E32: 12017.8134 | F32: 12654.05058 | G32: 13148.90172 | H32: 13714.44588
A33: ANIMA 6 | E33: 13219.59474 | F33: 13855.83192 | G33: 14350.68306 | H33: 14916.22722
A34: ANIMA 7 | E34: 12583.35756 | F34: 13219.59474 | G34: 13714.44588 | H34: 14279.99004
A35: ANIMA 8 | E35: 12936.82266 | F35: 13573.05984 | G35: 14067.91098 | H35: 14633.45514
A36: ANIMA 9 | E36: 13290.28776 | F36: 13926.52494 | G36: 14421.37608 | H36: 14986.92024
A37: ANIMA 10 | E37: 13714.44588 | F37: 14350.68306 | G37: 14845.5342 | H37: 15411.07836
A38: ANIMA 11 | E38: 14067.91098 | F38: 14704.14816 | G38: 15198.9993 | H38: 15764.54346
A39: ANIMA 12 | E39: 14492.0691 | F39: 15128.30628 | G39: 15623.15742 | H39: 16188.70158
A40: Молдинг | D40: Модель | G40: Наценка
A41: молдинг 10*2 ХРОМ | D41: ВСЕ МОДЕЛИ | G41: 0
A42: молдинг 10*2 ЧЕРНЫЙ | G42: 282.77208
A43: молдинг 10*2 ЗОЛОТО | G43: 565.54416
A44: Т-образный молдинг 3*2 ХРОМ | D44: Anima 1.1 (без ал.кромки), Anima 2.1 (в ал.кромке), Anima 3.1 (без ал.кромки), Anima 4.1 (в ал.кромке) В название модели добавляется .1 | G44: 282.77208
A45: Т-образный молдинг 3*2 ЧЕРНЫЙ | G45: 565.54416
A46: Т-образный молдинг 3*2 ЗОЛОТО | G46: 848.31624
A47: Т-образный молдинг 3*2 ШАМПАНЬ | G47: 848.31624
A48: Опции и наценки
A49: Алюминиевая кромка с 2-х сторон !!!( В названии модели добавлятся приставка /S) | H49: 2120.7906
A50: Алюминиевая кромка по периметру !!!( В названии модели добавлятся приставка /S) | H50: 3463.95798
A51: Наценка на полотно толщиной 42 мм (без алюминиевой кромки) | H51: 1413.8604
A52: Наценка за черную и золотую алюминиевую кромку (Оттенок золотой кромки может отличаться от партии к партии) | H52: 565.54416
A53: Наценка за алюминиевую кромку шампань | H53: 848.31624
A54: Укутка вверх/низ | H54: 282.77208
A55: Усиленное полотно ( + 20 кг) | H55: 2120.7906
A56: Дополнительная упаковка для полотна | H56: 424.15812
A57: Шумоизоляция фибролитовой плитой | H57: 4241.5812
A58: Наполнение белтермо | H58: 4241.5812
A59: Cтабилизатор Morelli (Рекомендуем для полотен выше 2360 мм) Комплект 2 шт | H59: 3386.981136
A60: Наценки за нестандартные размеры
A61: Ширина
A62: 400-950 (шаг 10 мм) | E62: Без наценки
A63: Высота
A64: 1800 - 2050 (шаг 10 мм) | E64: Без наценки
A65: до 1800 мм, свыше 2050 мм - 2350 мм | E65: 0.2
A66: свыше 2360 мм - 2750 мм | E66: 50% (к базовой цене)
A67: свыше 2760 мм - 2850 мм (Укутка вверх/низ - НЕДОСТУПНА) | E67: 80% (к базовой цене)
A68: При заказе дверей высотой выше 2360, необходимо обязательно заказывать стабилизатор + врезку cтабилизатора
A70: Важно!!! При заказе двери выше 2360 мм допуск по кривизне составляет 3 мм
A72: Погонажные изделия (Стандарт) | E72: Тип 1 | F72: Тип 2 | G72: Тип 3 | H72: Тип 4
A73: Наличник МДФ телескоп 80*10 мм | E73: 629.167878 | F73: 660.6262719 | G73: 692.0846658 | H73: 723.5430597
A74: Коробка МДФ телескоп (Под 38 мм полотно) 75*32 мм | E74: 926.078562 | F74: 972.3824901 | G74: 1018.686418 | H74: 1064.990346
A75: Доборная доска МДФ телескопический 90*10 мм | E75: 711.119416 | F75: 746.6753868 | G75: 782.2313576 | H75: 817.7873284
A76: Доборная доска МДФ телескопический 130*10 мм | E76: 872.404232 | F76: 916.0244436 | G76: 959.6446552 | H76: 1003.264867
A77: Доборная доска МДФ телескопический 170*10 мм | E77: 1004.364536 | F77: 1054.582763 | G77: 1104.80099 | H77: 1155.019216
A78: Плинтус, 80*16*2070 мм., шт. | E78: 872.404232 | F78: 916.0244436 | G78: 959.6446552 | H78: 1003.264867
A79: Комплект крепежей (1 плинтус - 1 комплект(5 шт.) | E79: 205.271584 | F79: - | G79: - | H79: -
A80: Технические особенности
A81: Толщина полотна - 38 мм / С алюминиевой кромкой - 42 мм
A82: Полезные ссылки
A83: Навигатор | B83: Погонаж | C83: Накладки | D83: Доп. Ассортимент | E83: ПВХ | F83: Фурнитура | G83: Врезка | H83: Системы
A85: Техническая информация
A86: Модель | C86: Применяемость в реверс компланар | E86: Обязательность сторонности открывания (без врезки) | G86: Применяемость стабилизатора
A87: ANIMA 1 - ANIMA 12 ДГ | C87: да | E87: нет | G87: да

Sheet Practiс
A1: Навигатор
A2: Коллекция Practic
A13: Practic 1 ДГ | B13: Practic 2 ДГ | C13: Practic 3 ДГ | D13: Practic 4 ДГ | E13: Practic 1 ДО | F13: Practic 2 ДО | G13: Practic 3 ДО | H13: Practic 4 ДО
A15: Техническая информация (нажмите)
A17: Модель | E17: Тип 1 | F17: Тип 2 | G17: Тип 3 | H17: Тип 4
A18: Practic ДГ (Все модели) | E18: 11593.65528 | F18: 12229.89246 | G18: 12724.7436 | H18: 13290.28776
A19: ДО
A20: Practic 1, Practic 4 | E20: 14209.29702 | F20: 14845.5342 | G20: 15340.38534 | H20: 15905.9295
A21: Practic 2, Practic 3 | E21: 13573.05984 | F21: 14209.29702 | G21: 14704.14816 | H21: 15269.69232
A22: Стекло | D22: Модель | G22: Наценка
A23: Белое М1 (матирование с 1 стороны) | D23: Все модели | G23: 0
A24: Белое М1Г1 ( матирование с 1 стороны + гравировка) | G24: 1838.01852
A25: Рефлекторное стекло | G25: 2120.7906
A26: Рифленное стекло ФЛУТС | G26: 3534.651
A27: Стекло Бронза, графит (Наценка к стеклу дополнительно) | G27: 1413.8604
A28: Рифленное Стекло ФЛУТС графит (Наценка к стеклу дополнительно) | G28: 1413.8604
A29: Рифленное Стекло ФЛУТС бронза графит (Наценка к стеклу дополнительно) | G29: 4241.5812
A30: Стекло кафедрал | G30: 7776.2322
A31: Доступные рисунки и гравировки для данной коллекции
A32: Рисунки
B33: Ромбы | C33: Решетка | D33: Контур | E33: Фантазия
A34: Опции и наценки
A35: Укутка вверх/низ | H35: 282.77208
A36: Усиленное полотно ( + 20 кг) | H36: 2120.7906
A37: Алюминиевая кромка с 2-х сторон | H37: 2120.7906
A38: Алюминиевая кромка по периметру | H38: 3463.95798
A39: Наценка за черную и золотую алюминиевую кромку (Оттенок золотой кромки может отличаться от партии к партии) | H39: 565.54416
A40: Наценка за алюминиевую кромку шампань | H40: 848.31624
A41: Наценка на полотно толщиной 42 мм (без алюминиевой кромки) | H41: 1413.8604
A42: Дополнительная упаковка для полотна | H42: 424.15812
A43: Шумоизоляция фибролитовой плитой | H43: 4241.5812
A44: Наполнение белтермо | H44: 4241.5812
A45: Cтабилизатор Morelli (Рекомендуем для полотен выше 2360 мм) Комплект 2 шт | H45: 3386.981136
A46: Наценки за нестандартные размеры
A47: Ширина
A48: 400-950 (шаг 10 мм) | E48: Без наценки
A49: Высота
A50: 1800 - 2050 (шаг 10 мм) | E50: Без наценки
A51: до 1800 мм, свыше 2050 мм - 2350 мм | E51: 0.2
A52: свыше 2360 мм - 2750 мм | E52: 50% (к базовой цене)
A53: свыше 2760 мм - 2850 мм (Укутка вверх/низ - НЕДОСТУПНА) | E53: 80% (к базовой цене)
A54: При заказе дверей высотой выше 2360, необходимо обязательно заказывать стабилизатор + врезку cтабилизатора
A56: Важно!!! При заказе двери выше 2360 мм допуск по кривизне составляет 3 мм
A58: Погонажные изделия (Стандарт) | E58: Тип 1 | F58: Тип 2 | G58: Тип 3 | H58: Тип 4
A59: Наличник МДФ телескоп 80*10 мм | E59: 629.167878 | F59: 660.6262719 | G59: 692.0846658 | H59: 723.5430597
A60: Коробка МДФ телескоп (Под 38 мм полотно) 75*32 мм | E60: 926.078562 | F60: 972.3824901 | G60: 1018.686418 | H60: 1064.990346
A61: Доборная доска МДФ телескопический 90*10 мм | E61: 711.119416 | F61: 746.6753868 | G61: 782.2313576 | H61: 817.7873284
A62: Доборная доска МДФ телескопический 130*10 мм | E62: 872.404232 | F62: 916.0244436 | G62: 959.6446552 | H62: 1003.264867
A63: Доборная доска МДФ телескопический 170*10 мм | E63: 1004.364536 | F63: 1054.582763 | G63: 1104.80099 | H63: 1155.019216
A64: Плинтус, 80*16*2070 мм., шт. | E64: 872.404232 | F64: 916.0244436 | G64: 959.6446552 | H64: 1003.264867
A65: Комплект крепежей (1 плинтус - 1 комплект(5 шт.) | E65: 205.271584 | F65: - | G65: - | H65: -
A66: Полезные ссылки
A67: Навигатор | B67: Погонаж | C67: Накладки | D67: Доп. Ассортимент | E67: ПВХ | F67: Фурнитура | G67: Врезка | H67: Системы
A69: Техническая информация
A70: Модель | C70: Применяемость в реверс компланар | E70: Обязательность сторонности открывания (без врезки) | G70: Применяемость стабилизатора
A71: Все модели ДГ | C71: да | E71: нет | G71: да
A72: Все модели ДО | C72: да | E72: нет | G72: нет

Sheet ULTRA
A1: Навигатор
A2: Коллекция ULTRA
A14: ULTRA 1 ДГ | B14: ULTRA 1.1 ДГ | C14: ULTRA 1 ДО | D14: ULTRA 2 ДГ | E14: ULTRA 2.1 ДГ | F14: ULTRA 3 ДГ | G14: ULTRA 3.1 ДГ | H14: ULTRA 4 ДГ
D25: ULTRA 4.1 ДГ | E25: ULTRA 5 ДО
A26: Техническая информация (нажмите)
A28: Cтоимость
A29: Модель | E29: Тип 1 | F29: Тип 2 | G29: Тип 3 | H29: Тип 4
A30: Ultra 1 ДГ | E30: 14421.37608 | F30: 15057.61326 | G30: 15552.4644 | H30: 16118.00856
A31: Ultra 1.1 ДГ | E31: 13785.1389 | F31: 14421.37608 | G31: 14916.22722 | H31: 15481.77138
A32: Ultra 2, Ultra 3, Ultra 4 ДГ | E32: 14774.84118 | F32: 15411.07836 | G32: 15905.9295 | H32: 16471.47366
A33: Ultra 2.1, Ultra 3.1, Ultra 4.1 ДГ | E33: 14138.604 | F33: 14774.84118 | G33: 15269.69232 | H33: 15835.23648
A34: Ultra 1, Ultra 5 ДО | E34: 18662.95728 | F34: 19299.19446 | G34: 19794.0456 | H34: 20359.58976
A37: Стекло | E37: Модель | G37: Наценка
A38: Белое М1 (матирование с 1 стороны) | E38: Ultra 1, Ultra 5 ДО | G38: 0
A39: Рефлекторное стекло | G39: 2120.7906
A40: Рифленное стекло ФЛУТС | G40: 3534.651
A41: Стекло Бронза, графит (Наценка к стеклу дополнительно) | G41: 1413.8604
A42: Рифленное Стекло ФЛУТС графит (Наценка к стеклу дополнительно) | G42: 1413.8604
A43: Рифленное Стекло ФЛУТС бронза (Наценка к стеклу дополнительно) | G43: 7776.2322
A44: Стекло кафедрал | G44: 7776.2322
A45: При заказе компланарного погнажна на данную коллекцию, врезка возможно только под петли Armadillo U3D8000
A47: Молдинг | D47: Модель | G47: Наценка
A48: молдинг 10*2 ХРОМ | D48: Все модели | G48: 0
A49: молдинг 10*2 ЧЕРНЫЙ | G49: 424.15812
A50: молдинг 10*2 ЗОЛОТО | G50: 706.9302
A52: Опции и наценки
A53: Алюминиевая кромка с 2-х сторон | H53: 2120.7906
A54: Алюминиевая кромка по периметру | H54: -
A55: Наценка на полотно толщиной 42 мм (без алюминиевой кромки) | H55: 1413.8604
A56: Наценка за черную и золотую алюминиевую кромку (Оттенок золотой кромки может отличаться от партии к партии) | H56: 565.54416
A57: Наценка за алюминиевую кромку шампань | H57: 848.31624
A58: Укутка вверх/низ | H58: -
A59: Усиленное полотно ( + 20 кг) | H59: 2120.7906
A60: Дополнительная упаковка для полотна | H60: 706.9302
A61: Шумоизоляция фибролитовой плитой | H61: 4241.5812
A62: Наполнение белтермо | H62: 4241.5812
A63: Cтабилизатор Morelli (Рекомендуем для полотен выше 2360 мм) Комплект 2 шт | H63: 3386.981136
A64: Наценки за нестандартные размеры
A65: Ширина
A66: 400-950 (шаг 10 мм) | E66: Без наценки
A67: Высота
A68: 1800 - 2050 (шаг 10 мм) | E68: Без наценки
A69: до 1800 мм, свыше 2050 мм - 2350 мм | E69: 0.2
A70: свыше 2360 мм - 2750 мм | E70: 50% (к базовой цене)
A71: свыше 2760 мм - 2850 мм (Укутка вверх/низ - НЕДОСТУПНА) | E71: 80% (к базовой цене)
A72: При заказе дверей высотой выше 2360, необходимо обязательно заказывать стабилизатор + врезку cтабилизатора
A74: Важно!!! При заказе двери выше 2360 мм допуск по кривизне составляет 3 мм
A76: Погонажные изделия (Стандарт) | E76: Тип 1 | F76: Тип 2 | G76: Тип 3 | H76: Тип 4
A77: Наличник МДФ телескоп 80*10 мм | E77: 629.167878 | F77: 660.6262719 | G77: 692.0846658 | H77: 723.5430597
A78: Коробка МДФ телескоп (Под 38 мм полотно) 75*32 мм | E78: 926.078562 | F78: 972.3824901 | G78: 1018.686418 | H78: 1064.990346
A79: Доборная доска МДФ телескопический 90*10 мм | E79: 711.119416 | F79: 746.6753868 | G79: 782.2313576 | H79: 817.7873284
A80: Доборная доска МДФ телескопический 130*10 мм | E80: 872.404232 | F80: 916.0244436 | G80: 959.6446552 | H80: 1003.264867
A81: Доборная доска МДФ телескопический 170*10 мм | E81: 1004.364536 | F81: 1054.582763 | G81: 1104.80099 | H81: 1155.019216
A82: Плинтус, 80*16*2070 мм., шт. | E82: 872.404232 | F82: 916.0244436 | G82: 959.6446552 | H82: 1003.264867
A83: Комплект крепежей (1 плинтус - 1 комплект (5 шт.) | E83: 205.271584 | F83: - | G83: - | H83: -
A84: Технические особенности
A85: Толщина полотна - 38 мм / С алюминиевой кромкой - 42 мм
A86: Полезные ссылки
A87: Навигатор | B87: Погонаж | C87: Накладки | D87: Доп. Ассортимент | E87: ПВХ | F87: Фурнитура | G87: Врезка | H87: Системы
A89: Техническая информация
A90: Модель | C90: Применяемость в реверс компланар | E90: Обязательность сторонности открывания (без врезки) | G90: Применяемость стабилизатора
A91: Все модели ДГ | C91: да, НО рисунок уменьшается со всех сторон на 12мм | E91: нет | G91: да
A92: Все модели ДО | C92: да, НО рисунок уменьшается со всех сторон на 12мм | E92: да | G92: нет

Sheet NEON
A1: Навигатор
A2: Коллекция NEON
A14: NEON 1 | B14: NEON 2 | C14: NEON 3 | D14: NEON 4 | E14: NEON 5 | F14: NEON 6 | G14: NEON 7 | H14: NEON 8
B25: NEON 9 | C25: NEON 10 | D25: NEON 11 | E25: NEON 12 | F25: NEON 13 | G25: NEON 14
A26: Техническая информация (нажмите)
A28: Cтоимость
A30: Модель | E30: Тип 1 | F30: Тип 2 | G30: Тип 3 | H30: Тип 4
A31: Neon 1 - Neon 14 ДГ | E31: 11876.42736 | F31: 12512.66454 | G31: 13007.51568 | H31: 13573.05984
A32: При заказе компланарного погнажна на данную коллекцию, врезка возможно только под петли Armadillo U3D8000
A33: Опции и наценки
A34: Алюминиевая кромка с 2-х сторон | H34: 2120.7906
A35: Алюминиевая кромка по периметру | H35: 3463.95798
A36: Наценка на полотно толщиной 42 мм (без алюминиевой кромки) | H36: 1413.8604
A37: Наценка за черную и золотую алюминиевую кромку (Оттенок золотой кромки может отличаться от партии к партии) | H37: 565.54416
A38: Наценка за алюминиевую кромку шампань | H38: 848.31624
A39: Укутка вверх/низ | H39: 282.77208
A40: Усиленное полотно ( + 20 кг) | H40: 2120.7906
A41: Дополнительная упаковка для полотна | H41: 706.9302
A42: Шумоизоляция фибролитовой плитой | H42: 4241.5812
A43: Наполнение белтермо | H43: 4241.5812
A44: Cтабилизатор Morelli (Рекомендуем для полотен выше 2360 мм) Комплект 2 шт | H44: 3386.981136
A45: Наценки за нестандартные размеры
A46: Ширина
A47: 400-950 (шаг 10 мм) | E47: Без наценки
A48: Высота
A49: 1800 - 2050 (шаг 10 мм) | E49: Без наценки
A50: до 1800 мм, свыше 2050 мм - 2350 мм | E50: 0.2
A51: свыше 2360 мм - 2750 мм | E51: 50% (к базовой цене)
A52: свыше 2760 мм - 2850 мм (Укутка вверх/низ - НЕДОСТУПНА) | E52: 80% (к базовой цене)
A53: При заказе дверей высотой выше 2360, необходимо обязательно заказывать стабилизатор + врезку cтабилизатора
A55: Важно!!! При заказе двери выше 2360 мм допуск по кривизне составляет 3 мм
A57: Погонажные изделия (Стандарт) | E57: Тип 1 | F57: Тип 2 | G57: Тип 3 | H57: Тип 4
A58: Наличник МДФ телескоп 80*10 мм | E58: 629.167878 | F58: 660.6262719 | G58: 692.0846658 | H58: 723.5430597
A59: Коробка МДФ телескоп (Под 38 мм полотно) 75*32 мм | E59: 926.078562 | F59: 972.3824901 | G59: 1018.686418 | H59: 1064.990346
A60: Доборная доска МДФ телескопический 90*10 мм | E60: 711.119416 | F60: 746.6753868 | G60: 782.2313576 | H60: 817.7873284
A61: Доборная доска МДФ телескопический 130*10 мм | E61: 872.404232 | F61: 916.0244436 | G61: 959.6446552 | H61: 1003.264867
A62: Доборная доска МДФ телескопический 170*10 мм | E62: 1004.364536 | F62: 1054.582763 | G62: 1104.80099 | H62: 1155.019216
A63: Плинтус, 80*16*2070 мм., шт. | E63: 872.404232 | F63: 916.0244436 | G63: 959.6446552 | H63: 1003.264867
A64: Комплект крепежей (1 плинтус - 1 комплект (5 шт.) | E64: 205.271584 | F64: - | G64: - | H64: -
A65: Технические особенности
A66: Толщина полотна - 38 мм / С алюминиевой кромкой - 42 мм
A67: Полезные ссылки
A68: Навигатор | B68: Погонаж | C68: Накладки | D68: Доп. Ассортимент | E68: ПВХ | F68: Фурнитура | G68: Врезка | H68: Системы
A70: Техническая информация
A71: Модель | C71: Применяемость в реверс компланар | E71: Обязательность сторонности открывания (без врезки) | G71: Применяемость стабилизатора
A72: NEON 1 - NEON 14 ДГ | C72: да, НО рисунок уменьшается со всех сторон на 12мм | E72: нет | G72: да

Sheet QUANTUM
A1: Навигатор
A2: Коллекция QUANTUM
B14: QUANTUM 1 ДГ | C14: QUANTUM 2 ДГ | D14: QUANTUM 3 ДГ | E14: QUANTUM 4 ДГ | F14: QUANTUM 5 ДГ | G14: QUANTUM 6 ДГ
A15: Техническая информация (нажмите)
A17: Cтоимость
A18: Модель | E18: Тип 1 | F18: Тип 2 | G18: Тип 3 | H18: Тип 4
A19: QUANTUM 1 | E19: 11947.12038 | F19: 12583.35756 | G19: 13078.2087 | H19: 13643.75286
A20: QUANTUM 2, QUANTUM 3, QUANTUM 5, QUANTUM 6 | E20: 12654.05058 | F20: 13290.28776 | G20: 13785.1389 | H20: 14350.68306
A21: QUANTUM 4 | E21: 12300.58548 | F21: 12936.82266 | G21: 13431.6738 | H21: 13997.21796
A22: На дверях QUANTUM 1, QUANTUM 2, QUANTUM 3, QUANTUM 6 укутка торцов вверх/низ - не осуществляется
A25: При заказе компланарного погнажна на данную коллекцию, врезка возможно только под петли Armadillo U3D8000
A26: Опции и наценки
A27: Алюминиевая кромка с 2-х сторон | H27: 2120.7906
A28: Алюминиевая кромка по периметру - (Не изготавливаются QUANTUM 1, QUANTUM 2, QUANTUM 3, QUANTUM6) | H28: 3463.95798
A29: Наценка на полотно толщиной 42 мм (без алюминиевой кромки) | H29: 1413.8604
A30: Наценка за черную и золотую алюминиевую кромку (Оттенок золотой кромки может отличаться от партии к партии) | H30: 565.54416
A31: Наценка за алюминиевую кромку шампань | H31: 848.31624
A32: Укутка вверх/низ - (Не изготавливаются QUANTUM 1, QUANTUM 2, QUANTUM 3, QUANTUM 6) | H32: 282.77208
A33: Усиленное полотно ( + 20 кг) | H33: 2120.7906
A34: Дополнительная упаковка для полотна | H34: 706.9302
A35: Шумоизоляция фибролитовой плитой | H35: 4241.5812
A36: Наполнение белтермо | H36: 4241.5812
A37: Cтабилизатор Morelli (Рекомендуем для полотен выше 2360 мм) Комплект 2 шт | H37: 3386.981136
A38: Наценки за нестандартные размеры
A39: Ширина
A40: 400-950 (шаг 10 мм) | E40: Без наценки
A41: Высота
A42: 1800 - 2050 (шаг 10 мм) | E42: Без наценки
A43: до 1800 мм, свыше 2050 мм - 2350 мм | E43: 0.2
A44: свыше 2360 мм - 2750 мм | E44: 50% (к базовой цене)
A45: свыше 2760 мм - 2850 мм (Укутка вверх/низ - НЕДОСТУПНА) | E45: 80% (к базовой цене)
A46: При заказе дверей высотой выше 2360, необходимо обязательно заказывать стабилизатор + врезку cтабилизатора
A48: Важно!!! При заказе двери выше 2360 мм допуск по кривизне составляет 3 мм
A50: Погонажные изделия (Стандарт) | E50: Тип 1 | F50: Тип 2 | G50: Тип 3 | H50: Тип 4
A51: Наличник МДФ телескоп 80*10 мм | E51: 629.167878 | F51: 660.6262719 | G51: 692.0846658 | H51: 723.5430597
A52: Коробка МДФ телескоп (Под 38 мм полотно) 75*32 мм | E52: 926.078562 | F52: 972.3824901 | G52: 1018.686418 | H52: 1064.990346
A53: Доборная доска МДФ телескопический 90*10 мм | E53: 711.119416 | F53: 746.6753868 | G53: 782.2313576 | H53: 817.7873284
A54: Доборная доска МДФ телескопический 130*10 мм | E54: 872.404232 | F54: 916.0244436 | G54: 959.6446552 | H54: 1003.264867
A55: Доборная доска МДФ телескопический 170*10 мм | E55: 1004.364536 | F55: 1054.582763 | G55: 1104.80099 | H55: 1155.019216
A56: Плинтус, 80*16*2070 мм., шт. | E56: 872.404232 | F56: 916.0244436 | G56: 959.6446552 | H56: 1003.264867
A57: Комплект крепежей (1 плинтус - 1 комплект (5 шт.) | E57: 205.271584 | F57: - | G57: - | H57: -
A58: Технические особенности
A59: Толщина полотна - 38 мм / С алюминиевой кромкой - 42 мм
A60: Полезные ссылки
A61: Навигатор | B61: Погонаж | C61: Накладки | D61: Доп. Ассортимент | E61: ПВХ | F61: Фурнитура | G61: Врезка | H61: Системы
A63: Техническая информация
A64: Модель | C64: Применяемость в реверс компланар | E64: Обязательность сторонности открывания (без врезки) | G64: Применяемость стабилизатора
A65: NEON 1 - NEON 14 ДГ | C65: да, НО рисунок уменьшается со всех сторон на 12мм | E65: нет | G65: да

Sheet WOODEN
A1: Навигатор
A2: Коллекция WOODEN
A14: WOODEN 1 | B14: WOODEN 2 | C14: WOODEN 3 | D14: WOODEN 4 | E14: WOODEN 5 | F14: WOODEN 6 | G14: WOODEN 7 | H14: WOODEN 8
C24: WOODEN 9 | D24: WOODEN 10 | E24: WOODEN 11 | F24: WOODEN 12
A25: Техническая информация (нажмите)
A27: Cтоимость
A28: Модель | E28: Тип 1 | F28: Тип 2 | G28: Тип 3 | H28: Тип 4
A29: WOODEN 1 | E29: 11169.49716 | F29: 11805.73434 | G29: 12300.58548 | H29: 12866.12964
A30: WOODEN 2 | E30: 11452.26924 | F30: 12088.50642 | G30: 12583.35756 | H30: 13148.90172
A31: WOODEN 3, WOODEN 7, WOODEN 8 | E31: 12936.82266 | F31: 13573.05984 | G31: 14067.91098 | H31: 14633.45514
A32: WOODEN 4 | E32: 11735.04132 | F32: 12371.2785 | G32: 12866.12964 | H32: 13431.6738
A33: WOODEN 5 | E33: 12088.50642 | F33: 12724.7436 | G33: 13219.59474 | H33: 13785.1389
A34: WOODEN 6 | E34: 14279.99004 | F34: 14916.22722 | G34: 15411.07836 | H34: 15976.62252
A35: WOODEN 9 | E35: 22197.60828 | F35: 22833.84546 | G35: 23328.6966 | H35: 23894.24076
A36: WOODEN 10 | E36: 12724.7436 | F36: 13360.98078 | G36: 13855.83192 | H36: 14421.37608
A37: WOODEN 11 | E37: 13148.90172 | F37: 13785.1389 | G37: 14279.99004 | H37: 14845.5342
A38: WOODEN 12 | E38: 13714.44588 | F38: 14350.68306 | G38: 14845.5342 | H38: 15411.07836
A40: При заказе компланарного погонажа на данную коллекцию, врезка возможно только под петли Armadillo U3D8000
A42: Стекло | D42: Модель | G42: Наценка
A43: Зеркало | D43: WOODEN 1, WOODEN 2 | G43: 0
D44: WOODEN 7, WOODEN 8, WOODEN 10, WOODEN 11, WOODEN 12
D45: WOODEN 3, WOODEN 4, WOODEN 6
D46: WOODEN 6, WOODEN 9
A47: Черный лакобель / Белый лакобель | D47: WOODEN 1, WOODEN 2 | G47: 0
D48: WOODEN 7, WOODEN 8, WOODEN 10, WOODEN 11, WOODEN 12
D49: WOODEN 3, WOODEN 4, WOODEN 6
D50: WOODEN 6, WOODEN 9
A51: Зеркало графит / Коричневый лакобель / Зеркало бронза | D51: WOODEN 1, WOODEN 2 | G51: 353.4651
D52: WOODEN 7, WOODEN 8, WOODEN 10, WOODEN 11, WOODEN 12 | G52: 706.9302
D53: WOODEN 3, WOODEN 4, WOODEN 6 | G53: 1131.08832
D54: WOODEN 6, WOODEN 9 | G54: 1767.3255
A55: Супер белый лакобель | D55: WOODEN 1, WOODEN 2 | G55: 424.15812
D56: WOODEN 7, WOODEN 8, WOODEN 10, WOODEN 11, WOODEN 12 | G56: 848.31624
D57: WOODEN 3, WOODEN 4, WOODEN 6 | G57: 1413.8604
D58: WOODEN 6, WOODEN 9 | G58: 2120.7906
A59: Опции и наценки
A60: Алюминиевая кромка с 2-х сторон | H60: 2120.7906
A61: Алюминиевая кромка по периметру | H61: 3463.95798
A62: Наценка на полотно толщиной 42 мм (без алюминиевой кромки) | H62: 1413.8604
A63: Наценка за черную и золотую алюминиевую кромку (Оттенок золотой кромки может отличаться от партии к партии) | H63: 565.54416
A64: Наценка за алюминиевую кромку шампань | H64: 848.31624
A65: Укутка вверх/низ | H65: 282.77208
A66: Усиленное полотно ( + 20 кг) | H66: 2120.7906
A67: Дополнительная упаковка для полотна | H67: 706.9302
A68: Шумоизоляция фибролитовой плитой | H68: 4241.5812
A69: Наполнение белтермо | H69: 4241.5812
A70: Cтабилизатор Morelli (Рекомендуем для полотен выше 2360 мм) Комплект 2 шт | H70: 3386.981136
A71: Наценки за нестандартные размеры
A72: Ширина
A73: 400-950 (шаг 10 мм) | E73: Без наценки
A74: Высота
A75: 1800 - 2050 (шаг 10 мм) | E75: Без наценки
A76: до 1800 мм, свыше 2050 мм - 2350 мм | E76: 0.2
A77: свыше 2360 мм - 2750 мм | E77: 50% (к базовой цене)
A78: свыше 2760 мм - 2850 мм (Укутка вверх/низ - НЕДОСТУПНА) | E78: 80% (к базовой цене)
A79: При заказе дверей высотой выше 2360, необходимо обязательно заказывать стабилизатор + врезку cтабилизатора
A81: Важно!!! При заказе двери выше 2360 мм допуск по кривизне составляет 3 мм
A83: Погонажные изделия (Стандарт) | E83: Тип 1 | F83: Тип 2 | G83: Тип 3 | H83: Тип 4
A84: Наличник МДФ телескоп 80*10 мм | E84: 629.167878 | F84: 660.6262719 | G84: 692.0846658 | H84: 723.5430597
A85: Коробка 42 мм телескоп 32х75 мм ( Для полотен толщиной 42 мм) | E85: 926.078562 | F85: 972.3824901 | G85: 1018.686418 | H85: 1064.990346
A86: Доборная доска МДФ телескопический 90*10 мм | E86: 711.119416 | F86: 746.6753868 | G86: 782.2313576 | H86: 817.7873284
A87: Доборная доска МДФ телескопический 130*10 мм | E87: 872.404232 | F87: 916.0244436 | G87: 959.6446552 | H87: 1003.264867
A88: Доборная доска МДФ телескопический 170*10 мм | E88: 1004.364536 | F88: 1054.582763 | G88: 1104.80099 | H88: 1155.019216
A89: Плинтус, 80*16*2070 мм., шт. | E89: 872.404232 | F89: 916.0244436 | G89: 959.6446552 | H89: 1003.264867
A90: Комплект крепежей (1 плинтус - 1 комплект(5 шт.) | E90: 205.271584 | F90: - | G90: - | H90: -
A91: Полезные ссылки
A92: Навигатор | B92: Погонаж | C92: Накладки | D92: Доп. Ассортимент | E92: ПВХ | F92: Фурнитура | G92: Врезка | H92: Системы
A94: Техническая информация
A95: Модель | C95: Применяемость в реверс компланар | E95: Обязательность сторонности открывания (без врезки) | G95: Применяемость стабилизатора
A96: WOODEN 1 - WOODEN 12 | C96: да, НО рисунок уменьшается со всех сторон на 12мм | E96: нет | G96: да

Sheet MIRO
A1: Навигатор
A2: Коллекция MIRO
C3: Исполнение ПВХ Орех американский натуральный диагональ | D3: Исполнение ПВХ Орех американский беленый диагональ | E3: Исполнение ПВХ Орех чикаго натуральный | F3: Исполнение ПВХ Дуб Мадейра Янтарь
C15: MIRO 7 | E15: MIRO 8 | F15: MIRO 9
A16: Техническая информация (нажмите)
A18: Cтоимость
A19: Модель | E19: Тип 1
A20: MIRO 7 (Толщина 38 мм) | E20: 11805.73434
A21: MIRO 7 (Толщина 38 мм) | E21: 11805.73434
A22: MIRO 8 (Толщина 38 мм) | E22: 11805.73434
A23: MIRO 9 (Толщина 38 мм) | E23: Тип 1 | F23: Тип 2 | G23: Тип 3 | H23: Тип 4
E24: 10533.25998 | F24: 11169.49716 | G24: 11664.3483 | H24: 12229.89246
A25: !ВНИМАНИЕ! Модели коллекции возможно исполнить только определенных декорах (Наценка за декор уже включена в стоимость)
A26: MIRO-7 | D26: Орех американский натуральный диагональ, Орех американский шоколад диагональ
A27: MIRO-8 | D27: Орех чикаго лайт, Орех чикаго натуральный
A28: MIRO-9 | D28: Любой декор
A29: Опции и наценки
A30: Усиленное полотно ( + 20 кг) | H30: 2120.7906
A31: Алюминиевая кромка с 2-х сторон | H31: 2120.7906
A32: Алюминиевая кромка по периметру | H32: 3463.95798
A33: Наценка за черную и золотую алюминиевую кромку (Оттенок золотой кромки может отличаться от партии к партии) | H33: 565.54416
A34: Наценка за алюминиевую кромку шампань | H34: 848.31624
A35: Наценка на полотно толщиной 42 мм (без алюминиевой кромки) | H35: 1413.8604
A36: Зеркало с 1 стороны | H36: 6362.3718
A37: Бронза зеркало, Графит с 1 стороны | H37: 7776.2322
A38: Лакобель белый/черный/супербелый/коричневый с 1 стороны | H38: 7776.2322
A39: Дополнительное отверстие в стекле под фиксатор/цилиндр 1 шт (MIRO 9 с зеркалом - изготавливается по умолчанию с отверстием под ручку D - 46 мм ) | H39: 353.4651
A40: Дополнительная упаковка для полотна | H40: 706.9302
A41: Шумоизоляция фибролитовой плитой | H41: 4241.5812
A42: Наполнение белтермо | H42: 4241.5812
A43: Cтабилизатор Morelli (Рекомендуем для полотен выше 2360 мм) Комплект 2 шт | H43: 3386.981136
A44: Наценки за нестандартные размеры
A45: Ширина
A46: 400-950 (шаг 10 мм) | E46: Без наценки
A47: Высота
A48: 1800 - 2050 (шаг 10 мм) | E48: Без наценки
A49: до 1800 мм, свыше 2050 мм - 2350 мм | E49: 0.2
A50: свыше 2360 мм - 2750 мм | E50: 50% (к базовой цене)
A51: свыше 2760 мм - 2850 мм (Укутка вверх/низ - НЕДОСТУПНА) | E51: 80% (к базовой цене)
A52: При заказе дверей высотой выше 2360, необходимо обязательно заказывать стабилизатор + врезку cтабилизатора
A54: Важно!!! При заказе двери выше 2360 мм допуск по кривизне составляет 3 мм
A56: Погонажные изделия (Стандарт) | G56: Цена
G57: Комплект (2,5 шт.) | H57: Шт.
A58: Скрытый короб SECRET LITE 59 мм 2100 мм (Хром матовый) | G58: 6079.59972 | H58: 2431.839888
A59: Скрытый короб SECRET LITE 59 мм 2400 мм (Хром матовый) | G59: 6659.282484 | H59: 2663.712994
A60: Скрытый короб SECRET LITE 59 мм 2850 мм (Хром матовый) | G60: 8815.419594 | H60: 3526.167838
A61: Скрытый короб SECRET LITE 59 мм 2950 мм (Хром матовый) | G61: 10335.31952 | H61: 4134.12781
A62: Скрытый короб SECRET STANDART 59 мм 2100 мм (Хром матовый) Только под петли KK2760 | G62: 6079.59972 | H62: 2431.839888
A63: Скрытый короб SECRET STANDART 59 мм 2400 мм (Хром матовый) Только под петли KK2760 | G63: 6659.282484 | H63: 2663.712994
A64: Скрытый короб SECRET STANDART 59 мм 2850 мм (Хром матовый) Только под петли KK2760 | G64: 8815.419594 | H64: 3526.167838
A65: Скрытый короб SECRET STANDART 59 мм 2950 мм (Хром матовый) Только под петли KK2760 | G65: 10335.31952 | H65: 4134.12781
A67: Размеры коробок по высоте
A68: Скрытый короб 2100 мм | C68: Скрытый короб 2450 мм | E68: Скрытый короб 2850 мм | G68: Скрытый короб 2950 мм
A69: Дверь до 2000 | C69: 2010-2300 | E69: 2310-2700 | G69: 2710-2850
A71: Технические особенности
A72: Описание | B72: Вид скрытого короба
B73: Скрытый короб SECRET STANDART 59 мм | D73: Скрытый короб SECRET LITE 59 мм | F73: Скрытый короб SECRET REVERS СLASSIC 42 мм
A74: Толщина полотен | B74: 42 мм/59 мм | D74: 42 мм/59 мм | F74: 42 мм
A75: Доступные цвета | B75: Хром / Черный | D75: Хром / Черный/Золото/Шампань | F75: Хром / Черный/Золото/Шампань
A76: Виды открывания | B76: На себя 42 мм / На себя 59 мм / От себя 59 мм | D76: На себя 42 мм / На себя 59 мм / От себя 59 мм | F76: На себя 42 мм / От себя 42 мм
A77: Наполнение | B77: С брусом | D77: С брусом | F77: С брусом
A78: Толщина стеновых панелей при совместной установке | B78: 10 мм | D78: - | F78: -
A79: Ссылка на чертеж коробки | B79: https://drive.google.com/file/d/1N34zQB6IkHgzBLftJiI5oFhfe9-dv5yg/view?usp=sharing | D79: https://drive.google.com/file/d/1tqif0rPi31UTUzejkOdslMZQCEdmpDt9/view?usp=sharing | F79: https://drive.google.com/file/d/1xZCoupHmpWSsKrf4zNNOsjkOVkY9wfs_/view?usp=sharing
A80: Совместимость петель | B80: KK 2760 | D80: KK 2760 / AGB 2.0 / HH 24 / U3D2000 | F80: AGB 3.0 / KK2460 / U3D3000
A82: Полезные ссылки
A83: Навигатор | B83: Погонаж | C83: Накладки | D83: Доп. Ассортимент | E83: ПВХ | F83: Фурнитура | G83: Врезка | H83: Системы
A85: Техническая информация
A86: Модель | C86: Применяемость в реверс компланар | E86: Обязательность сторонности открывания (без врезки) | G86: Применяемость стабилизатора
A87: MIRO 7, 8, 9 | C87: да | E87: нет | G87: да

Sheet LEVEL
A1: Навигатор
A2: Коллекция LEVEL
A14: LEVEL 1 | B14: LEVEL 2 | C14: LEVEL 3 | D14: LEVEL 4 | E14: LEVEL 5 | F14: LEVEL 6 | G14: LEVEL 7 | H14: LEVEL 8
D24: LEVEL 9 | E24: LEVEL 10
A25: Техническая информация (нажмите)
A27: Cтоимость
A28: Модель | E28: Тип 1 | F28: Тип 2 | G28: Тип 3 | H28: Тип 4
A29: LEVEL 1 | E29: 25449.4872 | F29: 26085.72438 | G29: 26580.57552 | H29: 27146.11968
A30: LEVEL 2 | E30: 19157.80842 | F30: 19794.0456 | G30: 20288.89674 | H30: 20854.4409
A31: LEVEL 3 | E31: 21985.52922 | F31: 22621.7664 | G31: 23116.61754 | H31: 23682.1617
A32: LEVEL 4 | E32: 24671.86398 | F32: 25308.10116 | G32: 25802.9523 | H32: 26368.49646
A33: LEVEL 5 | E33: 19299.19446 | F33: 19935.43164 | G33: 20430.28278 | H33: 20995.82694
A34: LEVEL 6 | E34: 26015.03136 | F34: 26651.26854 | G34: 27146.11968 | H34: 27711.66384
A35: LEVEL 7 | E35: 19652.65956 | F35: 20288.89674 | G35: 20783.74788 | H35: 21349.29204
A36: LEVEL 8 | E36: 22551.07338 | F36: 23187.31056 | G36: 23682.1617 | H36: 24247.70586
A37: LEVEL 9 | E37: 25237.40814 | F37: 25873.64532 | G37: 26368.49646 | H37: 26934.04062
A38: LEVEL 10 | E38: 19794.0456 | F38: 20430.28278 | G38: 20925.13392 | H38: 21490.67808
A40: Данная коллекция изготавливается в алюминиевой кромке по умолчанию с 4-х сторон
A41: Врезка петли AGB 2.0 / HH-24 / KK6360 на модели LEVEL 1, LEVEL 4, LEVEL 5, LEVEL 6 - LEVEL 10 не осуществляется
A43: Стекло | D43: Модель | G43: Наценка
A44: Зеркало | D44: LEVEL 2, LEVEL 3, LEVEL 4, LEVEL 6 | G44: 0
D45: LEVEL 1, LEVEL 5, LEVEL 7, LEVEL 8, LEVEL 9, LEVEL 10 | G45: 0
A46: Черный лакобель / Белый лакобель | D46: LEVEL 2, LEVEL 3, LEVEL 4, LEVEL 6 | G46: 0
D47: LEVEL 1, LEVEL 5, LEVEL 7, LEVEL 8, LEVEL 9, LEVEL 10 | G47: 0
A48: Зеркало графит / Коричневый лакобель / Зеркало бронза | D48: LEVEL 2, LEVEL 3, LEVEL 4, LEVEL 6 | G48: 1767.3255
D49: LEVEL 1, LEVEL 5, LEVEL 7, LEVEL 8, LEVEL 9, LEVEL 10 | G49: 3393.26496
A50: Супер белый лакобель | D50: LEVEL 2, LEVEL 3, LEVEL 4, LEVEL 6 | G50: 2120.7906
D51: LEVEL 1, LEVEL 5, LEVEL 7, LEVEL 8, LEVEL 9, LEVEL 10 | G51: 4241.5812
A52: Опции и наценки
A53: Наценка за черную и золотую алюминиевую кромку (Оттенок золотой кромки может отличаться от партии к партии) | H53: 565.54416
A54: Усиленное полотно ( + 20 кг) | H54: 2120.7906
A55: Алюминиевая кромка с 2-х сторон | H55: 2120.7906
A56: Алюминиевая кромка по периметру | H56: 3463.95798
A57: Наценка за черную и золотую алюминиевую кромку (Оттенок золотой кромки может отличаться от партии к партии) | H57: 565.54416
A58: Наценка за алюминиевую кромку шампань | H58: 848.31624
A59: Наценка на полотно толщиной 42 мм (без алюминиевой кромки) | H59: 1413.8604
A60: Дополнительная упаковка для полотна | H60: 706.9302
A61: Шумоизоляция фибролитовой плитой | H61: 4241.5812
A62: Наполнение белтермо | H62: 4241.5812
A63: Cтабилизатор Morelli (Рекомендуем для полотен выше 2360 мм) Комплект 2 шт | H63: 3386.981136
A65: Наценки за нестандартные размеры
A66: Ширина
A67: 400-950 (шаг 10 мм) | E67: Без наценки
A68: Высота
A69: 1800 - 2050 (шаг 10 мм) | E69: Без наценки
A70: до 1800 мм, свыше 2050 мм - 2350 мм | E70: 0.2
A71: свыше 2360 мм - 2750 мм | E71: 50% (к базовой цене)
A72: свыше 2760 мм - 2850 мм (Укутка вверх/низ - НЕДОСТУПНА) | E72: 80% (к базовой цене)
A73: При заказе дверей высотой выше 2360, необходимо обязательно заказывать стабилизатор + врезку cтабилизатора
A75: Важно!!! При заказе двери выше 2360 мм допуск по кривизне составляет 3 мм
A77: Погонажные изделия (Стандарт) | E77: Тип 1 | F77: Тип 2 | G77: Тип 3 | H77: Тип 4
A78: Наличник МДФ телескоп 80*10 мм | E78: 629.167878 | F78: 660.6262719 | G78: 692.0846658 | H78: 723.5430597
A79: Коробка 42 мм телескоп 32х75 мм ( Для полотен толщиной 42 мм) | E79: 926.078562 | F79: 972.3824901 | G79: 1018.686418 | H79: 1064.990346
A80: Доборная доска МДФ телескопический 90*10 мм | E80: 711.119416 | F80: 746.6753868 | G80: 782.2313576 | H80: 817.7873284
A81: Доборная доска МДФ телескопический 130*10 мм | E81: 872.404232 | F81: 916.0244436 | G81: 959.6446552 | H81: 1003.264867
A82: Доборная доска МДФ телескопический 170*10 мм | E82: 1004.364536 | F82: 1054.582763 | G82: 1104.80099 | H82: 1155.019216
A83: Плинтус, 80*16*2070 мм., шт. | E83: 872.404232 | F83: 916.0244436 | G83: 959.6446552 | H83: 1003.264867
A84: Комплект крепежей (1 плинтус - 1 комплект(5 шт.) | E84: 205.271584 | F84: - | G84: - | H84: -
A85: Полезные ссылки
A86: Навигатор | B86: Погонаж | C86: Накладки | D86: Доп. Ассортимент | E86: ПВХ | F86: Фурнитура | G86: Врезка | H86: Системы
A88: Техническая информация
A89: Модель | C89: Применяемость в реверс компланар | E89: Обязательность сторонности открывания (без врезки) | G89: Применяемость стабилизатора
A90: LEVEL 1 - LEVEL 10 | C90: нет | E90: нет | G90: да

Sheet PRESTIGE
A1: Навигатор
A2: Коллекция PRESTIGE
C14: PRESTIGE 1 | D14: PRESTIGE 2 | E14: PRESTIGE 3 | F14: PRESTIGE 4
A15: Техническая информация (нажмите)
A17: Cтоимость
A18: Модель | E18: Тип 1 | F18: Тип 2 | G18: Тип 3 | H18: Тип 4
A19: Prestige 1 , Prestige 3 (ДГ) | E19: 14704.14816 | F19: 15340.38534 | G19: 15835.23648 | H19: 16400.78064
A20: Prestige 2 (ДГ) | E20: 16118.00856 | F20: 16754.24574 | G20: 17249.09688 | H20: 17814.64104
A21: Prestige 4 (ДГ) | E21: 13714.44588 | F21: 14350.68306 | G21: 14845.5342 | H21: 15411.07836
A23: Стоимость указана в алюминиевой кромке - ХРОМ
A24: Данная коллекция изготавливается исключительно в алюминиевой кромке
A25: При заказе компланарного погонажа на данную коллекцию, врезка возможно только под петли Armadillo U3D8000
A27: Молдинг | D27: Модель | G27: Наценка
A28: молдинг 10*2 ХРОМ | D28: Все модели | G28: 0
A29: молдинг 10*2 ЧЕРНЫЙ | G29: 424.15812
A30: молдинг 10*2 ЗОЛОТО | G30: 706.9302
A31: Опции и наценки
A32: Алюминиевая кромка с 2-х сторон | H32: 2120.7906
A33: Алюминиевая кромка по периметру | H33: 3463.95798
A34: Наценка за черную и золотую алюминиевую кромку (Оттенок золотой кромки может отличаться от партии к партии) | H34: 565.54416
A35: Наценка за алюминиевую кромку шампань | H35: 848.31624
A36: Наценка на полотно толщиной 42 мм (без алюминиевой кромки) | H36: 1413.8604
A37: Наценка за черную и золотую алюминиевую кромку (Оттенок золотой кромки может отличаться от партии к партии) | H37: 565.54416
A38: Укутка вверх/низ - НЕДОСТУПНА | H38: -
A39: Усиленное полотно ( + 20 кг) | H39: 2120.7906
A40: Дополнительная упаковка для полотна | H40: 706.9302
A41: Шумоизоляция фибролитовой плитой | H41: 4241.5812
A42: Наполнение белтермо | H42: 4241.5812
A43: Cтабилизатор Morelli (Рекомендуем для полотен выше 2360 мм) Комплект 2 шт | H43: 3386.981136
A45: Наценки за нестандартные размеры
A46: Ширина
A47: 400-950 (шаг 10 мм) | E47: Без наценки
A48: Высота
A49: 1800 - 2050 (шаг 10 мм) | E49: Без наценки
A50: до 1800 мм, свыше 2050 мм - 2350 мм | E50: 0.2
A51: свыше 2360 мм - 2750 мм | E51: 50% (к базовой цене)
A52: свыше 2760 мм - 2850 мм (Укутка вверх/низ - НЕДОСТУПНА) | E52: 80% (к базовой цене)
A53: При заказе дверей высотой выше 2360, необходимо обязательно заказывать стабилизатор + врезку cтабилизатора
A55: Важно!!! При заказе двери выше 2360 мм допуск по кривизне составляет 3 мм
A57: Погонажные изделия (Стандарт) | E57: Тип 1 | F57: Тип 2 | G57: Тип 3 | H57: Тип 4
A58: Наличник МДФ телескоп 80*10 мм | E58: 629.167878 | F58: 660.6262719 | G58: 692.0846658 | H58: 723.5430597
A59: Коробка 42 мм телескоп 32х75 мм ( Для полотен толщиной 42 мм) | E59: 926.078562 | F59: 972.3824901 | G59: 1018.686418 | H59: 1064.990346
A60: Доборная доска МДФ телескопический 90*10 мм | E60: 711.119416 | F60: 746.6753868 | G60: 782.2313576 | H60: 817.7873284
A61: Доборная доска МДФ телескопический 130*10 мм | E61: 872.404232 | F61: 916.0244436 | G61: 959.6446552 | H61: 1003.264867
A62: Доборная доска МДФ телескопический 170*10 мм | E62: 1004.364536 | F62: 1054.582763 | G62: 1104.80099 | H62: 1155.019216
A63: Плинтус, 80*16*2070 мм., шт. | E63: 872.404232 | F63: 916.0244436 | G63: 959.6446552 | H63: 1003.264867
A64: Комплект крепежей (1 плинтус - 1 комплект(5 шт.) | E64: 205.271584 | F64: - | G64: - | H64: -
A65: Полезные ссылки
A66: Навигатор | B66: Погонаж | C66: Накладки | D66: Доп. Ассортимент | E66: ПВХ | F66: Фурнитура | G66: Врезка | H66: Системы
A68: Техническая информация
A69: Модель | C69: Применяемость в реверс компланар | E69: Обязательность сторонности открывания (без врезки) | G69: Применяемость стабилизатора
A70: PRESTIGE 1 - PRESTIGE 4 | C70: да | E70: нет | G70: да

Sheet NOWATOR
A1: Навигатор
A2: Коллекция NOWATOR
A13: NOWATOR 1 | B13: NOWATOR 2 | C13: NOWATOR 3 | D13: NOWATOR 4 | E13: NOWATOR 5 | F13: NOWATOR 6 | G13: NOWATOR 7
A14: Техническая информация (нажмите)
A16: Cтоимость
A18: Модель | E18: Тип 1 | F18: Тип 2 | G18: Тип 3 | H18: Тип 4
A19: Nowator 1, Nowator 2, Nowator 7 (ДГ) | E19: 12371.2785 | F19: 13007.51568 | G19: 13502.36682 | H19: 14067.91098
A20: Nowator 3 (ДГ) | E20: 12795.43662 | F20: 13431.6738 | G20: 13926.52494 | H20: 14492.0691
A21: Nowator 4, Nowator 5 (ДГ) | E21: 13290.28776 | F21: 13926.52494 | G21: 14421.37608 | H21: 14986.92024
A22: Nowator 6 (ДГ) | E22: 13855.83192 | F22: 14492.0691 | G22: 14986.92024 | H22: 15552.4644
A23: Молдинг | D23: Модель | G23: Наценка
A24: молдинг 25*2 ХРОМ | D24: ВСЕ МОДЕЛИ | G24: 0
A25: молдинг 25*2 ЧЕРНЫЙ | G25: 424.15812
A26: молдинг 25*2 ЗОЛОТО | G26: 848.31624
A27: Опции и наценки
A28: Алюминиевая кромка с 2-х сторон !!!( В названии модели добавлятся приставка /S) | H28: 2120.7906
A29: Алюминиевая кромка по периметру !!!( В названии модели добавлятся приставка /S) | H29: 3463.95798
A30: Наценка за черную и золотую алюминиевую кромку (Оттенок золотой кромки может отличаться от партии к партии) | H30: 565.54416
A31: Наценка за алюминиевую кромку шампань | H31: 848.31624
A32: Наценка на полотно толщиной 42 мм (без алюминиевой кромки) | H32: 1413.8604
A33: Наценка за черную и золотую алюминиевую кромку (Оттенок золотой кромки может отличаться от партии к партии) | H33: 565.54416
A34: Укутка вверх/низ | H34: 282.77208
A35: Усиленное полотно ( + 20 кг) | H35: 2120.7906
A36: Дополнительная упаковка для полотна | H36: 424.15812
A37: Шумоизоляция фибролитовой плитой | H37: 4241.5812
A38: Наполнение белтермо | H38: 4241.5812
A39: Cтабилизатор Morelli (Рекомендуем для полотен выше 2360 мм) Комплект 2 шт | H39: 3386.981136
A40: Наценки за нестандартные размеры
A41: Ширина
A42: 400-950 (шаг 10 мм) | E42: Без наценки
A43: Высота
A44: 1800 - 2050 (шаг 10 мм) | E44: Без наценки
A45: до 1800 мм, свыше 2050 мм - 2350 мм | E45: 0.2
A46: свыше 2360 мм - 2750 мм | E46: 50% (к базовой цене)
A47: свыше 2760 мм - 2850 мм (Укутка вверх/низ - НЕДОСТУПНА) | E47: 80% (к базовой цене)
A48: При заказе дверей высотой выше 2360, необходимо обязательно заказывать стабилизатор + врезку cтабилизатора
A50: Важно!!! При заказе двери выше 2360 мм допуск по кривизне составляет 3 мм
A52: Погонажные изделия (Стандарт) | E52: Тип 1 | F52: Тип 2 | G52: Тип 3 | H52: Тип 4
A53: Наличник МДФ телескоп 80*10 мм | E53: 629.167878 | F53: 660.6262719 | G53: 692.0846658 | H53: 723.5430597
A54: Коробка МДФ телескоп (Под 38 мм полотно) 75*32 мм | E54: 926.078562 | F54: 972.3824901 | G54: 1018.686418 | H54: 1064.990346
A55: Доборная доска МДФ телескопический 90*10 мм | E55: 711.119416 | F55: 746.6753868 | G55: 782.2313576 | H55: 817.7873284
A56: Доборная доска МДФ телескопический 130*10 мм | E56: 872.404232 | F56: 916.0244436 | G56: 959.6446552 | H56: 1003.264867
A57: Доборная доска МДФ телескопический 170*10 мм | E57: 1004.364536 | F57: 1054.582763 | G57: 1104.80099 | H57: 1155.019216
A58: Плинтус, 80*16*2070 мм., шт. | E58: 872.404232 | F58: 916.0244436 | G58: 959.6446552 | H58: 1003.264867
A59: Комплект крепежей (1 плинтус - 1 комплект(5 шт.) | E59: 205.271584 | F59: - | G59: - | H59: -
A60: Технические особенности
A61: Толщина полотна - 38 мм / С алюминиевой кромкой - 42 мм
A62: Полезные ссылки
A63: Навигатор | B63: Погонаж | C63: Накладки | D63: Доп. Ассортимент | E63: ПВХ | F63: Фурнитура | G63: Врезка | H63: Системы
A65: Техническая информация
A66: Модель | C66: Применяемость в реверс компланар | E66: Обязательность сторонности открывания (без врезки) | G66: Применяемость стабилизатора
A67: NOWATOR 1 - NOWATOR 7 | C67: да | E67: нет | G67: да

Sheet ART LINE
A1: Навигатор
A2: Коллекция ART LINE
D14: ART LINE 1 | E14: ART LINE 2
A15: Техническая информация (нажмите)
A17: На коллекции ART LINE укутка торцов вверх/низ - не осуществляется
A18: Модель | E18: Тип 1 | F18: Тип 2 | G18: Тип 3 | H18: Тип 4
A19: ДО
A20: Art Line 1 | E20: 14209.29702 | F20: 14845.5342 | G20: 15340.38534 | H20: 15905.9295
A21: Art Line 2 | E21: 14421.37608 | F21: 15057.61326 | G21: 15552.4644 | H21: 16118.00856
A22: Стекло | D22: Модель | G22: Наценка
A23: Триплекс 4+4 черный / белый | D23: Все модели | G23: 0
A24: Триплекс 4+4 бронзовый | D24: Все модели | G24: 848.31624
A25: Триплекс 4+4 зеркало | D25: Все модели | G25: 848.31624
A26: Опции и наценки
A27: Укутка вверх/низ - НЕДОСТУПНА | H27: -
A28: Усиленное полотно ( + 20 кг) | H28: 2120.7906
A29: Алюминиевая кромка с 2-х сторон | H29: 2120.7906
A30: Алюминиевая кромка по периметру - НЕДОСТУПНА | H30: 3463.95798
A31: Наценка за черную и золотую алюминиевую кромку (Оттенок золотой кромки может отличаться от партии к партии) | H31: 565.54416
A32: Наценка за алюминиевую кромку шампань | H32: 848.31624
A33: Наценка на полотно толщиной 42 мм (без алюминиевой кромки) | H33: 1413.8604
A34: Дополнительная упаковка для полотна | H34: 424.15812
A35: Шумоизоляция фибролитовой плитой | H35: 4241.5812
A36: Наполнение белтермо | H36: 4241.5812
A37: Cтабилизатор Morelli (Рекомендуем для полотен выше 2360 мм) Комплект 2 шт | H37: 3386.981136
A38: Наценки за нестандартные размеры
A39: Ширина
A40: 400-950 (шаг 10 мм) | E40: Без наценки
A41: Высота
A42: 1800 - 2050 (шаг 10 мм) | E42: Без наценки
A43: до 1800 мм, свыше 2050 мм - 2350 мм | E43: 0.2
A44: свыше 2360 мм - 2400 мм | E44: 50% (к базовой цене)
A45: Врезка стабилизатора невозможна. Максимальная высота - 2400 мм.
A47: Погонажные изделия (Стандарт) | E47: Тип 1 | F47: Тип 2 | G47: Тип 3 | H47: Тип 4
A48: Наличник МДФ телескоп 80*10 мм | E48: 629.167878 | F48: 660.6262719 | G48: 692.0846658 | H48: 723.5430597
A49: Коробка МДФ телескоп (Под 38 мм полотно) 75*32 мм | E49: 926.078562 | F49: 972.3824901 | G49: 1018.686418 | H49: 1064.990346
A50: Доборная доска МДФ телескопический 90*10 мм | E50: 711.119416 | F50: 746.6753868 | G50: 782.2313576 | H50: 817.7873284
A51: Доборная доска МДФ телескопический 130*10 мм | E51: 872.404232 | F51: 916.0244436 | G51: 959.6446552 | H51: 1003.264867
A52: Доборная доска МДФ телескопический 170*10 мм | E52: 1004.364536 | F52: 1054.582763 | G52: 1104.80099 | H52: 1155.019216
A53: Плинтус, 80*16*2070 мм., шт. | E53: 872.404232 | F53: 916.0244436 | G53: 959.6446552 | H53: 1003.264867
A54: Комплект крепежей (1 плинтус - 1 комплект(5 шт.) | E54: 205.271584 | F54: - | G54: - | H54: -
A55: Полезные ссылки
A56: Навигатор | B56: Погонаж | C56: Накладки | D56: Доп. Ассортимент | E56: ПВХ | F56: Фурнитура | G56: Врезка | H56: Системы
A58: Техническая информация
A59: Модель | C59: Применяемость в реверс компланар | E59: Обязательность сторонности открывания (без врезки) | G59: Применяемость стабилизатора
A60: ART LINE 1, ART LINE 2 | C60: нет | E60: нет | G60: нет

Sheet IMPULS
A1: Навигатор
A2: Коллекция IMPULS
B13: IMPULS 1 ДО | C13: IMPULS 2 ДО | D13: IMPULS 3 ДО | E13: IMPULS 4 ДО | F13: IMPULS 5 ДО | G13: IMPULS 6 ДО
A14: Техническая информация (нажмите)
A16: Cтоимость указана за использование 1 декора, при использовании двух декоров на полотне к стоимости необходимо добавлять + 1500 р
A17: На коллекции IMPULS укутка торцов вверх/низ - не осуществляется
A18: Модель | E18: Тип 1 | F18: Тип 2 | G18: Тип 3 | H18: Тип 4
A19: ДО
A20: IMPULS 1 | E20: 13431.6738 | F20: 14067.91098 | G20: 14562.76212 | H20: 15128.30628
A21: IMPULS 2 | E21: 12724.7436 | F21: 13360.98078 | G21: 13855.83192 | H21: 14421.37608
A22: IMPULS 3 | E22: 13078.2087 | F22: 13714.44588 | G22: 14209.29702 | H22: 14774.84118
A23: IMPULS 4 | E23: 12583.35756 | F23: 13219.59474 | G23: 13714.44588 | H23: 14279.99004
A24: IMPULS 5 | E24: 14067.91098 | F24: 14704.14816 | G24: 15198.9993 | H24: 15764.54346
A25: IMPULS 6 | E25: 14279.99004 | F25: 14916.22722 | G25: 15411.07836 | H25: 15976.62252
A26: Стекло | D26: Модель | G26: Наценка
A27: Триплекс 4+4 черный / белый | D27: Все модели | G27: 0
A29: Триплекс 4+4 бронзовый | D29: IMPULS 1, IMPULS 2, IMPULS 3, IMPULS 4 | G29: 424.15812
D30: IMPULS 5 | G30: 706.9302
E31: IMPULS 6 | G31: 1131.08832
A32: Триплекс 4+4 зеркало | D32: IMPULS 1, IMPULS 2, IMPULS 3, IMPULS 4 | G32: 706.9302
D33: IMPULS 5 | G33: 989.70228
E34: IMPULS 6 | G34: 1413.8604
A35: Опции и наценки
A36: Алюминиевая кромка с 2-х сторон и с 4-х сторон - НЕДОСТУПНА | H36: -
A37: Укутка вверх/низ - НЕДОСТУПНА | H37: -
A38: Наценка на полотно толщиной 42 мм (без алюминиевой кромки) | H38: 1413.8604
A39: Усиленное полотно ( + 20 кг) | H39: 2120.7906
A40: Дополнительная упаковка для полотна | H40: 424.15812
A41: Шумоизоляция фибролитовой плитой | H41: 4241.5812
A42: Наполнение белтермо | H42: 4241.5812
A43: Cтабилизатор Morelli (Рекомендуем для полотен выше 2360 мм) Комплект 2 шт | H43: 3386.981136
A44: Использование двух декоров на полотне | H44: 2120.7906
A45: Наценки за нестандартные размеры
A46: Ширина
A47: 400-950 (шаг 10 мм) | E47: Без наценки
A48: Высота
A49: 1800 - 2050 (шаг 10 мм) | E49: Без наценки
A50: до 1800 мм, свыше 2050 мм - 2350 мм | E50: 0.2
A51: свыше 2360 мм - 2750 мм | E51: 50% (к базовой цене)
A52: свыше 2760 мм - 2850 мм (Укутка вверх/низ - НЕДОСТУПНА) | E52: 80% (к базовой цене)
A53: Врезка стабилизатора невозможна. Максимальная высота - 2400 мм.
A55: Погонажные изделия (Стандарт) | E55: Тип 1 | F55: Тип 2 | G55: Тип 3 | H55: Тип 4
A56: Наличник МДФ телескоп 80*10 мм | E56: 629.167878 | F56: 660.6262719 | G56: 692.0846658 | H56: 723.5430597
A57: Коробка МДФ телескоп (Под 38 мм полотно) 75*32 мм | E57: 926.078562 | F57: 972.3824901 | G57: 1018.686418 | H57: 1064.990346
A58: Доборная доска МДФ телескопический 90*10 мм | E58: 711.119416 | F58: 746.6753868 | G58: 782.2313576 | H58: 817.7873284
A59: Доборная доска МДФ телескопический 130*10 мм | E59: 872.404232 | F59: 916.0244436 | G59: 959.6446552 | H59: 1003.264867
A60: Доборная доска МДФ телескопический 170*10 мм | E60: 1004.364536 | F60: 1054.582763 | G60: 1104.80099 | H60: 1155.019216
A61: Плинтус, 80*16*2070 мм., шт. | E61: 872.404232 | F61: 916.0244436 | G61: 959.6446552 | H61: 1003.264867
A62: Комплект крепежей (1 плинтус - 1 комплект(5 шт.) | E62: 205.271584 | F62: - | G62: - | H62: -
A63: Полезные ссылки
A64: Навигатор | B64: Погонаж | C64: Накладки | D64: Доп. Ассортимент | E64: ПВХ | F64: Фурнитура | G64: Врезка | H64: Системы
A66: Техническая информация
A67: Модель | C67: Применяемость в реверс компланар | E67: Обязательность сторонности открывания (без врезки) | G67: Применяемость стабилизатора
A68: IMPULS 1 - IMPULS 7 | C68: нет | E68: нет | G68: нет

Sheet ALLURE
A1: Навигатор
A2: Коллекция ALLURE
A13: ALLURE 1 | B13: ALLURE 2 | C13: ALLURE 3 | D13: ALLURE 4 | E13: ALLURE 5 | F13: М ALLURE 6 | G13: ALLURE 7
A14: Техническая информация (нажмите)
A16: Модель | E16: Тип 1 | F16: Тип 2 | G16: Тип 3 | H16: Тип 4
A17: ДО
A18: АLLURE 1 | E18: 14209.29702 | F18: 14845.5342 | G18: 15340.38534 | H18: 15905.9295
A19: АLLURE 2 | E19: 14067.91098 | F19: 14704.14816 | G19: 15198.9993 | H19: 15764.54346
A20: АLLURE 3, АLLURE 4, АLLURE 5, АLLURE 6 | E20: 14492.0691 | F20: 15128.30628 | G20: 15623.15742 | H20: 16188.70158
A21: АLLURE 7 | E21: 16330.08762 | F21: 16966.3248 | G21: 17461.17594 | H21: 18026.7201
A22: Стекло | D22: Модель | G22: Наценка
A23: Триплекс 4+4 черный / белый | D23: Все модели | G23: 0
A25: Опции и наценки
A26: Укутка вверх/низ - НЕДОСТУПНА | H26: -
A27: Усиленное полотно ( + 20 кг) | H27: 2120.7906
A28: Алюминиевая кромка с 2-х сторон | H28: 2120.7906
A29: Наценка за черную и золотую алюминиевую кромку (Оттенок золотой кромки может отличаться от партии к партии) | H29: 565.54416
A30: Наценка за алюминиевую кромку шампань | H30: 848.31624
A31: Алюминиевая кромка по периметру - НЕДОСТУПНА | H31: 3463.95798
A32: Наценка на полотно толщиной 42 мм (без алюминиевой кромки) | H32: 1413.8604
A33: Дополнительная упаковка для полотна | H33: 424.15812
A34: Шумоизоляция фибролитовой плитой | H34: 4241.5812
A35: Наполнение белтермо | H35: 4241.5812
A36: Cтабилизатор Morelli (Рекомендуем для полотен выше 2360 мм) Комплект 2 шт | H36: 3386.981136
A37: Использование двух декоров на полотне | H37: 2120.7906
A38: Наценки за нестандартные размеры
A39: Ширина
A40: 400-950 (шаг 10 мм) | E40: Без наценки
A41: Высота
A42: 1800 - 2050 (шаг 10 мм) | E42: Без наценки
A43: до 1800 мм, свыше 2050 мм - 2350 мм | E43: 0.2
A44: свыше 2360 мм - 2750 мм | E44: 50% (к базовой цене)
A45: свыше 2760 мм - 2850 мм (Укутка вверх/низ - НЕДОСТУПНА) | E45: 80% (к базовой цене)
A46: Врезка стабилизатора невозможна. Максимальная высота 2400 мм.
A48: Погонажные изделия (Стандарт) | E48: Тип 1 | F48: Тип 2 | G48: Тип 3 | H48: Тип 4
A49: Наличник МДФ телескоп 80*10 мм | E49: 629.167878 | F49: 660.6262719 | G49: 692.0846658 | H49: 723.5430597
A50: Коробка МДФ телескоп (Под 38 мм полотно) 75*32 мм | E50: 926.078562 | F50: 972.3824901 | G50: 1018.686418 | H50: 1064.990346
A51: Доборная доска МДФ телескопический 90*10 мм | E51: 711.119416 | F51: 746.6753868 | G51: 782.2313576 | H51: 817.7873284
A52: Доборная доска МДФ телескопический 130*10 мм | E52: 872.404232 | F52: 916.0244436 | G52: 959.6446552 | H52: 1003.264867
A53: Доборная доска МДФ телескопический 170*10 мм | E53: 1004.364536 | F53: 1054.582763 | G53: 1104.80099 | H53: 1155.019216
A54: Плинтус, 80*16*2070 мм., шт. | E54: 872.404232 | F54: 916.0244436 | G54: 959.6446552 | H54: 1003.264867
A55: Комплект крепежей (1 плинтус - 1 комплект(5 шт.) | E55: 205.271584 | F55: - | G55: - | H55: -
A56: Полезные ссылки
A57: Навигатор | B57: Погонаж | C57: Накладки | D57: Доп. Ассортимент | E57: ПВХ | F57: Фурнитура | G57: Врезка | H57: Системы
A59: Техническая информация
A60: Модель | C60: Применяемость в реверс компланар | E60: Обязательность сторонности открывания (без врезки) | G60: Применяемость стабилизатора
A61: Все модели | C61: нет | E61: нет | G61: нет

Sheet MARION
A1: Навигатор
A2: Коллекция MARION
A13: MARION 1 | B13: MARION 2 | C13: MARION 3 | D13: MARION 4 | E13: MARION 5 | F13: MARION 6 | G13: MARION 7 | H13: MARION 8
A18: MARION 9 | B18: MARION 10 | C18: MARION 11 | D18: MARION 12 | E18: MARION 13 | F18: MARION 14 | G18: MARION 15 | H18: MARION 16
A19: Техническая информация (нажмите)
A21: Cтоимость указана за использование 1 декора, при использовании двух декоров на полотне к стоимости необходимо добавлять + 1500 р
A22: На коллекции MARION укутка торцов вверх/низ - не осуществляется
A23: Модель | E23: Тип 1 | F23: Тип 2 | G23: Тип 3 | H23: Тип 4
A24: ДГ
A25: MARION 1, MARION 12 | E25: 12229.89246 | F25: 12866.12964 | G25: 13360.98078 | H25: 13926.52494
A26: MARION 2 | E26: 12583.35756 | F26: 13219.59474 | G26: 13714.44588 | H26: 14279.99004
A27: MARION 3, MARION 5, MARION 11, MARION 13, MARION 7, MARION 8 | E27: 12724.7436 | F27: 13360.98078 | G27: 13855.83192 | H27: 14421.37608
A28: MARION 6, MARION 9 | E28: 12512.66454 | F28: 13148.90172 | G28: 13643.75286 | H28: 14209.29702
A29: MARION 4 | E29: 12795.43662 | F29: 13431.6738 | G29: 13926.52494 | H29: 14492.0691
A30: MARION 10, MARION 15 | E30: 13219.59474 | F30: 13855.83192 | G30: 14350.68306 | H30: 14916.22722
A31: MARION 14 | E31: 13078.2087 | F31: 13714.44588 | G31: 14209.29702 | H31: 14774.84118
A32: MARION 16 | E32: 13714.44588 | F32: 14350.68306 | G32: 14845.5342 | H32: 15411.07836
A33: Опции и наценки
A34: Алюминиевая кромка с 2-х сторон !!!( В названии модели добавлятся приставка /S) | H34: 2120.7906
A35: Алюминиевая кромка по периметру !!!( В названии модели добавлятся приставка /S) | H35: 3463.95798
A36: Наценка за черную и золотую алюминиевую кромку (Оттенок золотой кромки может отличаться от партии к партии) | H36: 565.54416
A37: Наценка за алюминиевую кромку шампань | H37: 848.31624
A38: Наценка на полотно толщиной 42 мм (без алюминиевой кромки) | H38: 1413.8604
A39: Усиленное полотно ( + 20 кг) | H39: 2120.7906
A40: Дополнительная упаковка для полотна | H40: 424.15812
A41: Шумоизоляция фибролитовой плитой | H41: 4241.5812
A42: Наполнение белтермо | H42: 4241.5812
A43: Cтабилизатор Morelli (Рекомендуем для полотен выше 2360 мм) Комплект 2 шт | H43: 3386.981136
A44: Использование двух декоров на полотне | H44: 2120.7906
A45: Наценки за нестандартные размеры
A46: Ширина
A47: 400-950 (шаг 10 мм) | E47: Без наценки
A48: Высота
A49: 1800 - 2050 (шаг 10 мм) | E49: Без наценки
A50: до 1800 мм, свыше 2050 мм - 2350 мм | E50: 0.2
A51: свыше 2360 мм - 2750 мм | E51: 50% (к базовой цене)
A52: свыше 2760 мм - 2850 мм (Укутка вверх/низ - НЕДОСТУПНА) | E52: 80% (к базовой цене)
A53: При заказе дверей высотой выше 2360, необходимо обязательно заказывать стабилизатор + врезку cтабилизатора
A55: Важно!!! При заказе двери выше 2360 мм допуск по кривизне составляет 3 мм
A57: Погонажные изделия (Стандарт) | E57: Тип 1 | F57: Тип 2 | G57: Тип 3 | H57: Тип 4
A58: Наличник МДФ телескоп 80*10 мм | E58: 629.167878 | F58: 660.6262719 | G58: 692.0846658 | H58: 723.5430597
A59: Коробка МДФ телескоп (Под 38 мм полотно) 75*32 мм | E59: 926.078562 | F59: 972.3824901 | G59: 1018.686418 | H59: 1064.990346
A60: Доборная доска МДФ телескопический 90*10 мм | E60: 711.119416 | F60: 746.6753868 | G60: 782.2313576 | H60: 817.7873284
A61: Доборная доска МДФ телескопический 130*10 мм | E61: 872.404232 | F61: 916.0244436 | G61: 959.6446552 | H61: 1003.264867
A62: Доборная доска МДФ телескопический 170*10 мм | E62: 1004.364536 | F62: 1054.582763 | G62: 1104.80099 | H62: 1155.019216
A63: Плинтус, 80*16*2070 мм., шт. | E63: 872.404232 | F63: 916.0244436 | G63: 959.6446552 | H63: 1003.264867
A64: Комплект крепежей (1 плинтус - 1 комплект(5 шт.) | E64: 205.271584 | F64: - | G64: - | H64: -
A65: Полезные ссылки
A66: Навигатор | B66: Погонаж | C66: Накладки | D66: Доп. Ассортимент | E66: ПВХ | F66: Фурнитура | G66: Врезка | H66: Системы
A68: Техническая информация
A69: Модель | C69: Применяемость в реверс компланар | E69: Обязательность сторонности открывания (без врезки) | G69: Применяемость стабилизатора
A70: MARION 1 - MARION 16 | C70: да, НО рисунок уменьшается со всех сторон на 12мм | E70: нет | G70: да

Sheet COMER
A1: Навигатор
A2: Коллекция COMER
A13: COMER 1 | B13: COMER 2 | C13: COMER 3 | D13: COMER 4 | E13: COMER 5 | F13: COMER 6 | G13: COMER 7 | H13: COMER 8
A24: COMER 9 | B24: COMER 10 | C24: COMER 11 | D24: COMER 12 | E24: COMER 13 | F24: COMER 14 | G24: COMER 15 | H24: COMER 16
A35: COMER 17 | B35: COMER 18 | C35: COMER 19 | D35: COMER 20
A36: Техническая информация (нажмите)
A38: Cтоимость
A39: Модель | E39: Тип 1 | F39: Тип 2 | G39: Тип 3 | H39: Тип 4
A40: COMER ДГ (Все модели) | E40: 10462.56696 | F40: 11098.80414 | G40: 11593.65528 | H40: 12159.19944
A42: При заказе компланарного погнажна на данную коллекцию, врезка возможно только под петли Armadillo U3D8000
A44: Опции и наценки
A45: Алюминиевая кромка с 2-х сторон !!!( В названии модели добавлятся приствака /S) | H45: 2120.7906
A46: Алюминиевая кромка по периметру !!!( В названии модели добавлятся приставка /S) | H46: 3463.95798
A47: Наценка на полотно толщиной 42 мм (без алюминиевой кромки) | H47: 1413.8604
A48: Наценка за черную и золотую алюминиевую кромку (Оттенок золотой кромки может отличаться от партии к партии) | H48: 565.54416
A49: Наценка за алюминиевую кромку шампань | H49: 848.31624
A50: Укутка вверх/низ (На моделях G27, G28 данная опция НЕДОСТУПНА) | H50: 282.77208
A51: Усиленное полотно ( + 20 кг) | H51: 2120.7906
A52: Дополнительная упаковка для полотна | H52: 424.15812
A53: Шумоизоляция фибролитовой плитой | H53: 4241.5812
A54: Наполнение белтермо | H54: 4241.5812
A55: Cтабилизатор Morelli (Рекомендуем для полотен выше 2360 мм) Комплект 2 шт | H55: 3386.981136
A56: Наценки за нестандартные размеры
A57: Ширина
A58: 400-950 (шаг 10 мм) | E58: Без наценки
A59: Высота
A60: 1800 - 2050 (шаг 10 мм) | E60: Без наценки
A61: до 1800 мм, свыше 2050 мм - 2350 мм | E61: 0.2
A62: свыше 2360 мм - 2750 мм | E62: 50% (к базовой цене)
A63: свыше 2760 мм - 2850 мм (Укутка вверх/низ - НЕДОСТУПНА) | E63: 80% (к базовой цене)
A64: При заказе дверей высотой выше 2360, необходимо обязательно заказывать стабилизатор + врезку cтабилизатора
A66: Важно!!! При заказе двери выше 2360 мм допуск по кривизне составляет 3 мм
A68: Погонажные изделия (Стандарт) | E68: Тип 1 | F68: Тип 2 | G68: Тип 3 | H68: Тип 4
A69: Наличник МДФ телескоп 80*10 мм | E69: 629.167878 | F69: 660.6262719 | G69: 692.0846658 | H69: 723.5430597
A70: Коробка МДФ телескоп (Под 38 мм полотно) 75*32 мм | E70: 926.078562 | F70: 972.3824901 | G70: 1018.686418 | H70: 1064.990346
A71: Доборная доска МДФ телескопический 90*10 мм | E71: 711.119416 | F71: 746.6753868 | G71: 782.2313576 | H71: 817.7873284
A72: Доборная доска МДФ телескопический 130*10 мм | E72: 872.404232 | F72: 916.0244436 | G72: 959.6446552 | H72: 1003.264867
A73: Доборная доска МДФ телескопический 170*10 мм | E73: 1004.364536 | F73: 1054.582763 | G73: 1104.80099 | H73: 1155.019216
A74: Плинтус, 80*16*2070 мм., шт. | E74: 872.404232 | F74: 916.0244436 | G74: 959.6446552 | H74: 1003.264867
A75: Комплект крепежей (1 плинтус - 1 комплект(5 шт.) | E75: 205.271584 | F75: - | G75: - | H75: -
A76: Технические особенности
A77: Толщина полотна - 38 мм / С алюминиевой кромкой - 42 мм
A78: Полезные ссылки
A79: Навигатор | B79: Погонаж | C79: Накладки | D79: Доп. Ассортимент | E79: ПВХ | F79: Фурнитура | G79: Врезка | H79: Системы
A81: Техническая информация
A82: Модель | C82: Применяемость в реверс компланар | E82: Обязательность сторонности открывания (без врезки) | G82: Применяемость стабилизатора
A83: COMER 1 - COMER 20 | C83: да | E83: нет | G83: да

Sheet PRISMA
A1: Навигатор
A2: Коллекция PRISMA
B14: PRISMA 1 | C14: PRISMA 2 | D14: PRISMA 3 | E14: PRISMA 4 | F14: PRISMA 5 | G14: PRISMA 6
A15: Техническая информация (нажмите)
A17: Cтоимость
A19: Модель | E19: Тип 1 | F19: Тип 2 | G19: Тип 3 | H19: Тип 4
A20: Prisma 1 - Prisma 6 (ДГ) | E20: 14704.14816 | F20: 15340.38534 | G20: 15835.23648 | H20: 16400.78064
A21: Опции и наценки
A22: Алюминиевая кромка с 2-х сторон | H22: 2120.7906
A23: Алюминиевая кромка по периметру | H23: 3463.95798
A24: Наценка на полотно толщиной 42 мм (без алюминиевой кромки) | H24: 1413.8604
A25: Наценка за черную и золотую алюминиевую кромку (Оттенок золотой кромки может отличаться от партии к партии) | H25: 565.54416
A26: Наценка за алюминиевую кромку шампань | H26: 848.31624
A27: Укутка вверх/низ | H27: 282.77208
A28: Усиленное полотно ( + 20 кг) | H28: 2120.7906
A29: Дополнительная упаковка для полотна | H29: 706.9302
A30: Шумоизоляция фибролитовой плитой | H30: 4241.5812
A31: Наполнение белтермо | H31: 4241.5812
A32: Cтабилизатор Morelli (Рекомендуем для полотен выше 2360 мм) Комплект 2 шт | H32: 3386.981136
A33: Наценки за нестандартные размеры
A34: Ширина
A35: 400-950 (шаг 10 мм) | E35: Без наценки
A36: Высота
A37: 1800 - 2050 (шаг 10 мм) | E37: Без наценки
A38: до 1800 мм, свыше 2050 мм - 2350 мм | E38: 0.2
A39: свыше 2360 мм - 2750 мм | E39: 50% (к базовой цене)
A40: свыше 2760 мм - 2850 мм (Укутка вверх/низ - НЕДОСТУПНА) | E40: 80% (к базовой цене)
A41: При заказе дверей высотой выше 2360, необходимо обязательно заказывать стабилизатор + врезку cтабилизатора
A43: Важно!!! При заказе двери выше 2360 мм допуск по кривизне составляет 3 мм
A45: Погонажные изделия (Стандарт) | E45: Тип 1 | F45: Тип 2 | G45: Тип 3 | H45: Тип 4
A46: Наличник МДФ телескоп 80*10 мм | E46: 629.167878 | F46: 660.6262719 | G46: 692.0846658 | H46: 723.5430597
A47: Коробка МДФ телескоп (Под 38 мм полотно) 75*32 мм | E47: 926.078562 | F47: 972.3824901 | G47: 1018.686418 | H47: 1064.990346
A48: Доборная доска МДФ телескопический 90*10 мм | E48: 711.119416 | F48: 746.6753868 | G48: 782.2313576 | H48: 817.7873284
A49: Доборная доска МДФ телескопический 130*10 мм | E49: 872.404232 | F49: 916.0244436 | G49: 959.6446552 | H49: 1003.264867
A50: Доборная доска МДФ телескопический 170*10 мм | E50: 1004.364536 | F50: 1054.582763 | G50: 1104.80099 | H50: 1155.019216
A51: Плинтус, 80*16*2070 мм., шт. | E51: 872.404232 | F51: 916.0244436 | G51: 959.6446552 | H51: 1003.264867
A52: Комплект крепежей (1 плинтус - 1 комплект (5 шт.) | E52: 205.271584 | F52: - | G52: - | H52: -
A53: Технические особенности
A54: Толщина полотна - 38 мм / С алюминиевой кромкой - 42 мм
A55: Полезные ссылки
A56: Навигатор | B56: Погонаж | C56: Накладки | D56: Доп. Ассортимент | E56: ПВХ | F56: Фурнитура | G56: Врезка | H56: Системы
A58: Техническая информация
A59: Модель | C59: Применяемость в реверс компланар | E59: Обязательность сторонности открывания (без врезки) | G59: Применяемость стабилизатора
A60: PRISMA 1 - PRISMA 6 | C60: да | E60: нет | G60: да

Sheet DIAMETER
A1: Навигатор
A2: Коллекция DIAMETER
A14: DIAMETER 1 ДГ | B14: DIAMETER 1 ДО | C14: DIAMETER 2 ДГ | D14: DIAMETER 2 ДО | E14: DIAMETER 3 ДГ | F14: DIAMETER 3 ДО | G14: DIAMETER 4 ДГ | H14: DIAMETER 4 ДО
A15: Техническая информация (нажмите)
A17: Cтоимость
A18: Модель | E18: Тип 1 | F18: Тип 2 | G18: Тип 3 | H18: Тип 4
A19: DIAMETER 1, DIAMETER 2, DIAMETER 3, DIAMETER 4 (ДГ) | E19: 11876.42736 | F19: 12512.66454 | G19: 13007.51568 | H19: 13573.05984
A20: DIAMETER 1 (ДО) | E20: 12088.50642 | F20: 12724.7436 | G20: 13219.59474 | H20: 13785.1389
A21: DIAMETER 2 (ДО) | E21: 13431.6738 | F21: 14067.91098 | G21: 14562.76212 | H21: 15128.30628
A22: DIAMETER 3 (ДО) | E22: 16047.31554 | F22: 16683.55272 | G22: 17178.40386 | H22: 17743.94802
A23: DIAMETER 4 (ДО) | E23: 17390.48292 | F23: 18026.7201 | G23: 18521.57124 | H23: 19087.1154
A24: При заказе компланарного погнажна на данную коллекцию, врезка возможно только под петли Armadillo U3D8000
A26: Стекло | D26: Модель | G26: Наценка
A27: Зеркало | D27: DIAMETER 1 | G27: 0
D28: DIAMETER 2
D29: DIAMETER 3
D30: DIAMETER 4
A31: Черный лакобель / Белый лакобель | D31: DIAMETER 1 | G31: 0
D32: DIAMETER 2
D33: DIAMETER 3
D34: DIAMETER 4
A35: Зеркало графит / Коричневый лакобель / Зеркало бронза | D35: DIAMETER 1 | G35: 353.4651
D36: DIAMETER 2 | G36: 706.9302
D37: DIAMETER 3 | G37: 1131.08832
D38: DIAMETER 4 | G38: 1767.3255
A39: Супер белый лакобель | D39: DIAMETER 1 | G39: 424.15812
D40: DIAMETER 2 | G40: 848.31624
D41: DIAMETER 3 | G41: 1413.8604
D42: DIAMETER 4 | G42: 2120.7906
A43: Опции и наценки
A44: Алюминиевая кромка с 2-х сторон !!!( В названии модели добавлятся приставка /S) | H44: 2120.7906
A45: Алюминиевая кромка по периметру !!!( В названии модели добавлятся приставка /S) | H45: 3463.95798
A46: Наценка на полотно толщиной 42 мм (без алюминиевой кромки) | H46: 1413.8604
A47: Наценка за черную и золотую алюминиевую кромку (Оттенок золотой кромки может отличаться от партии к партии) | H47: 565.54416
A48: Наценка за алюминиевую кромку шампань | H48: 848.31624
A49: Укутка вверх/низ | H49: 282.77208
A50: Усиленное полотно ( + 20 кг) | H50: 2120.7906
A51: Дополнительная упаковка для полотна | H51: 706.9302
A52: Шумоизоляция фибролитовой плитой | H52: 4241.5812
A53: Наполнение белтермо | H53: 4241.5812
A54: Cтабилизатор Morelli (Рекомендуем для полотен выше 2360 мм) Комплект 2 шт | H54: 3386.981136
A55: Наценки за нестандартные размеры
A56: Ширина
A57: 400-950 (шаг 10 мм) | E57: Без наценки
A58: Высота
A59: 1800 - 2050 (шаг 10 мм) | E59: Без наценки
A60: до 1800 мм, свыше 2050 мм - 2350 мм | E60: 0.2
A61: до 1800 мм, свыше 2050 мм - 2350 мм | E61: 0.2
A62: свыше 2360 мм - 2750 мм | E62: 50% (к базовой цене)
A63: свыше 2760 мм - 2850 мм (Укутка вверх/низ - НЕДОСТУПНА) | E63: 80% (к базовой цене)
A64: При заказе дверей высотой выше 2360, необходимо обязательно заказывать стабилизатор + врезку cтабилизатора
A66: Важно!!! При заказе двери выше 2360 мм допуск по кривизне составляет 3 мм
A68: Погонажные изделия (Стандарт) | E68: Тип 1 | F68: Тип 2 | G68: Тип 3 | H68: Тип 4
A69: Наличник МДФ телескоп 80*10 мм | E69: 629.167878 | F69: 660.6262719 | G69: 692.0846658 | H69: 723.5430597
A70: Коробка МДФ телескоп (Под 38 мм полотно) 75*32 мм | E70: 926.078562 | F70: 972.3824901 | G70: 1018.686418 | H70: 1064.990346
A71: Доборная доска МДФ телескопический 90*10 мм | E71: 711.119416 | F71: 746.6753868 | G71: 782.2313576 | H71: 817.7873284
A72: Доборная доска МДФ телескопический 130*10 мм | E72: 872.404232 | F72: 916.0244436 | G72: 959.6446552 | H72: 1003.264867
A73: Доборная доска МДФ телескопический 170*10 мм | E73: 1004.364536 | F73: 1054.582763 | G73: 1104.80099 | H73: 1155.019216
A74: Плинтус, 80*16*2070 мм., шт. | E74: 872.404232 | F74: 916.0244436 | G74: 959.6446552 | H74: 1003.264867
A75: Комплект крепежей (1 плинтус - 1 комплект(5 шт.) | E75: 205.271584 | F75: - | G75: - | H75: -
A76: Технические особенности
A77: Толщина полотна - 38 мм / С алюминиевой кромкой - 42 мм
A78: Полезные ссылки
A79: Навигатор | B79: Погонаж | C79: Накладки | D79: Доп. Ассортимент | E79: ПВХ | F79: Фурнитура | G79: Врезка | H79: Системы
A81: Техническая информация
A82: Модель | C82: Применяемость в реверс компланар | E82: Обязательность сторонности открывания (без врезки) | G82: Применяемость стабилизатора
A83: Все модели | C83: да | E83: нет | G83: да

Sheet Дополнительный ассортимент
A1: Навигатор
A2: Дополнительный ассортимент
A4: Декор
A5: Наименование | E5: Тип 1 | F5: Тип 2 | G5: Тип 3 | H5: Тип 4
A6: Портальный квадрат 80*80*16 мм.,шт. Вид 1/Вид 2 | E6: 564.496856 | F6: 592.7216988 | G6: 620.9465416 | H6: 649.1713844
A7: Портальный тумба 150*80*16 мм.,шт. Вид 1/Вид 2 | E7: 579.159112 | F7: 608.1170676 | G7: 637.0750232 | H7: 666.0329788
A8: Капитель до 1000 мм. (+190 мм к ширине полотна) | E8: 2873.802176 | F8: 3017.492285 | G8: 3161.182394 | H8: 3304.872502
A9: Капитель до 2000 мм. (+190 мм к ширине полотна) | E9: 3137.722784 | F9: 3294.608923 | G9: 3451.495062 | H9: 3608.381202
A10: Капитель Рим до 1000 мм. (+200 мм к ширине полотна) | E10: 3071.742632 | F10: 3225.329764 | G10: 3378.916895 | H10: 3532.504027
A11: Капитель Рим до 2000 мм. (+200 мм к ширине полотна) | E11: 3672.895128 | F11: 3856.539884 | G11: 4040.184641 | H11: 4223.829397
A12: Притворная планка 30*2070 мм.,шт. | E12: 667.132648 | F12: 700.4892804 | G12: 733.8459128 | H12: 767.2025452
A13: Притворная планка 30*2350 мм.,шт. | E13: 740.443928 | F13: 777.4661244 | G13: 814.4883208 | H13: 851.5105172
A14: Плинтус, 70*16*2070 мм., шт. | E14: 835.748592 | F14: 877.5360216 | G14: 919.3234512 | H14: 961.1108808
A15: Плинтус, 80*16*2070 мм., шт. | E15: 872.404232 | F15: 916.0244436 | G15: 959.6446552 | H15: 1003.264867
A16: Плинтус, 100*16*2070 мм., шт. | E16: 938.384384 | F16: 985.3036032 | G16: 1032.222822 | H16: 1079.142042
A17: Плинтус, 80*10*2070 мм., шт. (Крепятся на жидкие гвозди) | E17: 821.086336 | F17: 862.1406528 | G17: 903.1949696 | H17: 944.2492864
A18: Комплект крепежей (1 плинтус - 1 комплект(5 шт.) | E18: 205.271584
A19: Фрамуга ДГ / ДО со стеклом прозрачный, мателюкс белое, бронза (за кв. метр) | E19: Стоимость = Стоимость полотна умножаем на 80%
A20: Котоход с установкой | E20: 4142.08732
A21: Полезные ссылки
A22: Навигатор | B22: Погонаж | C22: Накладки | D22: Доп. Ассортимент | E22: ПВХ | F22: Фурнитура | G22: Врезка | H22: Системы

Sheet Арки
A1: Навигатор
A2: Арки
A4: Наименование | B4: Универсальная 2400мм.* 1500мм* 200мм | C4: Нестандартная с толщиной до 350 мм. | D4: Нестандартная с толщиной до 500 мм. | E4: Нестандартная толщина свыше 500 мм. и до 950мм. (за каждые 50 мм) | F4: Нестандартная высота до 2550 мм. | G4: Нестандартная ширина от 1500 мм. до 1800 мм. (+) | H4: Нестандартная ширина от 1800 мм. до 2000 мм. (+)
A5: Прямоугольная | B5: 10336.89048 | C5: 11597.8445 | D5: 12932.10979 | E5: 13137.38138 | F5: 10688.78462 | G5: 2646.537208 | H5: 3064.411504
A6: Круглая | B6: 10336.89048 | C6: 11597.8445 | D6: 12932.10979 | E6: 13137.38138 | F6: 10688.78462 | G6: 2646.537208 | H6: 3064.411504
A7: Венеция | B7: 10615.47334 | C7: 11876.42736 | D7: 13210.69266 | E7: 13496.60665 | F7: 10688.78462 | G7: 2646.537208 | H7: 3064.411504
E8: (за каждые 50 мм) +440 руб)
A9: Наценка за типы
A10: Тип 1 | C10: Тип 2 | E10: Тип 3 | G10: Тип 4
A11: 0 | C11: 733.1128 | E11: 1319.60304 | G11: 1906.09328
A12: Полезные ссылки
A13: Навигатор | B13: Погонаж | C13: Накладки | D13: Доп. Ассортимент | E13: ПВХ | F13: Фурнитура | G13: Врезка | H13: Системы

Sheet Стеновые панели
A1: Навигатор
A2: Стеновые панели
A4: Стеновая панель Invento
A18: Наименование | E18: Тип 1 | F18: Тип 2 | G18: Тип 3 | H18: Тип 4
A19: Стеновые панели Invento за кв.м2 | E19: 4076.107168 | F19: 4279.912526 | G19: 4483.717885 | H19: 4687.523243
A20: Соединительная планка, 3мм, 2350мм | E20: 58.649024 | F20: - | G20: - | H20: -
A21: Кляймер | E21: 102.635792 | F21: - | G21: - | H21: -
A30: Схема нанесения покрытия при горизонтальном расположении панелей (вар. 1).
E31: Схема нанесения покрытия при вертикальном расположении панелей (вар. 2).
A35: Размеры
A36: Размеры | C36: вар 1 (шаг 10 мм) | F36: вар 2 (шаг 10 мм)
C37: min, мм | D37: max, мм | F37: min, мм | G37: max, мм
A38: Высота | C38: 200 | D38: 950 | F38: 400 | G38: 2800
A39: Ширина | C39: 400 | D39: 2800 | F39: 200 | G39: 950
A40: Толщина | C40: 10 мм
A41: Технические особенности
A42: При заказе панелей Invento в заказе обязательно необходимо указать вариант нанесения покрытия.
A43: Стеновые панели крепятся между собой через соединительную планку
A44: Паз у стеновых панелей Invento делается с 4-х сторон
A46: Стеновая панель Della
A60: Наименование | E60: Тип 1 | F60: Тип 2 | G60: Тип 3 | H60: Тип 4
A61: Стеновые панели Della за кв.м2 | E61: 4076.107168 | F61: 4279.912526 | G61: 4483.717885 | H61: 4687.523243
A62: Соединительная планка, 3мм, 2350мм | E62: 58.649024 | F62: - | G62: - | H62: -
A63: Кляймер | E63: 102.635792 | F63: - | G63: - | H63: -
A68: Схема нанесения покрытия при горизонтальном расположении панелей (вар. 1). | E68: Схема нанесения покрытия при вертикальном расположении панелей (вар. 2).
A73: Размеры
A74: Размеры | C74: min, мм (шаг 10 мм) | F74: max, мм (шаг 10 мм)
A76: Высота | C76: 450 | F76: 900
A77: Ширина | C77: 450 | F77: 900
A78: Толщина | C78: 10 мм
A80: Технические особенности
A81: При заказе панелей Della в заказе обязательно необходимо указать вариант нанесения покрытия.
A82: Панели Della изготавливаются только равностороними (квадратными).
A83: Стеновые панели крепятся между собой через соединительную планку
A84: Паз у стеновых панелей Della делается с 4-х сторон
A86: Стеновая панель Lungo
A100: Наименование | E100: Тип 1 | F100: Тип 2 | G100: Тип 3 | H100: Тип 4
A101: Стеновые панели Lungo за кв.м2 | E101: 4076.107168 | F101: 4279.912526 | G101: 4483.717885 | H101: 4687.523243
A102: Соединительная планка, 3мм, 2350мм | E102: 58.649024 | F102: - | G102: - | H102: -
A103: Кляймер | E103: 102.635792 | F103: - | G103: - | H103: -
C108: Схема нанесения покрытия при горизонтальном расположении панелей (вар. 1).
A113: Размеры
A114: Размеры | C114: min, мм | F114: max, мм
A116: Высота | C116: 2070 | F116: 2800
A117: Ширина (шаг 50 мм.) | C117: 200 | F117: 1000
A118: Толщина | C118: 10 мм
A120: Технические особенности
A121: При заказе панелей Lungo в заказе обязательно необходимо указать вариант нанесения покрытия.
A122: ПанелиLungo изготавливаются только равностороними (квадратными).
A123: Стеновые панели крепятся между собой через соединительную планку
A124: Паз у стеновых панелей Lungo делается с 4-х сторон
A126: Стеновая панель RELIEF
A140: Наименование | E140: Тип 1 | F140: Тип 2 | G140: Тип 3 | H140: Тип 4
A141: Стеновые панели RELEF за кв.м2 | E141: 4340.027776 | F141: 4557.029165 | G141: 4774.030554 | H141: 4991.031942
A142: Профиль стартовый (3 м.) ЧЕРНЫЙ | E142: 2712.51736 | F142: - | G142: - | H142: -
A143: Профиль угловой (3 м.) ЧЕРНЫЙ | E143: 3738.87528 | F143: - | G143: - | H143: -
A144: Профиль соедительный (3 м.) ЧЕРНЫЙ | E144: 2712.51736 | F144: - | G144: - | H144: -
A153: Размеры
A154: Размеры | C154: min, мм | F154: max, мм
A156: Высота | C156: 2070 | F156: 2800
A157: Ширина (шаг 50 мм.) | C157: 200 | F157: 1000
A158: Толщина | C158: 10 мм
A160: Технические особенности
A161: При заказе панелей RELIEF в заказе обязательно необходимо указать вариант нанесения покрытия.
A163: Полезные ссылки
A164: Навигатор | B164: Погонаж | C164: Накладки | D164: Доп. Ассортимент | E164: ПВХ | F164: Фурнитура | G164: Врезка | H164: Системы

Sheet Декор.рейки
A1: Навигатор
A2: Декоративные рейки
A11: Рейка декоративная 36*50*2800 мм | C11: Рейка фоновая 36*22*2800 мм | D11: Крепежная рейка 12*20*2800 мм | F11: Стыковочная рейка 25*20*2800 мм | H11: Угол монтажный 40*20
A14: Наименование | E14: Тип 1 | F14: Тип 2 | G14: Тип 3 | H14: Тип 4
A15: Рейка декоративная 36*50*2800 мм | E15: 1070.344688 | F15: 1123.861922 | G15: 1177.379157 | H15: 1230.896391
A16: Рейка фоновая 36*22*2800 мм | E16: 733.1128 | F16: 769.76844 | G16: 806.42408 | H16: 843.07972
A17: Крепежная рейка 12*20*2800 мм | E17: 293.24512 | F17: - | G17: - | H17: -
A18: Стыковочная рейка 25*20*2800 мм | E18: 329.90076 | F18: - | G18: - | H18: -
A19: Угол монтажный 40*20 | E19: 58.649024 | F19: - | G19: - | H19: -
A20: Список ПВХ не доступен к заказу с декоративными рейками
A22: ТИП 1 | D22: ТИП 2 | F22: ТИП 3 | G22: ТИП 3
A23: Белый снег | D23: Стронг айс | G23: Стронг крем брюле
A24: Торос грей | D24: Стронг белый | G24: Стронг ваниль
A25: Торос черный | D25: Стронг светло серый | G25: Стронг капучино
A26: Торос бьянка | D26: Стронг туман | G26: Стронг крем
A27: Бетон антрацит | D27: Стронг серый | G27: Стронг красный
A28: Дуб пацифик | D28: Стронг сантьяго | G28: Стронг графит
A29: Дуб арктик | D29: Стронг пич | G29: Стронг олива
A30: Холст серый | D30: Стронг черри | G30: Стронг черный
A31: Дуб арктик | D31: Строг лаванда | G31: Кофе с молоком
A32: Дуб шервуд патина | D32: Стронг грей | G32: Софт белоснежный
A33: Тиковое дерево | D33: Стронг моренго | G33: Софт джелато
A34: Сосна прованс | D34: Стронг темно-синий | G34: Софт белая матовая
A35: Итальянский орех | D35: Стронг темно-бирюзовый (Cтарое название софт темно-бирюзовый) | G35: Cофт крем
A36: Лесной орех | D36: Cофт белый | G36: Софт сантьяго
D37: Светло синий | G37: Софт ликер
D38: Фисташка | G38: Cофт дымчатый
G39: Кремовый ликер
D40: ТИП 4 | G40: Ясень белый
D41: Софт пепел | G41: Ясень капучино софт
D42: Софт мята
D43: Софт топаз шелк
D44: Софт моренго
D45: Софт желтый
D46: Софт атлантик
D47: Софт олива
D48: Софт темно синий
A51: Полезные ссылки
A52: Навигатор | B52: Погонаж | C52: Накладки | D52: Доп. Ассортимент | E52: ПВХ | F52: Фурнитура | G52: Врезка | H52: Системы

Sheet Накладки
A1: Навигатор
A2: Панель на металлическую дверь
A3: Наименование | E3: Тип 1 | F3: Тип 2 | G3: Тип 3 | H3: Тип 4
A4: Гладкое 6 МДФ | E4: 5205.10088 | F4: 5571.65728 | G4: 5791.59112 | H4: 6158.14752
A5: Гладкое 10 МДФ | E5: 5806.253376 | F5: 6172.809776 | G5: 6392.743616 | H5: 6759.300016
A6: Гладкое 16 МДФ | E6: 6671.32648 | F6: 7037.88288 | G6: 7257.81672 | H6: 7624.37312
A7: Фрезированная 6 МДФ | E7: 5608.31292 | F7: 5974.86932 | G7: 6194.80316 | H7: 6561.35956
A8: Фрезированная 10 МДФ | E8: 6004.193832 | F8: 6370.750232 | G8: 6590.684072 | H8: 6957.240472
A9: Фрезированная 16 МДФ | E9: 7206.498824 | F9: 7573.055224 | G9: 7792.989064 | H9: 8159.545464
A10: Глубокая фрезировка 16 МДФ | E10: 7543.730712 | F10: 7910.287112 | G10: 8130.220952 | H10: 8496.777352
A11: С вставкой молдинга 10 МДФ | E11: 7008.558368 | F11: 7375.114768 | G11: 7595.048608 | H11: 7961.605008
A12: С вставкой молдинга 16 МДФ | E12: 7543.730712 | F12: 7910.287112 | G12: 8130.220952 | H12: 8496.777352
A13: С вставкой зеркало/лакобель (Не более 0,6 кв.м2) 10 МДФ | E13: 8943.97616 | F13: 9310.53256 | G13: 9530.4664 | H13: 9897.0228
A14: С вставкой зеркало/лакобель (Не более 0,6 кв.м2) 16 МДФ | E14: 10212.2613 | F14: 10578.8177 | G14: 10798.75154 | H14: 11165.30794
A15: С вставкой зеркало/лакобель ( Более 0,6 кв.м2) 10 МДФ | E15: 9875.029416 | F15: 10241.58582 | G15: 10461.51966 | H15: 10828.07606
A16: С вставкой зеркало/лакобель ( Более 0,6 кв.м2) 16 МДФ | E16: 10879.39395 | F16: 11245.95035 | G16: 11465.88419 | H16: 11832.44059
A17: Размеры панелей изготавливаются кратно 5 мм
A20: Возможность изготовления
A21: № | B21: Коллекции | E21: Вид двери | F21: МДФ 6 мм. | G21: МДФ 10 мм. | H21: МДФ 16 мм.
A22: 1 | B22: Коллекция Solo | E22: ДГ | F22: - | G22: + | H22: +
A23: 2 | B23: Коллекция Asti | E23: ДГ | F23: - | G23: + | H23: +
A24: 3 | B24: Коллекция Atlas | E24: ДГ | F24: - | G24: + | H24: +
A25: 4 | B25: Коллекция Aero | E25: ДГ | F25: - | G25: + | H25: +
E26: ДГ | F26: - | G26: - | H26: +
A27: 5 | B27: Коллекция Intake | E27: ДГ | F27: - | G27: - | H27: +
A28: 6 | B28: Коллекция Levante | E28: ДГ | F28: - | G28: - | H28: -
E29: ДО | F29: - | G29: - | H29: -
A30: 7 | B30: Коллекция Comdi | E30: ДО | F30: - | G30: + | H30: +
A31: 8 | B31: Коллекция Practic | E31: ДГ | F31: - | G31: + | H31: +
E32: ДО | F32: - | G32: - | H32: -
A33: 9 | B33: Коллекция Motiver | E33: ДГ | F33: - | G33: + | H33: +
A34: 10 | B34: Коллекция Inside | E34: ДГ | F34: + | G34: + | H34: +
E35: ДО | F35: + | G35: + | H35: +
A36: 11 | B36: Коллекция Nestor | E36: ДГ | F36: - | G36: + | H36: +
E37: ДО | F37: - | G37: - | H37: +
A38: 12 | B38: Коллекция Blend | E38: ДО | F38: - | G38: - | H38: -
A39: 13 | B39: Коллекция Gemma | E39: ДГ | F39: - | G39: + | H39: +
E40: ДО | F40: - | G40: - | H40: -
A41: 14 | B41: Коллекция Riva | E41: ДГ | F41: - | G41: + | H41: +
E42: ДО | F42: - | G42: - | H42: -
A43: 15 | B43: Коллекция Atika | E43: ДГ | F43: + | G43: + | H43: +
E44: ДО (с зеркалом) | F44: - | G44: + | H44: +
A45: 16 | B45: Коллекция Siena | E45: ДГ | F45: + | G45: + | H45: +
E46: ДО | F46: - | G46: - | H46: -
A47: 17 | B47: Коллекция Liberta | E47: ДГ | F47: - | G47: - | H47: +
E48: ДО | F48: - | G48: - | H48: -
A49: 18 | B49: Коллекция Laura | E49: ДГ | F49: - | G49: + | H49: +
E50: ДО | F50: - | G50: - | H50: -
A51: 19 | B51: Коллекция Eleonora | E51: ДГ | F51: - | G51: + | H51: +
E52: ДО | F52: - | G52: - | H52: -
A53: Техническая инфоромация
D54: Для панелей толщиной более 6 мм необходимо указывать размер обкатки. Он определяется по остаточной толщине МДФ (X) и ширине, равной расстоянию от края накладки до начала подъема (Y).
A66: Внимание! Размеры накладки указываются по оборотной стороне (с учетом обкатки).
A68: Полезные ссылки
A69: Навигатор | B69: Погонаж | C69: Накладки | D69: Доп. Ассортимент | E69: ПВХ | F69: Фурнитура | G69: Врезка | H69: Системы

Sheet Реклама
A1: Навигатор
A2: Рекламные материалы
A4: Наименование | B4: Наименование | C4: Наименование | D4: Наименование | E4: Наименование | F4: Цена, руб.
A5: Каталог дверей | F5: 513.17896 | G5: 350
A6: Каталог покрытий А5 | F6: 1466.2256 | G6: 1000
A7: Каталог покрытий А4 | F7: 5864.9024 | G7: 4000
A8: Комплект образцов стекол | F8: 2199.3384 | G8: 1500
A9: Комплект декоративных реек | F9: 219.93384 | G9: 150
A10: Комплект INVIZIBLE | F10: 733.1128 | G10: 500
A11: Мини дверь Invizble на петле с коробкой (Петля оплачивается отдельно по прайсу) | F11: 3665.564 | G11: 2500
A12: Фирменный ценник | F12: 293.24512 | G12: 200

Sheet Врезка
A1: Навигатор
A2: Врезка
A5: Исполнение | B5: Варианты исполнения
B6: 0 | C6: 1 | D6: 2 | E6: 3 | F6: 4 | G6: 5 | H6: 6 | I6: 7 | J6: 8 | K6: 9 | L6: 10 | M6: 11 | N6: 12 | O6: 13 | P6: 14 | Q6: 15 | R6: 16 | S6: 17 | T6: 18 | U6: 19 | V6: 20 | W6: 21 | X6: 22 | Y6: 23 | Z6: 24 | AA6: 25 | AB6: 26 | AC6: 27 | AD6: 28 | AE6: 29 | AF6: 30 | AG6: 31 | AH6: 32 | AI6: 33 | AJ6: 34 | AK6: 35 | AL6: 36 | AM6: 37 | AN6: 502 | AO6: 509 | AP6: 510 | AQ6: 511 | AR6: 512 | AS6: 523 | AT6: 524 | AU6: 602 | AV6: 609 | AW6: 610 | AX6: 611 | AY6: 612 | AZ6: 623 | BA6: 624
A7: Врезка замка | B7: Без врезки | C7: Эскизная врезка | G7: ● | H7: ● | I7: ● | J7: ● | K7: ● | L7: ● | M7: ● | N7: ● | O7: ● | P7: ● | Q7: ● | R7: ● | S7: ● | T7: ● | U7: ● | V7: ● | AO7: ● | AP7: ● | AQ7: ● | AR7: ● | AV7: ● | AW7: ● | AX7: ● | AY7: ●
A8: Отверстие под ручку | H8: ● | I8: ● | J8: ● | L8: ● | M8: ● | N8: ● | P8: ● | Q8: ● | R8: ● | T8: ● | U8: ● | V8: ● | AI8: ● | AJ8: ● | AP8: ● | AQ8: ● | AR8: ● | AW8: ● | AX8: ● | AY8: ●
A9: Отверстие под фиксатор | I9: ● | M9: ● | Q9: ● | U9: ● | AJ9: ● | AQ9: ● | AX9: ●
A10: Отверстие под цилиндр | J10: ● | N10: ● | R10: ● | V10: ● | AR10: ● | AY10: ●
A11: Врезка ответной планки | W11: ● | X11: ● | Y11: ● | Z11: ● | AA11: ● | AB11: ● | AC11: ● | AD11: ● | AS11: ● | AT11: ● | AZ11: ● | BA11: ●
A12: Врезка шпингалета торцевого | X12: ● | Z12: ● | AB12: ● | AD12: ● | AT12: ● | BA12: ●
A13: Врезка 2 скрытых петель | D13: ● | K13: ● | L13: ● | M13: ● | N13: ● | Y13: ● | Z13: ●
A14: Врезка 3 скрытых петель | E14: ● | O14: ● | P14: ● | Q14: ● | R14: ● | AA14: ● | AB14: ●
A15: Врезка 4 скрытых петель | F15: ● | S15: ● | T15: ● | U15: ● | V15: ● | AC15: ● | AD15: ●
A16: Врезка котоход | AE16: ●
A17: Врезка вентрешетки | AF17: ●
A18: Врезка автопорога | AG18: ●
A19: Врезка стабилизатора | AH19: ●
A20: Врезка системы INVISIBLE | AK20: ●
A21: Врезка системы BOOK | AL21: ●
A22: Врезка системы TWICE 180 + замок | AM22: ●
A23: Врезка 5 скрытых петель | AN23: ● | AO23: ● | AP23: ● | AQ23: ● | AR23: ● | AS23: ● | AT23: ●
A24: Врезка 6 скрытых петель | AU24: ● | AV24: ● | AW24: ● | AX24: ● | AY24: ● | AZ24: ● | BA24: ●
A25: Стоимость | B25: 0 | C25: Индвидуально | D25: 989.70228 | E25: 1484.55342 | F25: 1979.40456 | G25: 565.54416 | H25: 919.00926 | I25: 1272.47436 | J25: 1272.47436 | K25: 1555.24644 | L25: 1908.71154 | M25: 2262.17664 | N25: 2262.17664 | O25: 2050.09758 | P25: 2403.56268 | Q25: 2757.02778 | R25: 2757.02778 | S25: 2686.33476 | T25: 2898.41382 | U25: 3251.87892 | V25: 3251.87892 | W25: 424.15812 | X25: 848.31624 | Y25: 1413.8604 | Z25: 1838.01852 | AA25: 1908.71154 | AB25: 2332.86966 | AC25: 2403.56268 | AD25: 2827.7208 | AE25: 848.31624 | AF25: 848.31624 | AG25: 848.31624 | AH25: 1413.8604 | AI25: 353.4651 | AJ25: 706.9302 | AK25: 3534.651 | AL25: 2403.56268 | AM25: 2686.33476 | AN25: 2474.2557 | AO25: 3039.79986 | AP25: 3393.26496 | AQ25: 3746.73006 | AR25: 3746.73006 | AS25: 2898.41382 | AT25: 3322.57194 | AU25: 2969.10684 | AV25: 3534.651 | AW25: 3888.1161 | AX25: 4241.5812 | AY25: 4241.5812 | AZ25: 3393.26496 | BA25: 3817.42308
A26: По умолчанию врезка фурнитуры происходит для двери с правым открыванием!!!
A28: Схема открывания | O28: Размеры коробок по высоте
O29: Короб 2100 мм | R29: Короб 2440 мм | V29: Короб 2800 мм | Z29: Короб 2950 мм
O30: Дверь до 2050 | R30: От 2060 до 2340 | V30: от 2400 до 2700 | Z30: от 2710 до 2850
O32: При усилении полотна, наполнении фибролитовой плитой, белтермо, полотно с зеркалом на всю площадь дополнительно +1 петля
O36: Автопорог и стабилизатор вместе врезать невозможно Автопорог врезать не можем в коллекции ART LINE, ALLURE, IMPULS (все модели)

Sheet Системы
A1: Навигатор
A2: Системы открываний
A3: Cистемы открывания Magic
A16: Наименование | H16: Цена
A17: Полотно с алюминиевой кромкой с 3-х сторон (от 700 мм) | H17: по прайсу
A18: Врезка под механизм INVIZIBLE | H18: 3534.651
A19: Механизм INVISIBLE | H19: 32990.076
A20: На полотне с системой INVISIBLE стабилизатор врезать невозможно!
A21: Перечень моделей
A22: Коллекция Motiver, Nestor ДГ, Коллекция Gemma ДГ, Коллекция Riva , кроме Riva 5,8,9,10; коллекция Atika ДГ; коллекция Siena ДГ, коллекция Liberta ДГ, коллекция Laura ДГ, коллекция Eleonora ДГ, коллекция Inside ДГ
A27: Техническая информация
A28: При необходимости облагораживаня проема дополнительно заказыватся доборы и наличники прайсу
A29: При заказе обязательно сообщить:
A30: 1. На каком расстоянии от стены будет установлено полотно.
A31: 2. Вариант открывания полотна
A32: 3. Тип открывания полотна, от этого зависит световой проем и размеры полотна. (Бывают: Стандартный, Промежуточный и Полное открытие.
A33: Ccылка на схемы https://docs.google.com/document/d/1aKlEe0DJvgjj7DQxf1_2ghQriUDe8-M_/edit?usp=sharing&ouid=103898962625542327954&rtpof=true&sd=true
A34: Cистемы открывания Book
A47: Данная система применима только к полотнам толщиной 38 мм
A49: Коллкция Liberta не доступна к данной системе
A51: Наименование | H51: Цена
A52: Полотно (Кэф 0.5) стоимость делится на два - 2 шт | H52: По прайсу
A53: Врезка под механизм Book | H53: 2403.56268
A54: Короб П образный 2100 мм | H54: 1343.16738
A55: Наличник прямой 2180*80*10. - 0,5 шт | H55: По прайсу
A56: Механизм BOOK (SLIDING SET BOOK 30kg) | H56: 12023.04992
A57: Механизм BOOK (SLIDING SET BOOK 40kg) + дополнительная петля | H57: 13489.27552
A58: Короб телескоп - 2 шт | H58: По прайсу
A59: Ширина полотна, мм
A60: Допустимая ширина проема, мм | B60: 600 (300+300) | C60: 700 (350+350) | D60: 800 (400+400) | E60: 900 (450+450) | G60: 1000 (500+500)
B61: 690-710 | C61: 790-810 | D61: 890-910 | E61: 990-1010 | G61: 1090-110
A63: Высота полотна, мм
A64: Допустимая высота проема, мм | B64: 1900 | C64: 1950 | D64: 2000 | E64: 2050 | F64: 2100 | G64: 2150 | H64: 2200
B65: 1970 | C65: 2020 | D65: 2070 | E65: 2120 | F65: 2170 | G65: 2220 | H65: 2270
A67: Допустимая высота проема, мм | B67: 2250 | C67: 2300
B68: 2320 | C68: 2370
A70: Перечень моделей
A71: Коллекция Motiver, Nestor ДГ, Коллекция Gemma ДГ, Коллекция Riva , кроме Riva 5,8,9,10; коллекция Atika ДГ; коллекция Siena ДГ, коллекция Liberta ДГ, коллекция Laura ДГ, коллекция Eleonora ДГ, коллекция Inside ДГ
A76: Техническая информация
A77: При заказе необходимо смотреть техническую информацию по диапазону размеров полотна
A78: Допустимые размеры полотен указаны выше:
A79: Ссылка на инструкцию https://drive.google.com/file/d/1BUVxFK6F60fj0wlO_DVXKqTHhhf2oaB2/view?usp=sharing
A80: Cистемы открывания Купе
A93: Наименование | H93: Цена
A94: Полотно | H94: По прайсу
A95: Врезка под флажок | H95: 919.00926
A96: Комплект (Направляющий профиль, Комплект роликов, нижняя направляющая) для двери купе 2000мм | H96: 9310.53256
A97: Комплект (Направляющий профиль, Комплект роликов, нижняя направляющая) для двери купе 3000мм | H97: 12536.22888
A98: Синхронизатор для двери-купе (для двух дверей) (по желанию) | H98: 8064.2408
A99: Купейная планка 2070*130 | H99: По прайсу
A100: Оформление проема | H100: По прайсу
A102: Допустимая ширина проема, мм | B102: Ширина полотна, мм
B103: 600 | C103: 650* (356+306) | D103: 700 | E103: 750* (406+356) | F103: 800 (406+406) | G103: 850 | H103: 900
B104: 400-500 | C104: 450-550 | D104: 500-600 | E104: 550-650 | F104: 600-700 | G104: 650-750 | H104: 700-800
A106: Допустимая ширина проема, мм | B106: Ширина полотна, мм
B107: 950* (506+456) | C107: 1000
B108: 750-850 | C108: 800-900
A110: Допустимая высота проема, мм | B110: Высота полотна, мм
B111: 1900 | C111: 1950 | D111: 2000 | E111: 2050 | F111: 2100 | G111: 2150 | H111: 2200
B112: 1850 | C112: 1900 | D112: 1950 | E112: 2000 | F112: 2050 | G112: 2100 | H112: 2150
A114: Перечень моделей
A115: Коллекция Motiver, Nestor ДГ, Коллекция Gemma ДГ, Коллекция Riva , кроме Riva 5,8,9,10; коллекция Atika ДГ; коллекция Siena ДГ, коллекция Liberta ДГ, коллекция Laura ДГ,коллекция Eleonora ДГ, коллекция Inside ДГ
A120: Техническая информация
A121: Ссылка на инструкцию https://drive.google.com/drive/folders/1UEPFXEHPlF6nRU6xHDPUAgqy3bcvvCAW?usp=sharing

Sheet Скрытый плинтус
A1: Навигатор
A2: Скрытый плинтус
A20: INVIZIBLE
A22: Модель | E22: Тип 1 | F22: Тип 2 | G22: Тип 3 | H22: Тип 4
A23: Вставка для скрытого плинтуса 2070*80*10 | E23: 1019.026792 | F23: 1069.978132 | G23: 1120.929471 | H23: 1171.880811
A24: Скрытый плинтус 2700*98 ХРОМ | E24: 2712.51736 | F24: - | G24: - | H24: -
A25: Скрытый плинтус 2700*98 ЧЕРНЫЙ | E25: 2851.808792 | F25: - | G25: - | H25: -
A26: Если изготавливать вставку под покраску, то будет использоваться ПВХ Грунт. Ее считаем по стандартной цене ТИП 1
A28: Ссылка на схему плинтуса https://drive.google.com/file/d/1RtTxyUL6IYBd1IU0ue0g4ee5b6cxn7ZF/view?usp=sharing
A31: Полезные ссылки
A32: Навигатор | B32: Погонаж | C32: Накладки | D32: Доп. Ассортимент | E32: ПВХ | F32: Фурнитура | G32: Врезка | H32: Системы

Sheet Фальш фрамуга
A1: Навигатор
A2: Фальш фрамуга
A12: Наименование | E12: Тип 1 | F12: Тип 2 | G12: Тип 3 | H12: Тип 4
A13: Фальш фрамуга для компланарного погонажа гладкая, шт | E13: 5608.31292 | F13: 5888.728566 | G13: 6169.144212 | H13: 6449.559858
A14: Фальш фрамуга для компланарного погонажа фрезированная, шт | E14: 6143.485264 | F14: 6450.659527 | G14: 6757.83379 | H14: 7065.008054
A15: Фальш фрамуга для телескопического погонажа гладкая, шт | E15: 5608.31292 | F15: 5888.728566 | G15: 6169.144212 | H15: 6449.559858
A16: Фальш фрамуга для телескопического погонажа фрезированная, шт | E16: 6143.485264 | F16: 6450.659527 | G16: 6757.83379 | H16: 7065.008054
A17: Фальш фрамугу из коллекций LIBERTA, ELEONORA невозможно изготовить
A19: Размеры
A20: Ширина
A21: 406-956 мм
A22: Высота
A23: 400 -1500 мм (шаг 10 мм)
A24: Толщина
A25: 10 мм
A27: Технические особенности
A28: Толщина Фальш фрамуги - 10 мм
A29: Фальш фрамуга по верхнему и нижнему торцу облицовываются покрытием.
A30: При заказе фальш фрамуги в примечании к заказу указывайте напрвление структуры покрытия
A31: Если в примечании не указано направление структуры, то по умолчанию будет идти то направление, которое соответствует тому или иному покрытию.
A32: При заказе двери в алюминиевой кромке ХРОМ, ЧЕРНЫЙ, ЗОЛОТО - ФФ будет идти с четвертью
A34: Схема
A35: Телескоп Компланар (окрывание на себя)
A52: Формула расчета
A54: Для компланара обычного
A56: Для расчета высоты фальшфрамуги из общей высоты вычитаем высоту полотна, 15 мм (оступ от пола до полотна), 3 мм (зазор по периметру).
A57: Высота ФФ = высота общая – высота полотна – 18 мм
A59: Для расчета ширины фальшфрамуги к ширине полотна прибавляем два раза по 3 мм (зазор по периметру).
A60: Ширина ФФ = ширина полотна + 6 мм
A62: Полезные ссылки
A63: Навигатор | B63: Погонаж | C63: Накладки | D63: Доп. Ассортимент | E63: ПВХ | F63: Фурнитура | G63: Врезка | H63: Системы
